{"text_format":"2","workbook":"xlsx","n_sheets":15,"sheets":["Übersicht und Anleitung","Verpflegungsplan KVK","Woche 1","Woche 2","Woche 3","Plan subs CC","Semaine 1","Semaine 2","Semaine 3","Piano suss CQ","Settimana 1","Settimana 2","Settimana 3","Preise Prix Prezzi","Vpf Art Genre Subs Tipi di suss"],"not_rendered":{"charts":0,"images":2,"macros":0,"external_links":0,"defined_names":6,"comments":0,"pivot_tables":0},"unopened":[],"bounds":{"document_bytes":16777216,"sheet_cells":100000,"run_cost":"one","rows_first":2000,"rows_last":500,"rows_between":2000,"halvings":0,"cell_chars":16384,"cell_head_chars":4096},"cells_cut":0,"cells_raw":0,"read":"whole","date_system":"1900"}

{"sheet":"Übersicht und Anleitung","index":0,"n_rows":27,"n_cols":19,"rows_kept":27,"cut":false,"hidden":false,"merged":[]}
["Verpflegungsplan Frühling / Plan de la subsistance printemps / Piano di sussistenza primavera",{"$nulls":17},"3003 Bern, 24.01.2023 / SCHOL"]
[]
["Übersicht Verpflegungsabrechnung / Vue ensemble décompte de la subsistance / Visione d'assieme conteggio della sussistenza"]
[]
["Woche\nSemaine\nSettimana","Kredit\nCrédit\nCredito\n","Verbrauch\nUtilisation\nUtilizzo\n","Saldo\nSolde\nSaldo"]
["KVK, CCV, CQ",{"$f":"'Verpflegungsplan KVK'!E85","v":6300},{"$f":"'Verpflegungsplan KVK'!E84","v":5557.9000000000005},{"$f":"B6-C6","v":742.09999999999945}]
[]
[1,{"$f":"'Woche 1'!E85","v":6300},{"$f":"'Woche 1'!E84","v":6166.6},{"$f":"B8-C8","v":133.39999999999964}]
[2,{"$f":"'Woche 2'!E85","v":6300},{"$f":"'Woche 2'!E84","v":6268.6},{"$f":"B9-C9","v":31.399999999999636}]
[3,{"$f":"'Woche 3'!E85","v":4500},{"$f":"'Woche 3'!E84","v":5378.2999999999993},-878.29999999999927]
["Total 1-3",null,null,{"$f":"SUM(D8:D10)","v":-713.5}]
[]
["Total Dienst",null,null,{"$f":"D6+D11","v":28.599999999999454}]
["Total service"]
["Total servizio"]
[{"$nulls":5},"Wochenbeginn eintragen"]
[null,null,"Tag","Woche",null,"Ajouter le début de la semaine"]
["Verpflegungskredit pro AdA",null,9,{"$f":"C18*7","v":63},null,"Inserire l'inizio della settimana"]
["Crédit de subsistance par mil",{"$nulls":4},"Einheit eintragen"]
["Credito suss ",{"$nulls":4},"Ajouter l'unité"]
[{"$nulls":5},"Inserire l'unità"]
[{"$nulls":5},"Besonderheit mit drop down auswählen (Prozentansatz im Register Vpf Art kann angepasst werden)"]
[{"$nulls":5},"Particularité: sélectionner avec drop down (pourcentage peut'être adapté en modifiant les besoins sous \"genre subs\")"]
[{"$nulls":5},"Particolarità da selezionare con drop down (percentuale da inserire e/o modificare nel resitro tipo di sussistenza)"]
[{"$nulls":5},"Achtung: der Blattschutz kann auf eigenes Risiko ohne Passwort aufgehoben werden"]
[{"$nulls":5},"Attention: la protection de la feuille peut'être supprimée sans mot de passe!"]
[{"$nulls":5},"Attenzione: la protezione del foglio di calcolo può essere rimossa senza password!"]

{"sheet":"Verpflegungsplan KVK","index":1,"n_rows":91,"n_cols":20,"rows_kept":91,"cut":false,"hidden":false,"merged":[[83,4,83,6],[84,4,84,6],[85,4,85,6],[0,18,0,19],[85,8,85,10],[85,13,85,15],[85,18,85,19],[2,1,2,5],[2,6,2,10],[2,11,2,15],[2,16,2,19],[82,4,82,6]]}
["Verpflegungsplan ",{"$nulls":5},"von:",null,"2018-04-30",null,null,"bis:",null,{"$f":"A73","v":"2018-05-06"},null,"Einheit"]
[]
[null,"Frühstück",{"$nulls":4},"Mittagessen",{"$nulls":4},"Nachtessen",{"$nulls":4},"Fleischlos"]
[null,"CCP","Visum",null,"Preis","Rezept","CCP","Visum",null,"Preis","Rezept","CCP","Visum",null,"Preis","Rezept","CCP","Visum",null,"Rezept"]
[null,null,null,"Normalbestand",{"$f":"VLOOKUP(D5,'Vpf Art Genre Subs Tipi di suss'!$A:$B,2,FALSE)","v":1},null,null,null,"Normalbestand",{"$f":"VLOOKUP(I5,'Vpf Art Genre Subs Tipi di suss'!$A:$B,2,FALSE)","v":1},null,null,null,"Normalbestand",{"$f":"VLOOKUP(N5,'Vpf Art Genre Subs Tipi di suss'!$A:$B,2,FALSE)","v":1},null,null,null,"Mittag"]
["Montag",{"$nulls":7},"Pastetli mit Fleischfüllung und Pilzen",2.33,923,null,null,"Bouillon mit Flädli 50 %",0.05,205,null,null,"Pastetli mit Pilzfüllung",923]
[{"$f":"I1","v":"2018-04-30"},{"$nulls":12},"Maccaroni mit Butter",0.27,617]
[{"$nulls":8},"Brot 100 g ",0.39,null,null,null,"Sauce Waluca",0.68,311]
[{"$nulls":13},"Rüeblisalat",0.61,812]
[{"$f":"SUM(O6:O15)*O5+SUM(J6:J15)*J5+SUM(E6:E15)*E5","v":7.08},{"$nulls":17},"Abend"]
[{"$nulls":18},"Maccaroni mit Butter",617]
[{"$nulls":18},"Tomatensauce",311]
[{"$nulls":8},"Süssgetränk 5 dl PET ",0.9,null,null,null,"Schwarztee 200 %",0.05,103]
["Snack",{"$nulls":7},"Militärschokolade 1 St",0.35,null,null,null,"Traubenzucker 1 St",0.15]
[{"$nulls":8},"Apfel 1 St",0.5,null,null,null,"Banane 1 St",0.8]
[null,null,null,"Normalbestand",{"$f":"VLOOKUP(D16,'Vpf Art Genre Subs Tipi di suss'!$A:$B,2,FALSE)","v":1},null,null,null,"Normalbestand",{"$f":"VLOOKUP(I16,'Vpf Art Genre Subs Tipi di suss'!$A:$B,2,FALSE)","v":1},null,null,null,"Normalbestand",{"$f":"VLOOKUP(N16,'Vpf Art Genre Subs Tipi di suss'!$A:$B,2,FALSE)","v":1},null,null,null,"Mittag"]
["Dienstag",null,null,"Kaffee in Portionen 50 %",0.2,null,null,null,"Tomatencremesuppe 50 %",0.13,208,null,null,"Bündnergerstensuppe 50 %",0.23,208,null,null,"Gemüsecurry"]
[{"$f":"A7+1","v":"2018-05-01"},null,null,"Kakao/Malzgetränk in Port 50 %",0.2,null,"*",null,"Currygeschnetzeltes Poulet",1.71,403,null,null,"Walliserrösti",2.34,903]
[null,null,null,"Brotsorten 100 g",0.39,null,null,null,"Gemüsereis",0.42,608,null,null,"Mischsalat Frühling",0.46]
[null,null,null,"Butter Port 20 g",0.44,{"$nulls":8},"Balsamico Salatsauce 30 g",0.05]
[{"$f":"SUM(O17:O26)*O16+SUM(J17:J26)*J16+SUM(E17:E26)*E16","v":10.14},null,null,"Konfitüre/Nussaufstrich 1",0.17,{"$nulls":13},"Abend"]
[null,null,null,"Orangensaft 1 dl",0.14000000000000001,{"$nulls":8},"Schoggicreme",0.42,1107,null,null,"Vegirösti mit Spiegelei",903]
[]
[null,null,null,"Käse divers 30 g",0.54,null,null,null,"Apfel-Pfirsichtee 200 %",0.1,100,null,null,"Apfel-Pfirsichtee 200 %",0.1,100]
["Snack",{"$nulls":7},"Militärbisquit 1 St",0.55000000000000004,null,null,null,"Leckerli 1 St",0.55000000000000004]
[{"$nulls":8},"Birne 1 St",0.6,null,null,null,"Orange 1 St",0.4]
[null,null,null,"Normalbestand",{"$f":"VLOOKUP(D27,'Vpf Art Genre Subs Tipi di suss'!$A:$B,2,FALSE)","v":1},null,null,null,"Normalbestand",{"$f":"VLOOKUP(I27,'Vpf Art Genre Subs Tipi di suss'!$A:$B,2,FALSE)","v":1},null,null,null,"Fakultatives Nachtessen",{"$f":"VLOOKUP(N27,'Vpf Art Genre Subs Tipi di suss'!$A:$B,2,FALSE)","v":0.3},null,null,null,"Mittag"]
["Mittwoch",null,null,"Kaffee in Portionen 50 %",0.2,null,null,null,"Bouillon mit Backerbsen 50 %",0.05,205,null,null,"Gemüsepüreesuppe 50 %",0.2,208,null,null,"Emmentaler Quornvoressen",427]
[{"$f":"A18+1","v":"2018-05-02"},null,null,"Kakao/Malzgetränk in Port 50 %",0.2,null,"*",null,"Emmentaler Pouletvoressen",2.44,427,null,null,"Spaghetti mit Butter",0.27,617]
[null,null,null,"Brotsorten 100 g",0.39,null,null,null,"Kartoffelstock",0.53,606,null,null,"Sauce Carbonara",2.08,906]
[null,null,null,"Butter Port 20 g",0.44,null,null,null,"Bohnen gedünstet",0.5,704]
[{"$f":"SUM(O28:O37)*O27+SUM(J28:J37)*J27+SUM(E28:E37)*E27","v":7.9779999999999998},null,null,"Konfitüre/Nussaufstrich 1",0.17,{"$nulls":8},"Mischsalat Frühling",0.46,null,null,null,"Abend"]
[null,null,null,"Orangensaft 1 dl",0.14000000000000001,{"$nulls":8},"Franz Salatsauce 30 g",0.05,null,null,null,"Spaghetti mit Butter",617]
[{"$nulls":18},"Pesto CF4 20g"]
[null,null,null,"Aufschnitt  50 g",0.6,null,null,null,"Himbeer-Erdbeertee 200 %",0.1,100,null,null,"Himbeer-Erdbeertee 200 %",0.1,100]
["Snack",{"$nulls":7},"Getreideriegel Frucht 1 St",0.2,null,null,null,"Swiss Choco Bits 1 St",0.4]
[{"$nulls":8},"Banane 1 St",0.8,null,null,null,"Apfel 1 St",0.5]
[null,null,null,"Normalbestand",{"$f":"VLOOKUP(D38,'Vpf Art Genre Subs Tipi di suss'!$A:$B,2,FALSE)","v":1},null,null,null,"Normalbestand",{"$f":"VLOOKUP(I38,'Vpf Art Genre Subs Tipi di suss'!$A:$B,2,FALSE)","v":1},null,null,null,"Normalbestand",{"$f":"VLOOKUP(N38,'Vpf Art Genre Subs Tipi di suss'!$A:$B,2,FALSE)","v":1},null,null,null,"Mittag"]
["Donnerstag",null,null,"Kaffee in Portionen 50 %",0.2,null,null,null,"Gemüsesuppe Bauernart 50 %",0.25,204,null,null,"Bouillon mit Knoblauchcroutons 50 %",0.05,205,null,null,"Griessschnitte mit Gemüse",603]
[{"$f":"A29+1","v":"2018-05-03"},null,null,"Kakao/Malzgetränk in Port 50 %",0.2,null,"*",null,"Kalbsrollbraten",3.2,422,"*",null,"Mah-Meh mit Schwein",3.47,919,null,null,"und mit Käse überbacken"]
[null,null,null,"Brotsorten 100 g",0.39,null,null,null,"Griessschnitte",0.73,603]
[null,null,null,"Butter Port 20 g",0.44,null,null,null,"Spinat gedünstet",0.73,704]
[{"$f":"SUM(O39:O48)*O38+SUM(J39:J48)*J38+SUM(E39:E48)*E38","v":13.379999999999999},null,null,"Konfitüre/Nussaufstrich 1",0.17,{"$nulls":13},"Abend"]
[null,null,null,"Orangensaft 1 dl",0.14000000000000001,{"$nulls":8},"Apfelkuchen",0.86,0,null,null,"Gebratene Spaghetti mit "]
[{"$nulls":18},"Gemüse und Ei"]
[null,null,null,"Birchermüesli 30 %",0.5,904,null,null,"Fruchtschalentee 200 %",0.1,100,null,null,"Fruchtschalentee 200 %",0.1,100]
["Snack",{"$nulls":7},"Bretzeli 1 St",0.55000000000000004,null,null,null,"Getreideriegel Honig 1 St",0.2]
[{"$nulls":8},"Apfel 1 St",0.5,null,null,null,"Birne 1 St",0.6]
[null,null,null,"Normalbestand",{"$f":"VLOOKUP(D49,'Vpf Art Genre Subs Tipi di suss'!$A:$B,2,FALSE)","v":1},null,null,null,"Normalbestand",{"$f":"VLOOKUP(I49,'Vpf Art Genre Subs Tipi di suss'!$A:$B,2,FALSE)","v":1},null,null,null,"Leistungsabtreten",{"$f":"VLOOKUP(N49,'Vpf Art Genre Subs Tipi di suss'!$A:$B,2,FALSE)","v":0.75},null,null,null,"Mittag"]
["Freitag",null,null,"Kaffee in Portionen 50 %",0.2,null,null,null,"Bouillon mit Ei 50 %",0.05,205,null,null,"Brotsuppe 50 %",0.12,206,null,null,"Zucchettipiccata"]
[{"$f":"A40+1","v":"2018-05-04"},null,null,"Kakao/Malzgetränk in Port 50 %",0.2,null,"*",null,"Pangasiusfilet im Backteig",2.33,501,null,null,"Käse-Zwiebelkuchen",3.09,915]
[null,null,null,"Brotsorten 100 g",0.39,null,null,null,"Remouladensauce",0.34,309,null,null,"Weisskabissalat 50 %",0.27,805]
[null,null,null,"Butter Port 20 g",0.44,null,null,null,"Salzkartoffeln",0.68,613,null,null,"Randensalat 50 %",0.15,810]
[{"$f":"SUM(O50:O59)*O49+SUM(J50:J59)*J49+SUM(E50:E59)*E49","v":11.8675},null,null,"Konfitüre/Nussaufstrich 1",0.17,null,null,null,"Zucchetti gedünstet",0.75,704,null,null,"Mischsalat Frühling 30 %",0.15,null,null,null,"Abend"]
[null,null,null,"Orangensaft 1 dl",0.14000000000000001,{"$nulls":8},"Franz Salatsauce 30 g",0.05,null,null,null,"Käse-Zwiebelkuchen",915]
[{"$nulls":8},"Bananecake",0.57999999999999996,1105]
[null,null,null,"Joghurt Frucht Port 100 g",0.5,null,null,null,"Hausgemachter Eisttee 200%",0.1,100,null,null,"Hausgemachter Eisttee 200%",0.1,100]
["Snack",{"$nulls":7},"Cracker 1 St",0.6,null,null,null,"Malzriegel 1 St ",0.6]
[{"$nulls":8},"Orange 1 St",0.4,null,null,null,"Banane 1 St",0.8]
[null,null,null,"Leistungsabtreten",{"$f":"VLOOKUP(D60,'Vpf Art Genre Subs Tipi di suss'!$A:$B,2,FALSE)","v":0.75},null,null,null,"Sonntagswache",{"$f":"VLOOKUP(I60,'Vpf Art Genre Subs Tipi di suss'!$A:$B,2,FALSE)","v":0.1},null,null,null,"Sonntagswache",{"$f":"VLOOKUP(N60,'Vpf Art Genre Subs Tipi di suss'!$A:$B,2,FALSE)","v":0.1},null,null,null,"Mittag"]
["Samstag",null,null,"Kaffee in Portionen 50 %",0.2,null,"*",null,"Schweinekotelett gebraten mit",3.24,null,null,null,"Pizza mit Schinken ",4.1399999999999997,924,null,null,"Quornschnitzel mit Gemüse"]
[{"$f":"A51+1","v":"2018-05-05"},null,null,"Kakao/Malzgetränk in Port 50 %",0.2,null,null,null,"Kräuterbutter",{"$nulls":4},"Rüeblisalat 50 %",0.3,812]
[null,null,null,"Zopf 100 g",1.35,null,null,null,"Bratkartoffeln",0.96,600,null,null,"Maissalat 50 %",0.25,808]
[null,null,null,"Butter Port 20 g",0.44,null,null,null,"Broccoli mit Mandeln",1.27,703,null,null,"Mischsalat Frühling 30 %",0.15]
[{"$f":"SUM(O61:O70)*O60+SUM(J61:J70)*J60+SUM(E61:E70)*E60","v":3.4634999999999998},null,null,"Konfitüre/Nussaufstrich 1",0.17,{"$nulls":8},"Balsamico Salatsauce 30 g",0.05,null,null,null,"Abend"]
[null,null,null,"Orangensaft 1 dl",0.14000000000000001,{"$nulls":13},"Pizza Calzone mit Ei",808]
[]
[null,null,null,"Salami 50 g",0.51,null,null,null,"Himbeer-Erdbeertee 200%",0.1,100,null,null,"Himbeer-Erdbeertee 200%",0.1,100]
["Snack",{"$nulls":7},"Militärbiscuit 1 St",0.35,null,null,null,"Traubenzucker 1 St",0.15]
[{"$nulls":8},"Birne 1 St",0.6,null,null,null,"Orange 1 St",0.4]
[null,null,null,"Sonntagswache",{"$f":"VLOOKUP(D71,'Vpf Art Genre Subs Tipi di suss'!$A:$B,2,FALSE)","v":0.1},null,null,null,"Sonntagswache",{"$f":"VLOOKUP(I71,'Vpf Art Genre Subs Tipi di suss'!$A:$B,2,FALSE)","v":0.1},null,null,null,"Sonntagswache",{"$f":"VLOOKUP(N71,'Vpf Art Genre Subs Tipi di suss'!$A:$B,2,FALSE)","v":0.1},null,null,null,"Mittag"]
["Sonntag",null,null,"Kaffee in Portionen 50 %",0.2,null,"*",null,"Gebratenes halbes Poulet",4.34,null,null,null,"Café complet",3.93,null,null,null,"Meditarenes Gemüse aus "]
[{"$f":"A62+1","v":"2018-05-06"},null,null,"Kakao/Malzgetränk in Port 50 %",0.2,null,null,null,"mit Saucen",{"$nulls":9},"dem Ofen "]
[null,null,null,"Zopf 100 g",1.35,null,null,null,"Pommes Chips CF4",1.18,{"$nulls":8},"mit Mozzarella und Basilikum"]
[null,null,null,"Butter Port 20 g",0.44,null,null,null,"Berliner CF4 1 St",1.7]
[{"$f":"SUM(O72:O81)*O71+SUM(J72:J81)*J71+SUM(E72:E81)*E71","v":1.6699999999999997},null,null,"Konfitüre/Nussaufstrich 1",0.17,{"$nulls":13},"Abend"]
[null,null,null,"Orangensaft 1 dl",0.14000000000000001,{"$nulls":13},"Café complet"]
[null,null,null,"Rösti 50 %",0.25,612]
[null,null,null,"Spiegelei 1 St",0.5,null,null,null,"Schwarztee 200 %",0.1,103,null,null,"Schwarztee 200 %",0.1,103]
["Snack",{"$nulls":7},"Bretzeli 1 St",0.6,null,null,null,"Getreideriegel Frucht 1 St",0.2]
[{"$nulls":8},"Apfel 1 St",0.5,null,null,null,"Banane 1 St",0.8]
[]
["Verpflegungsabrechnung",{"$nulls":7},"Die Richtigkeit bescheinigt:",{"$nulls":4},"Für die fachliche Richtigkeit:",{"$nulls":4},"Genehmigung:"]
["Verbrauch gem Vpf Plan",null,null,null,{"$f":"(A10+A21+A32+A43+A54+A65+A76)*100","v":5557.9000000000005},null,null,null,"Der Rechnungsführer",{"$nulls":4},"Quartiermeister",{"$nulls":4},"Der Kommandant"]
["Vpf Kredit ",null,null,null,{"$f":"'Übersicht und Anleitung'!D18*100","v":6300}]
["Saldo",null,null,null,{"$f":"E85-E84","v":742.09999999999945}]
[]
["Herkunftsdeklaration Fleisch, Milch, Eier: Alle Fleisch /-erzeugnisse, Milch /-Milchprodukte und Eier stammen aus der Schweiz "]
["Herkunftsdeklaration Fisch und Meerestiere: Alle Fische und Meerestiere stammen aus der Schweiz oder sind mit dem Label ASC / MSC oder FOS versehen."]
["Deklaration von Zutaten / allergenen Stoffen (LKV Art. 8): Bei Fragen betreffend allergenen Zutaten kann der Küchenchef Auskunft geben."]
["Lenkungspunkte: Diese sind mit * gekennzeichnet. Nach der Umsetzung sind sie mittels Visum zu bestätigen (vgl Regl 06.006 Kochrezepte, Seiten 21  und ff Rezepte)."]

{"sheet":"Woche 1","index":2,"n_rows":91,"n_cols":20,"rows_kept":91,"cut":false,"hidden":false,"merged":[[83,4,83,6],[84,4,84,6],[85,4,85,6],[0,18,0,19],[2,1,2,5],[2,6,2,10],[2,11,2,15],[2,16,2,19],[82,4,82,6]]}
["Verpflegungsplan ",{"$nulls":5},"von:",null,"2018-05-07",null,null,"bis:",null,{"$f":"A73","v":"2018-05-13"},null,"Einheit"]
[]
[null,"Frühstück",{"$nulls":4},"Mittagessen",{"$nulls":4},"Nachtessen",{"$nulls":4},"Fleischlos"]
[null,"CCP","Visum",null,"Preis","Rezept","CCP","Visum",null,"Preis","Rezept","CCP","Visum",null,"Preis","Rezept","CCP","Visum",null,"Rezept"]
[null,null,null,"Sonntagswache",{"$f":"VLOOKUP(D5,'Vpf Art Genre Subs Tipi di suss'!$A:$B,2,FALSE)","v":0.1},null,null,null,"Normalbestand",{"$f":"VLOOKUP(I5,'Vpf Art Genre Subs Tipi di suss'!$A:$B,2,FALSE)","v":1},null,null,null,"Normalbestand",{"$f":"VLOOKUP(N5,'Vpf Art Genre Subs Tipi di suss'!$A:$B,2,FALSE)","v":1},null,null,null,"Mittag"]
["Montag",null,null,"Kaffee in Portionen 50 %",0.2,null,null,null,"Bouillon mit Backerbsen 50 %",0.05,205,null,null,"Curryrahmsuppe 50 %",0.1,212,null,null,"Spinatravioli mit Käse",824]
[{"$f":"I1","v":"2018-05-07"},null,null,"Kakao/Malzgetränk in Port 50 %",0.2,null,null,null,"Ravioli",1,926,"*",null,"Pouletschenkel geschmort",2.37]
[null,null,null,"Brotsorten 100 g",0.39,null,null,null,"Reibkäse 20 g",0.25,null,null,null,"an Rotweinsauce"]
[null,null,null,"Butter Port 20 g",0.44,null,null,null,"Mischsalat Frühling",0.46,null,null,null,"Lyoner Kartoffeln",1,600]
[{"$f":"SUM(O6:O15)*O5+SUM(J6:J15)*J5+SUM(E6:E15)*E5","v":8.5530000000000008},null,null,"Konfitüre/Nussaufstrich 1",0.17,null,null,null,"Franz Salatsauce 30 g",0.05,null,null,null,"Blattspinat gedünstet",0.73,704,null,null,"Abend"]
[null,null,null,"Orangensaft 1 dl",0.14000000000000001,{"$nulls":13},"Kartoffel-Gemüseauflauf",700]
[null,null,null,"Frühstücksmüesli 30 g",0.25]
[null,null,null,"Käse divers 30 g",0.54,null,null,null,"Apfel-Pfirsichtee 200 %",0.13,null,null,null,"Apfel-Pfirsichtee 200 %",0.13]
["Snack",{"$nulls":7},"Nussmischung assortiert 1 St",0.6,null,null,null,"Traubenzucker 1 St",0.15]
[{"$nulls":8},"Apfel 1 St",0.5,null,null,null,"Banane 1 St",0.8]
[null,null,null,"Normalbestand",{"$f":"VLOOKUP(D16,'Vpf Art Genre Subs Tipi di suss'!$A:$B,2,FALSE)","v":1},null,null,null,"Normalbestand",{"$f":"VLOOKUP(I16,'Vpf Art Genre Subs Tipi di suss'!$A:$B,2,FALSE)","v":1},null,null,null,"Normalbestand",{"$f":"VLOOKUP(N16,'Vpf Art Genre Subs Tipi di suss'!$A:$B,2,FALSE)","v":1},null,null,null,"Mittag"]
["Dienstag",null,null,"Kaffee in Portionen 50 %",0.2,null,null,null,"Gemüsecremesuppe 50 %",0.2,208,null,null,"Bouillon mit Flädli 50 %",0.05,205,null,null,"Quorngeschnetzeltes mit",406]
[{"$f":"A7+1","v":"2018-05-08"},null,null,"Kakao/Malzgetränk in Port 50 %",0.2,null,"*",null,"Schweinsgeschnetzeltes",2.0499999999999998,406,null,null,"Appenzeller Chäs-Tschoppe",2.38,901,null,null,"Peperoni"]
[null,null,null,"Brotsorten 100 g",0.39,null,null,null,"mit Peperoni",{"$nulls":4},"Mischsalat Frühling",0.46]
[null,null,null,"Butter Port 20 g",0.44,null,null,null,"Risi-Bisi",0.48,608,null,null,"Franz Salatsauce 30 g",0.05]
[{"$f":"SUM(O17:O26)*O16+SUM(J17:J26)*J16+SUM(E17:E26)*E16","v":11.759999999999998},null,null,"Konfitüre/Nussaufstrich 1",0.17,null,null,null,"Kohlraben gedünstet",1.08,704,{"$nulls":7},"Abend"]
[null,null,null,"Orangensaft 1 dl",0.14000000000000001,{"$nulls":8},"Schokoladencreme",0.42,1007,null,null,"Appenzeller Chäs-Tschoppe",901]
[null,null,null,"Frühstücksmüesli 30 g",0.25]
[null,null,null,"Joghurt Port 100 g",0.5,null,null,null,"Apfel-Pfirsichtee 200 %",0.1,100,null,null,"Apfel-Pfirsichtee 200 %",0.1,100]
["Snack",{"$nulls":7},"Militärbiscuit 1",0.55000000000000004,null,null,null,"Leckerli 1 St",0.55000000000000004]
[{"$nulls":8},"Birne 1 St",0.6,null,null,null,"Orange 1 St",0.4]
[null,null,null,"Normalbestand",{"$f":"VLOOKUP(D27,'Vpf Art Genre Subs Tipi di suss'!$A:$B,2,FALSE)","v":1},null,null,null,"Normalbestand",{"$f":"VLOOKUP(I27,'Vpf Art Genre Subs Tipi di suss'!$A:$B,2,FALSE)","v":1},null,null,null,"Fakultatives Nachtessen",{"$f":"VLOOKUP(N27,'Vpf Art Genre Subs Tipi di suss'!$A:$B,2,FALSE)","v":0.3},null,null,null,"Mittag"]
["Mittwoch",null,null,"Kaffee in Portionen 50 %",0.2,null,null,null,"Pürierte Selleriesuppe 50 %",0.24,208,null,null,"Spaghetti mit Butter",0.27,617,null,null,"Kartoffelstock gratiniert ",604]
[{"$f":"A18+1","v":"2018-05-09"},null,null,"Kakao/Malzgetränk in Port 50 %",0.2,null,"*",null,"Pouletvoressen",2.8,406,null,null,"Tomatensauce mit Thon",0.28999999999999998,311,null,null,"mit Käse"]
[null,null,null,"Brotsorten 100 g",0.39,null,null,null,"mit Kräutern"]
[null,null,null,"Butter Port 20 g",0.44,null,null,null,"Kartoffelstock mit Safran",0.55000000000000004,606,null,null,"Mischsalat Frühling 30 %",0.15]
[{"$f":"SUM(O28:O37)*O27+SUM(J28:J37)*J27+SUM(E28:E37)*E27","v":9.7769999999999992},null,null,"Konfitüre/Nussaufstrich 1",0.17,null,null,null,"Grüner Spargel gedünstet",2.17,604,null,null,"Weisskabissalt 30 %",0.18,805,null,null,"Abend"]
[null,null,null,"Orangensaft 1 dl",0.14000000000000001,{"$nulls":8},"Maissalat 30 %",0.15,808,null,null,"Spaghetti mit Butter",617]
[null,null,null,"Frühstücksmüesli 30 g",0.25,{"$nulls":8},"Balsamico Salatsauce 30 g",0.05,null,null,null,"Rahm-Käsesauce",308]
[null,null,null,"Birchermüesli",0.5,804,null,null,"Himbeer-Erdbeertee 200 %",0.1,100,null,null,"Himbeer-Erdbeertee 200 %",0.1,100]
["Snack",{"$nulls":7},"Getreideriegel Honig 1 St",0.2,null,null,null,"Swiss Choco Bits 1 St",0.4]
[{"$nulls":8},"Banane 1 St",0.8,null,null,null,"Apfel 1 St",0.5]
[null,null,null,"Normalbestand",{"$f":"VLOOKUP(D38,'Vpf Art Genre Subs Tipi di suss'!$A:$B,2,FALSE)","v":1},null,null,null,"Normalbestand",{"$f":"VLOOKUP(I38,'Vpf Art Genre Subs Tipi di suss'!$A:$B,2,FALSE)","v":1},null,null,null,"Normalbestand",{"$f":"VLOOKUP(N38,'Vpf Art Genre Subs Tipi di suss'!$A:$B,2,FALSE)","v":1},null,null,null,"Mittag"]
["Donnerstag",null,null,"Kaffee in Portionen 50 %",0.2,null,null,null,"Spargelcremesuppe 50 %",0.51,208,null,null,"Thurgauer Moschtsuppe 50 %",0.33,1107,null,null,"Kartoffelstock mit Gemüse"]
[{"$f":"A29+1","v":"2018-05-10"},null,null,"Kakao/Malzgetränk in Port 50 %",0.2,null,"*",null,"Rindfleischvogel geschmort",3.28,null,"*",null,"Chippolata vom Schwein mit",1.28,null,null,null,"und Käse überbacken"]
[null,null,null,"Brotsorten 100 g",0.39,null,null,null,"Ofentori",1.1599999999999999,604,null,null,"Kräutersauce",0.19,308]
[null,null,null,"Butter Port 20 g",0.44,null,null,null,"Rüebli gedünstet",0.49,704,null,null,"Tomatenrisotto",0.6,611]
[{"$f":"SUM(O39:O48)*O38+SUM(J39:J48)*J38+SUM(E39:E48)*E38","v":14.91},null,null,"Konfitüre/Nussaufstrich 1",0.17,{"$nulls":8},"Peperoni im Ofen",0.81,706,null,null,"Abend"]
[null,null,null,"Orangensaft 1 dl",0.14000000000000001,null,null,null,"Country Cake",0.82,1105,{"$nulls":7},"Tomatenrisotto ",611]
[null,null,null,"Frühstücksmüesli 30 g",0.25]
[null,null,null,"Aufschnitt 50 g",0.6,null,null,null,"Fruchtschalentee 200 %",0.1,100,null,null,"Fruchtschalentee 200 %",0.1,100]
["Snack",{"$nulls":7},"Cracker 1 St",0.6,null,null,null,"Fleischkonserve 1 St",1.25]
[{"$nulls":8},"Orange 1 St",0.4,null,null,null,"Birne 1 St",0.6]
[null,null,null,"Normalbestand",{"$f":"VLOOKUP(D49,'Vpf Art Genre Subs Tipi di suss'!$A:$B,2,FALSE)","v":1},null,null,null,"Normalbestand",{"$f":"VLOOKUP(I49,'Vpf Art Genre Subs Tipi di suss'!$A:$B,2,FALSE)","v":1},null,null,null,"Leistungsabtreten",{"$f":"VLOOKUP(N49,'Vpf Art Genre Subs Tipi di suss'!$A:$B,2,FALSE)","v":0.75},null,null,null,"Mittag"]
["Freitag",null,null,"Kaffee in Portionen 50 %",0.2,null,null,null,"Bouillon mit Backerbsen 50 %",0.05,205,null,null,"Asiatisch scharf-saure Suppe 50 %",0.21,202,null,null,"Gemüsecurry mit "]
[{"$f":"A40+1","v":"2018-05-11"},null,null,"Kakao/Malzgetränk in Port 50 %",0.2,null,"*",null,"Fischgratin mit Pangasius",2.64,507,"*",null,"Bami Goreng",4.37,922,null,null,"Kichererbsen"]
[null,null,null,"Brotsorten 100 g",0.39,null,null,null,"auf Spinat",{"$nulls":4},"Mischsalat Frühling",0.46]
[null,null,null,"Butter Port 20 g",0.44,null,null,null,"Gemüsereis",0.42,608,null,null,"Franz Salatsauce 30 g",0.05]
[{"$f":"SUM(O50:O59)*O49+SUM(J50:J59)*J49+SUM(E50:E59)*E49","v":12.147500000000001},null,null,"Konfitüre/Nussaufstrich 1",0.17,null,null,null,"Gratinierter Fenchel ",0.77,705,{"$nulls":7},"Abend"]
[null,null,null,"Orangensaft 1 dl",0.14000000000000001,{"$nulls":8},"Russenzopf",0.61,1114,null,null,"Gebratene Spaghetti ",617]
[null,null,null,"Frühstücksmüesli 30 g",0.25,{"$nulls":13},"mit Quorn und Gemüse"]
[null,null,null,"Käse divers 30 g ",0.54,null,null,null,"Hausgemachter Eistee 200%",0.1,100,null,null,"Hausgemachter Eistee 200%",0.1,100]
["Snack",{"$nulls":7},"Fruchtmischung ass 1 St",0.35,null,null,null,"Malzriegel 1 St",0.45]
[{"$nulls":8},"Apfel 1 St",0.5,null,null,null,"Orange 1 St",0.4]
[null,null,null,"Leistungsabtreten",{"$f":"VLOOKUP(D60,'Vpf Art Genre Subs Tipi di suss'!$A:$B,2,FALSE)","v":0.75},null,null,null,"Sonntagswache",{"$f":"VLOOKUP(I60,'Vpf Art Genre Subs Tipi di suss'!$A:$B,2,FALSE)","v":0.1},null,null,null,"Sonntagswache",{"$f":"VLOOKUP(N60,'Vpf Art Genre Subs Tipi di suss'!$A:$B,2,FALSE)","v":0.1},null,null,null,"Mittag"]
["Samstag",null,null,"Kaffee in Portionen 50 %",0.2,null,"*",null,"Schweinshaxen Cremolata",2.91,null,null,null,"Käse-Zwiebelkuchen",3.09,915,null,null,"Kartoffelgocchi mit Zucchetti "]
[{"$f":"A51+1","v":"2018-05-12"},null,null,"Kakao/Malzgetränk in Port 50 %",0.2,null,null,null,"Kartoffelgnocchi",0.68,null,null,null,"Randensalat 30 %",0.1,812,null,null,"und Frischkäse"]
[null,null,null,"Brotsorten 100 g",0.39,null,null,null,"Zucchetti gedünstet",0.75,704,null,null,"Rüeblisalat 30 %",0.12,810]
[null,null,null,"Butter Port 20 g",0.44,{"$nulls":8},"Maissalat 30 %",0.15,808]
[{"$f":"SUM(O61:O70)*O60+SUM(J61:J70)*J60+SUM(E61:E70)*E60","v":2.9125000000000001},null,null,"Konfitüre/Nussaufstrich 1",0.17,null,null,null,"Nussgipfel CF4 1 St",1.2,null,null,null,"Mischsalat Frühling 30 %",0.15,null,null,null,"Abend"]
[null,null,null,"Orangensaft 1 dl",0.14000000000000001,{"$nulls":8},"balsamico Salatsauce 30 g",0.05,null,null,null,"Käse-Zwiebelkuchen",915]
[null,null,null,"Frühstücksmüesli 30 g",0.25]
[null,null,null,"Aufschnitt 50 g",0.6,null,null,null,"Apfel-Pfirsichttee",0.1,100,null,null,"Apfel-Pfirsichttee",0.1,100]
["Snack",{"$nulls":7},"Militärbisquit 1 St",0.55000000000000004,null,null,null,"Traubenzucker 1 St",0.15]
[{"$nulls":8},"Birne 1 St",0.6,null,null,null,"Apfel 1 St",0.5]
[null,null,null,"Sonntagswache",{"$f":"VLOOKUP(D71,'Vpf Art Genre Subs Tipi di suss'!$A:$B,2,FALSE)","v":0.1},null,null,null,"Sonntagswache",{"$f":"VLOOKUP(I71,'Vpf Art Genre Subs Tipi di suss'!$A:$B,2,FALSE)","v":0.1},null,null,null,"Sonntagswache",{"$f":"VLOOKUP(N71,'Vpf Art Genre Subs Tipi di suss'!$A:$B,2,FALSE)","v":0.1},null,null,null,"Mittag"]
["Sonntag",null,null,"Kaffee in Portionen 50 %",0.2,null,"*",null,"Lammgigot mit Kräuterkruste",4.45,422,null,null,"Café complet",3.93,null,null,null,"Bäckerinnenkartoffeln",600]
[{"$f":"A62+1","v":"2018-05-13"},null,null,"Kakao/Malzgetränk in Port 50 %",0.2,null,null,null,"Thymianjus",{"$nulls":9},"mit Spiegelei"]
[null,null,null,"Zopf 100 g",1.35,null,null,null,"Bäckerinnenkartoffeln",1,600]
[null,null,null,"Butter Port 20 g",0.44,null,null,null,"Bohnen geschmort",0.54,604]
[{"$f":"SUM(O72:O81)*O71+SUM(J72:J81)*J71+SUM(E72:E81)*E71","v":1.6060000000000001},null,null,"Konfitüre/Nussaufstrich 1",0.17,null,null,null,"Vanilleglace 50 g",0.49,{"$nulls":8},"Abend"]
[null,null,null,"Orangensaft 1 dl",0.14000000000000001,null,null,null,"Schoggisauce 30 g",0.1,{"$nulls":8},"Café complet"]
[null,null,null,"Rösti 50 %",0.25,612]
[null,null,null,"Spiegelei 1 St",0.5,null,null,null,"Schwarztee 200 %",0.1,103,null,null,"Schwarztee 200 %",0.1,103]
["Snack",{"$nulls":7},"Bretzeli 1 St",0.6,null,null,null,"Getreideriegel Frucht 1 St",0.2]
[{"$nulls":8},"Apfel 1 St",0.5,null,null,null,"Banane 1 St",0.8]
[]
["Verpflegungsabrechnung",{"$nulls":7},"Die Richtigkeit bescheinigt:",{"$nulls":4},"Für die fachliche Richtigkeit:",{"$nulls":4},"Genehmigung:"]
["Verbrauch gem Vpf Plan",null,null,null,{"$f":"(A10+A21+A32+A43+A54+A65+A76)*100","v":6166.6},null,null,null,"Der Rechnungsführer",{"$nulls":4},"Quartiermeister",{"$nulls":4},"Der Kommandant"]
["Vpf Kredit ",null,null,null,{"$f":"'Übersicht und Anleitung'!D18*100","v":6300},null,null,null," "]
["Saldo",null,null,null,{"$f":"E85-E84","v":133.39999999999964}]
[]
["Herkunftsdeklaration Fleisch, Milch, Eier: Alle Fleisch /-erzeugnisse, Milch /-Milchprodukte und Eier stammen aus der Schweiz "]
["Herkunftsdeklaration Fisch und Meerestiere: Alle Fische und Meerestiere stammen aus der Schweiz oder sind mit dem Label ASC / MSC oder FOS versehen."]
["Deklaration von Zutaten / allergenen Stoffen (LKV Art. 8): Bei Fragen betreffend allergenen Zutaten kann der Küchenchef Auskunft geben."]
["Lenkungspunkte: Diese sind mit * gekennzeichnet. Nach der Umsetzung sind sie mittels Visum zu bestätigen (vgl Regl 06.006 Kochrezepte, Seiten 21  und ff Rezepte)."]

{"sheet":"Woche 2","index":3,"n_rows":91,"n_cols":20,"rows_kept":91,"cut":false,"hidden":false,"merged":[[83,4,83,6],[84,4,84,6],[85,4,85,6],[0,18,0,19],[2,1,2,5],[2,6,2,10],[2,11,2,15],[2,16,2,19],[82,4,82,6]]}
["Verpflegungsplan ",{"$nulls":5},"von:",null,"2018-05-14",null,null,"bis:",null,{"$f":"A73","v":"2018-05-20"},null,"Einheit"]
[]
[null,"Frühstück",{"$nulls":4},"Mittagessen",{"$nulls":4},"Nachtessen",{"$nulls":4},"Fleischlos"]
[null,"CCP","Visum",null,"Preis","Rezept","CCP","Visum",null,"Preis","Rezept","CCP","Visum",null,"Preis","Rezept","CCP","Visum",null,"Rezept"]
[null,null,null,"Normalbestand",{"$f":"VLOOKUP(D5,'Vpf Art Genre Subs Tipi di suss'!$A:$B,2,FALSE)","v":1},null,null,null,"Normalbestand",{"$f":"VLOOKUP(I5,'Vpf Art Genre Subs Tipi di suss'!$A:$B,2,FALSE)","v":1},null,null,null,"Normalbestand",{"$f":"VLOOKUP(N5,'Vpf Art Genre Subs Tipi di suss'!$A:$B,2,FALSE)","v":1},null,null,null,"Mittag"]
["Montag",null,null,"Kaffee in Portionen 50 %",0.2,null,null,null,"Bouillon mit Fideli 50%",0.05,205,null,null,"Gemüsesuppe Bauernart 50 %",0.25,204,null,null,"Älplermakkaronen",900]
[{"$f":"I1","v":"2018-05-14"},null,null,"Kakao/Malzgetränk in Port 50 %",0.2,null,null,null,"Älplermakkaraonen",1.94,900,"*",null,"Schweinsbratwurst mit",2.52]
[null,null,null,"Brotsorten 100 g",0.39,null,null,null,"Apfelkompott",0.57999999999999996,1109,null,null,"Zwiebelsauce 50 %",0.2,301]
[null,null,null,"Butter Port 20 g",0.44,null,null,null,"Mischsalat Frühling",0.46,null,null,null,"Rösti",0.49,612]
[{"$f":"SUM(O6:O15)*O5+SUM(J6:J15)*J5+SUM(E6:E15)*E5","v":11.99},null,null,"Konfitüre/Nussaufstrich 1",0.17,null,null,null,"Balsamico Salatsauce 30 g",0.05,null,null,null,"Kräutertomate",0.5,707,null,null,"Abend"]
[null,null,null,"Orangensaft 1 dl",0.14000000000000001,{"$nulls":8},"Leckerlicreme",0.56000000000000005,1107,null,null,"Rösti mit Spiegelei",612]
[null,null,null,"Frühstücksmüesli 30 g",0.25]
[null,null,null,"Käse divers 30 g",0.54,null,null,null,"Apfel-Pfirsichtee 200 %",0.13,null,null,null,"Apfel-Pfirsichtee 200 %",0.13]
["Snack",{"$nulls":7},"Militärschokolade 1 St",0.35,null,null,null,"Traubenzucker 1 St",0.15]
[{"$nulls":8},"Apfel 1 St",0.5,null,null,null,"Banane 1 St",0.8]
[null,null,null,"Normalbestand",{"$f":"VLOOKUP(D16,'Vpf Art Genre Subs Tipi di suss'!$A:$B,2,FALSE)","v":1},null,null,null,"Normalbestand",{"$f":"VLOOKUP(I16,'Vpf Art Genre Subs Tipi di suss'!$A:$B,2,FALSE)","v":1},null,null,null,"Normalbestand",{"$f":"VLOOKUP(N16,'Vpf Art Genre Subs Tipi di suss'!$A:$B,2,FALSE)","v":1},null,null,null,"Mittag"]
["Dienstag",null,null,"Kaffee in Portionen 50 %",0.2,null,null,null,"Zucchetticremesuppe 50 %",0.2,208,null,null,"Bouillon mit Croutons 50 %",0.05,205,null,null,"Kartoffelstock gratiniert",606]
[{"$f":"A7+1","v":"2018-05-15"},null,null,"Kakao/Malzgetränk in Port 50 %",0.2,null,"*",null,"Schweinshalsbraten",2.67,422,"*",null,"Nasi Goreng",4.26,922]
[null,null,null,"Brotsorten 100 g",0.39,null,null,null,"Kartoffelstock",0.53,606,null,null,"Mischsalat Frühling 30 %",0.15]
[null,null,null,"Butter Port 20 g",0.44,null,null,null,"Blumenkohl nach",0.8,703,null,null,"Rüeblisalat 30 %",0.2,812]
[{"$f":"SUM(O17:O26)*O16+SUM(J17:J26)*J16+SUM(E17:E26)*E16","v":13.7},null,null,"Konfitüre/Nussaufstrich 1",0.17,null,null,null,"polnischer Art",{"$nulls":4},"Maissalat 30 %",0.15,808,null,null,"Abend"]
[null,null,null,"Orangensaft 1 dl",0.14000000000000001,{"$nulls":8},"Balsamico Salatsauce 30 g",0.05,null,null,null,"Gebratener Reis mit ",608]
[null,null,null,"Frühstücksmüesli 30 g",0.25,{"$nulls":13},"Gemüse und Ei"]
[null,null,null,"Joghurt Port 100 g",0.5,null,null,null,"Apfel-Pfirsichtee 200 %",0.1,100,null,null,"Apfel-Pfirsichtee 200 %",0.1,100]
["Snack",{"$nulls":7},"Nussmischung assortiert 1 St",0.6,null,null,null,"Leckerli 1 St",0.55000000000000004]
[{"$nulls":8},"Birne 1 St",0.6,null,null,null,"Orange 1 St",0.4]
[null,null,null,"Normalbestand",{"$f":"VLOOKUP(D27,'Vpf Art Genre Subs Tipi di suss'!$A:$B,2,FALSE)","v":1},null,null,null,"Normalbestand",{"$f":"VLOOKUP(I27,'Vpf Art Genre Subs Tipi di suss'!$A:$B,2,FALSE)","v":1},null,null,null,"Fakultatives Nachtessen",{"$f":"VLOOKUP(N27,'Vpf Art Genre Subs Tipi di suss'!$A:$B,2,FALSE)","v":0.3},null,null,null,"Mittag"]
["Mittwoch",null,null,"Kaffee in Portionen 50 %",0.2,null,null,null,"Gemüsecremesuppe 50 %",0.2,208,null,null,"Teigwarenauflauf",3.02,928,null,null,"Quornvoressen ",427]
[{"$f":"A18+1","v":"2018-05-16"},null,null,"Kakao/Malzgetränk in Port 50 %",0.2,null,"*",null,"Pouletvoressen nach",2.81,427,null,null,"Randensalat 30 %",0.1,810,null,null,"nach alter Art"]
[null,null,null,"Brotsorten 100 g",0.39,null,null,null,"alter Art",{"$nulls":4},"Weisskabissalat 30 %",0.18,805]
[null,null,null,"Butter Port 20 g",0.44,null,null,null,"Ebly",0.65,602,null,null,"Maissalat 30 %",0.15,808]
[{"$f":"SUM(O28:O37)*O27+SUM(J28:J37)*J27+SUM(E28:E37)*E27","v":9.0300000000000011},null,null,"Konfitüre/Nussaufstrich 1",0.17,null,null,null,"Bohnen geschmort",0.54,704,null,null,"Mischsalat Frühling 30 %",0.15,null,null,null,"Abend"]
[null,null,null,"Orangensaft 1 dl",0.14000000000000001,{"$nulls":8},"Franz Salatsauce 30 g",0.05,null,null,null,"Teigwarenauflauf",928]
[null,null,null,"Frühstücksmüesli 30 g",0.25]
[null,null,null,"Birchermüesli",0.5,904,null,null,"Hausgemachter Eistee 200%",0.1,100,null,null,"Hausgemachter Eistee 200%",0.1,100]
["Snack",{"$nulls":7},"Getreideriegel Honig 1 St",0.2,null,null,null,"Bretzeli 1 St",0.55000000000000004]
[{"$nulls":8},"Banane 1 St",0.8,null,null,null,"Apfel 1 St",0.5]
[null,null,null,"Normalbestand",{"$f":"VLOOKUP(D38,'Vpf Art Genre Subs Tipi di suss'!$A:$B,2,FALSE)","v":1},null,null,null,"Normalbestand",{"$f":"VLOOKUP(I38,'Vpf Art Genre Subs Tipi di suss'!$A:$B,2,FALSE)","v":1},null,null,null,"Normalbestand",{"$f":"VLOOKUP(N38,'Vpf Art Genre Subs Tipi di suss'!$A:$B,2,FALSE)","v":1},null,null,null,"Mittag"]
["Donnerstag",null,null,"Kaffee in Portionen 50 %",0.2,null,null,null,"Bouillon mit Backerbsen",0.04,205,null,null,"Tomatensuppe 50 %",0.13,208,null,null,"Auberginenpiccata"]
[{"$f":"A29+1","v":"2018-05-17"},null,null,"Kakao/Malzgetränk in Port 50 %",0.2,null,"*",null,"Piccata vom Schwein",3.39,413,"*",null,"Chipolataspiessli",1.28]
[null,null,null,"Brotsorten 100 g",0.39,null,null,null,"Tomatensauce 50 %",0.13,311,null,null,"Kräuterbutter CF4",0.1]
[null,null,null,"Butter Port 20 g",0.44,null,null,null,"Polenta",0.55000000000000004,610,null,null,"Weissweinrisotto",0.56999999999999995,611]
[{"$f":"SUM(O39:O48)*O38+SUM(J39:J48)*J38+SUM(E39:E48)*E38","v":12.14},null,null,"Konfitüre/Nussaufstrich 1",0.17,null,null,null,"Ratatouille",0.61,709,null,null,"Mischsalat Frühling",0.46,null,null,null,"Abend"]
[null,null,null,"Orangensaft 1 dl",0.14000000000000001,null,null,null,"Bananencake",0.57999999999999996,1105,null,null,"Thousend Island dressing  30 g",0.11,303,null,null,"Gemüsespiessli"]
[null,null,null,"Frühstücksmüesli 30 g",0.25]
[null,null,null,"Trutenschinken 50 g",0.5,null,null,null,"Fruchtschalentee 200 %",0.1,100,null,null,"Fruchtschalentee 200 %",0.1,100]
["Snack",{"$nulls":7},"Swiss Choco Bits 1 St",0.4,null,null,null,"Getreideriegel Frucht  1 St",0.2]
[{"$nulls":8},"Apfel 1 St",0.5,null,null,null,"Birne 1 St",0.6]
[null,null,null,"Normalbestand",{"$f":"VLOOKUP(D49,'Vpf Art Genre Subs Tipi di suss'!$A:$B,2,FALSE)","v":1},null,null,null,"Normalbestand",{"$f":"VLOOKUP(I49,'Vpf Art Genre Subs Tipi di suss'!$A:$B,2,FALSE)","v":1},null,null,null,"Leistungsabtreten",{"$f":"VLOOKUP(N49,'Vpf Art Genre Subs Tipi di suss'!$A:$B,2,FALSE)","v":0.75},null,null,null,"Mittag"]
["Freitag",null,null,"Kaffee in Portionen 50 %",0.2,null,null,null,"Minestrone 50 %",0.31,218,"*",null,"Hörnlipilaf",2.59,1002,null,null,"Vollkorngemüseburger"]
[{"$f":"A40+1","v":"2018-05-18"},null,null,"Kakao/Malzgetränk in Port 50 %",0.2,null,"*",null,"Paniertes Seelachsfilet",1.88,505,null,null,"Mischsalat Frühling",0.46]
[null,null,null,"Brotsorten 100 g",0.39,null,null,null,"Remouladensauce",0.34,309,null,null,"Franz Salatsauce 30 g",0.05]
[null,null,null,"Butter Port 20 g",0.44,null,null,null,"Salzkartoffeln",0.68,613]
[{"$f":"SUM(O50:O59)*O49+SUM(J50:J59)*J49+SUM(E50:E59)*E49","v":11.215},null,null,"Konfitüre/Nussaufstrich 1",0.17,null,null,null,"Spinat gedünstet",0.73,704,null,null,"Studentenschnitte",1.21,1115,null,null,"Abend"]
[null,null,null,"Orangensaft 1 dl",0.14000000000000001,{"$nulls":13},"Hörnli Pilaf ",1002]
[null,null,null,"Frühstücksmüesli 30 g",0.25,{"$nulls":13},"mit Quornbolognaise"]
[null,null,null,"Käse divers 30 g",0.54,null,null,null,"Apfel-Pfirsichttee 200%",0.1,100,null,null,"Apfel-Pfirsichttee 200%",0.1,100]
["Snack",{"$nulls":7},"Getreideriegel  Frucht 1 St",0.2,null,null,null,"Malzriegel 1 St",0.45]
[{"$nulls":8},"Orange 1 St ",0.4,null,null,null,"Banane 1 St",0.8]
[null,null,null,"Leistungsabtreten",{"$f":"VLOOKUP(D60,'Vpf Art Genre Subs Tipi di suss'!$A:$B,2,FALSE)","v":0.75},null,null,null,"Sonntagswache",{"$f":"VLOOKUP(I60,'Vpf Art Genre Subs Tipi di suss'!$A:$B,2,FALSE)","v":0.1},null,null,null,"Sonntagswache",{"$f":"VLOOKUP(N60,'Vpf Art Genre Subs Tipi di suss'!$A:$B,2,FALSE)","v":0.1},null,null,null,"Mittag"]
["Samstag",null,null,"Kaffee in Portionen 50 %",0.2,null,"*",null,"Schweins-Sparerips",5.27,426,null,null,"Flammkuchen",3,909,null,null,"Ofenkartoffel mit Sauerrahm"]
[{"$f":"A51+1","v":"2018-05-19"},null,null,"Kakao/Malzgetränk in Port 50 %",0.2,null,null,null,"Ofenkartoffeln mit Sauerrahm",0.94,null,null,null,"Mischsalat Frühling 30 %",0.15]
[null,null,null,"Brotsorten 100 g",0.39,null,null,null,"Maiskolben",1.37,null,null,null,"Randensalat 30 %",0.1,810]
[null,null,null,"Butter Port 20 g",0.44,null,null,null,"Mischsalat Frühling",0.46,null,null,null,"Maissalat 30 %",0.15,808]
[{"$f":"SUM(O61:O70)*O60+SUM(J61:J70)*J60+SUM(E61:E70)*E60","v":3.0589999999999997},null,null,"Konfitüre/Nussaufstrich 1",0.17,null,null,null,"Balsamico Salatsauce 30 g",0.05,null,null,null,"Franz Salatsauce 30 g",0.05,null,null,null,"Abend"]
[null,null,null,"Orangensaft 1 dl",0.14000000000000001,{"$nulls":13},"Flammkuchen ohne Speck",909]
[null,null,null,"Frühstücksmüesli 30 g",0.25]
[null,null,null,"Salami 50 g",0.51,null,null,null,"Himbeer-Erdbeertee 200%",0.1,100,null,null,"Himbeer-Erdbeertee 200%",0.1,100]
["Snack",{"$nulls":7},"Militärbisquits 1 St",0.35,null,null,null,"Traubenzucker 1 St",0.15]
[{"$nulls":8},"Birne 1 St",0.6,null,null,null,"Apfel 1 St",0.5]
[null,null,null,"Sonntagswache",{"$f":"VLOOKUP(D71,'Vpf Art Genre Subs Tipi di suss'!$A:$B,2,FALSE)","v":0.1},null,null,null,"Sonntagswache",{"$f":"VLOOKUP(I71,'Vpf Art Genre Subs Tipi di suss'!$A:$B,2,FALSE)","v":0.1},null,null,null,"Sonntagswache",{"$f":"VLOOKUP(N71,'Vpf Art Genre Subs Tipi di suss'!$A:$B,2,FALSE)","v":0.1},null,null,null,"Mittag"]
["Sonntag",null,null,"Kaffee in Portionen 50 %",0.2,null,"*",null,"Kalbsbrustrollbraten an",3.2,422,null,null,"Café complet ",3.93,null,null,null,"Kartoffelgratin",605]
[{"$f":"A62+1","v":"2018-05-20"},null,null,"Kakao/Malzgetränk in Port 50 %",0.2,null,null,null,"Rosmarinjus"]
[null,null,null,"Zopf 100 g",1.35,null,null,null,"Kartoffelgratin",0.93,605]
[null,null,null,"Butter Port 20 g",0.44,null,null,null,"Kefen gedünstet",0.79,704]
[{"$f":"SUM(O72:O81)*O71+SUM(J72:J81)*J71+SUM(E72:E81)*E71","v":1.5519999999999998},null,null,"Konfitüre/Nussaufstrich 1",0.17,{"$nulls":13},"Abend"]
[null,null,null,"Orangensaft 1 dl",0.14000000000000001,null,null,null,"Tirami su",1.22,1118,{"$nulls":7},"Café complet"]
[null,null,null,"Rösti 50 %",0.25,612]
[null,null,null,"Spiegelei 1 St",0.5,null,null,null,"Schwarztee 200 %",0.1,103,null,null,"Schwarztee 200 %",0.1,103]
["Snack",{"$nulls":7},"Bretzeli 1 St",0.6,null,null,null,"Getreideriegel Frucht 1 St",0.2]
[{"$nulls":8},"Banane 1 St",0.8,null,null,null,"Orange 1 St",0.4]
[]
["Verpflegungsabrechnung",{"$nulls":7},"Die Richtigkeit bescheinigt:",{"$nulls":4},"Für die fachliche Richtigkeit:",{"$nulls":4},"Genehmigung:"]
["Verbrauch gem Vpf Plan",null,null,null,{"$f":"(A10+A21+A32+A43+A54+A65+A76)*100","v":6268.6},null,null,null,"Der Rechnungsführer",{"$nulls":4},"Quartiermeister",{"$nulls":4},"Der Kommandant"]
["Vpf Kredit ",null,null,null,{"$f":"'Übersicht und Anleitung'!D18*100","v":6300}]
["Saldo",null,null,null,{"$f":"E85-E84","v":31.399999999999636}]
[]
["Herkunftsdeklaration Fleisch, Milch, Eier: Alle Fleisch /-erzeugnisse, Milch /-Milchprodukte und Eier stammen aus der Schweiz "]
["Herkunftsdeklaration Fisch und Meerestiere: Alle Fische und Meerestiere stammen aus der Schweiz oder sind mit dem Label ASC / MSC oder FOS versehen."]
["Deklaration von Zutaten / allergenen Stoffen (LKV Art. 8): Bei Fragen betreffend allergenen Zutaten kann der Küchenchef Auskunft geben."]
["Lenkungspunkte: Diese sind mit * gekennzeichnet. Nach der Umsetzung sind sie mittels Visum zu bestätigen (vgl Regl 06.006 Kochrezepte, Seiten 21  und ff Rezepte)."]

{"sheet":"Woche 3","index":4,"n_rows":91,"n_cols":22,"rows_kept":91,"cut":false,"hidden":false,"merged":[[83,4,83,6],[84,4,84,6],[85,4,85,6],[0,18,0,19],[2,1,2,5],[2,6,2,10],[2,11,2,15],[2,16,2,19],[82,4,82,6]]}
["Verpflegungsplan ",{"$nulls":5},"von:",null,"2018-05-21",null,null,"bis:",null,{"$f":"A73","v":"2018-05-27"},null,"Einheit"]
[]
[null,"Frühstück",{"$nulls":4},"Mittagessen",{"$nulls":4},"Nachtessen",{"$nulls":4},"Fleischlos"]
[null,"CCP","Visum",null,"Preis","Rezept","CCP","Visum",null,"Preis","Rezept","CCP","Visum",null,"Preis","Rezept","CCP","Visum",null,"Rezept"]
[null,null,null,"Normalbestand",{"$f":"VLOOKUP(D5,'Vpf Art Genre Subs Tipi di suss'!$A:$B,2,FALSE)","v":1},null,null,null,"Normalbestand",{"$f":"VLOOKUP(I5,'Vpf Art Genre Subs Tipi di suss'!$A:$B,2,FALSE)","v":1},null,null,null,"Normalbestand",{"$f":"VLOOKUP(N5,'Vpf Art Genre Subs Tipi di suss'!$A:$B,2,FALSE)","v":1},null,null,null,"Mittag"]
["Montag",null,null,"Kaffee in Portionen 50 %",0.2,null,null,null,"Bouillon mit Flädli 50 %",0.05,205,null,null,"Kressecremesuppe 50 %",0.14000000000000001,208,null,null,"Spaghetti mit Butter",617]
[{"$f":"I1","v":"2018-05-21"},null,null,"Kakao/Malzgetränk in Port 50 %",0.2,null,null,null,"Spaghetti ",0.25,617,"*",null,"Hausgemachter Hackbraten ",1.92,null,null,null,"Tomatensauce",311]
[null,null,null,"Brotsorten 100 g",0.39,null,null,null,"Tomatensauce",0.16,311,null,null,"Senfsauce",7.0000000000000007E-2,301,null,null,"Pesto CF4 20 g"]
[null,null,null,"Butter Port 20 g",0.44,null,null,null,"Pesto CF4 20 g",7.0000000000000007E-2,null,null,null,"Neue Bratkartoffeln",0.96,600]
[{"$f":"SUM(O6:O15)*O5+SUM(J6:J15)*J5+SUM(E6:E15)*E5","v":9.15},null,null,"Konfitüre/Nussaufstrich 1",0.17,null,null,null,"Mischsalat Frühling",0.46,null,null,null,"Rüebli gedünstet",0.49,704,null,null,"Abend"]
[null,null,null,"Orangensaft 1 dl",0.14000000000000001,null,null,null,"Franz Salatsauce 30 g",0.05,{"$nulls":8},"Vollkorngemüseburger"]
[null,null,null,"Frühstücksmüesli 30 g",0.25,{"$nulls":13},"mit Käse"]
[null,null,null,"Käse divers 30 g",0.54,null,null,null,"Apfel-Pfirsichtee 200 %",0.1,100,null,null,"Apfel-Pfirsichtee 200 %",0.1,100]
["Snack",{"$nulls":7},"Militärbisquit 1 St",0.35,null,null,null,"Leckerli 1 St",0.55000000000000004,{"$nulls":5}," "]
[{"$nulls":8},"Birne 1 St",0.6,null,null,null,"Apfel 1 St",0.5]
[null,null,null,"Normalbestand",{"$f":"VLOOKUP(D16,'Vpf Art Genre Subs Tipi di suss'!$A:$B,2,FALSE)","v":1},null,null,null,"Normalbestand",{"$f":"VLOOKUP(I16,'Vpf Art Genre Subs Tipi di suss'!$A:$B,2,FALSE)","v":1},null,null,null,"Normalbestand",{"$f":"VLOOKUP(N16,'Vpf Art Genre Subs Tipi di suss'!$A:$B,2,FALSE)","v":1},null,null,null,"Mittag"]
["Dienstag",null,null,"Kaffee in Portionen 50 %",0.2,null,null,null,"Gemüsecremesuppe 50 %",0.2,208,null,null,"Bouillon mit Ei 50 %",0.05,205,null,null,"Omelette mit Käse"]
[{"$f":"A7+1","v":"2018-05-22"},null,null,"Kakao/Malzgetränk in Port 50 %",0.2,null,"*",null,"Schweinskotelett sautiert",3.24,null,null,null,"Lasagne mit Spinat und Ricotta",2.4500000000000002,915]
[null,null,null,"Brotsorten 100 g",0.39,null,null,null,"Kräuterbutter",0.35,null,null,null,"Mischsalat Frühling 30 %",0.15]
[null,null,null,"Butter Port 20 g",0.44,null,null,null,"Weissweinrisotto",0.56999999999999995,611,null,null,"Randensalat 30 %",0.1,810]
[{"$f":"SUM(O17:O26)*O16+SUM(J17:J26)*J16+SUM(E17:E26)*E16","v":13.399999999999999},null,null,"Konfitüre/Nussaufstrich 1",0.17,null,null,null,"Zucchetti provenzialische Art",0.68,704,null,null,"Maissalat 30 %",0.15,808,null,null,"Abend"]
[null,null,null,"Orangensaft 1 dl",0.14000000000000001,{"$nulls":8},"Balsamico Salatsauce 30 g",0.05,null,null,null,"Lasagne mit Spinat und Ricotta",915]
[null,null,null,"Frühstücksmüesli 30 g",0.25,{"$nulls":8},"Mokkacreme",0.42,1107]
[null,null,null,"Aufschnitt 50 g",0.6,null,null,null,"Erdbeer-Himbeertee 200%",0.1,100,null,null,"Erdbeer-Himbeertee 200%",0.1,100]
["Snack",{"$nulls":7},"Nussmischung assortiert 1 St",0.6,null,null,null,"Crackers 1 St",0.6]
[{"$nulls":8},"Banane 1 St",0.8,null,null,null,"Orange 1 St",0.4]
[null,null,null,"Normalbestand",{"$f":"VLOOKUP(D27,'Vpf Art Genre Subs Tipi di suss'!$A:$B,2,FALSE)","v":1},null,null,null,"Normalbestand",{"$f":"VLOOKUP(I27,'Vpf Art Genre Subs Tipi di suss'!$A:$B,2,FALSE)","v":1},null,null,null,"Fakultatives Nachtessen",{"$f":"VLOOKUP(N27,'Vpf Art Genre Subs Tipi di suss'!$A:$B,2,FALSE)","v":0.3},null,null,null,"Mittag"]
["Mittwoch",null,null,"Kaffee in Portionen 50 %",0.2,null,null,null,"Ingwerrüeblisuppe  50 %",0.22,219,null,null,"Walliser Käseschnitte",3.61,902,null,null,"Linsen-Gemüse Eintopf",213]
[{"$f":"A18+1","v":"2018-05-23"},null,null,"Kakao/Malzgetränk in Port 50 %",0.2,null,"*",null,"Pouletvoressen nach Emmentalerart",2.44,427,null,null,"Rüeblisalat 30 %",0.1,812]
[null,null,null,"Brotsorten 100 g",0.39,null,null,null,"Kartoffelstock",0.53,606,null,null,"Maissalat 30 %",0.15,808]
[null,null,null,"Butter Port 20 g",0.44,null,null,null,"Peperonata",0.59,709,null,null,"Mischsalat Frühling 30 %",0.15]
[{"$f":"SUM(O28:O37)*O27+SUM(J28:J37)*J27+SUM(E28:E37)*E27","v":8.472999999999999},null,null,"Konfitüre/Nussaufstrich 1",0.17,{"$nulls":8},"Balsamico Salatsauce 30 g",0.05,null,null,null,"Abend"]
[null,null,null,"Orangensaft 1 dl",0.14000000000000001,{"$nulls":13},"Walliser-Käseschnitte",902]
[null,null,null,"Frühstücksmüesli 30 g",0.25]
[null,null,null,"Birchermüesli",0.5,904,null,null,"Fruchtschalentee 200 %",0.1,100,null,null,"Fruchtschalentee 200 %",0.1,100]
["Snack",{"$nulls":7},"Getreideriegel Honig 1 St",0.2,null,null,null,"Fruchtmischung ass 1 St",0.35]
[{"$nulls":8},"Birne 1 St",0.6,null,null,null,"Apfel 1 St",0.5]
[null,null,null,"Normalbestand",{"$f":"VLOOKUP(D38,'Vpf Art Genre Subs Tipi di suss'!$A:$B,2,FALSE)","v":1},null,null,null,"Normalbestand",{"$f":"VLOOKUP(I38,'Vpf Art Genre Subs Tipi di suss'!$A:$B,2,FALSE)","v":1},null,null,null,"Normalbestand",{"$f":"VLOOKUP(N38,'Vpf Art Genre Subs Tipi di suss'!$A:$B,2,FALSE)","v":1},null,null,null,"Mittag"]
["Donnerstag",null,null,"Kaffee in Portionen 50 %",0.2,null,null,null,"Pürierte Gemüsesuppe 50 %",0.2,219,"*",null,"Gebratenes halbes Poulet ",4.34,null,null,null,"Gemüseauflauf",700]
[{"$f":"A29+1","v":"2018-05-24"},null,null,"Kakao/Malzgetränk in Port 50 %",0.2,null,"*",null,"Pangasiusfilet im Backteig",2.33,501,null,null,"mit Saucen"]
[null,null,null,"Brotsorten 100 g",0.39,null,null,null,"Remouladensauce",0.34,309,null,null,"Pommes Chips CF4",1.18]
[null,null,null,"Butter Port 20 g",0.44,null,null,null,"Schnittlauchkartoffeln",0.7,600]
[{"$f":"SUM(O39:O48)*O38+SUM(J39:J48)*J38+SUM(E39:E48)*E38","v":14.690000000000001},null,null,"Konfitüre/Nussaufstrich 1",0.17,null,null,null,"Spinat gedünstet",0.73,704,null,null,"Rüeblicake",0.47,1105,null,null,"Abend",null,null," "]
[null,null,null,"Orangensaft 1 dl",0.14000000000000001,{"$nulls":13},"Gemüseburger CF4"]
[null,null,null,"Frühstücksmüesli 30 g",0.25,{"$nulls":16}," "]
[null,null,null,"Joghurt Port 100 g",0.5,null,null,null,"Apfel-Pfirsichtee 200 %",0.13,null,null,null,"Apfel-Pfirsichtee 200 %",0.13,{"$nulls":6}," "]
["Snack",{"$nulls":7},"Getreideriegel Frucht 1 St",0.2,null,null,null,"Malzriegel 1 St",0.45]
[{"$nulls":8},"Orange 1 St ",0.4,null,null,null,"Banane 1 St",0.8]
[null,null,null,"Normalbestand",{"$f":"VLOOKUP(D49,'Vpf Art Genre Subs Tipi di suss'!$A:$B,2,FALSE)","v":1},null,null,null,"Normalbestand",{"$f":"VLOOKUP(I49,'Vpf Art Genre Subs Tipi di suss'!$A:$B,2,FALSE)","v":1},null,null,null,"Normalbestand",{"$f":"VLOOKUP(N49,'Vpf Art Genre Subs Tipi di suss'!$A:$B,2,FALSE)","v":1},null,null,null,"Mittag"]
["Freitag",null,null,"Comella 5 dl CF4",3.8,null,null,null,"Thonsandwich 1 St",1.17,{"$nulls":8},"Käse Sandwich 1 St"]
[{"$f":"A40+1","v":"2018-05-25"},null,null,"Gipfeli 1St",1.1499999999999999,null,null,null,"Getreideriegel 1 St",0.2]
[{"$nulls":8},"Militärschokolade 1 St",0.35]
[{"$nulls":8},"Apfel 1 St",0.5]
[{"$f":"SUM(O50:O59)*O49+SUM(J50:J59)*J49+SUM(E50:E59)*E49","v":8.0699999999999985},{"$nulls":7},"Süssgetränk 5 dl PET",0.9,null,null,null," ",{"$nulls":4},"Abend"]
[null,null,null," "]
[]
[null,null,null," "]
["Snack"]
[]
[null,null,null,"Normalbestand",{"$f":"VLOOKUP(D60,'Vpf Art Genre Subs Tipi di suss'!$A:$B,2,FALSE)","v":1},null,null,null,"Normalbestand",{"$f":"VLOOKUP(I60,'Vpf Art Genre Subs Tipi di suss'!$A:$B,2,FALSE)","v":1},null,null,null,"Normalbestand",{"$f":"VLOOKUP(N60,'Vpf Art Genre Subs Tipi di suss'!$A:$B,2,FALSE)","v":1},null,null,null,"Mittag"]
["Samstag"]
[{"$f":"A51+1","v":"2018-05-26"}]
[]
[]
[{"$f":"SUM(O61:O70)*O60+SUM(J61:J70)*J60+SUM(E61:E70)*E60","v":0},{"$nulls":17},"Abend"]
[]
[]
[]
["Snack"]
[]
[null,null,null,"Normalbestand",{"$f":"VLOOKUP(D71,'Vpf Art Genre Subs Tipi di suss'!$A:$B,2,FALSE)","v":1},null,null,null,"Normalbestand",{"$f":"VLOOKUP(I71,'Vpf Art Genre Subs Tipi di suss'!$A:$B,2,FALSE)","v":1},null,null,null,"Normalbestand",{"$f":"VLOOKUP(N71,'Vpf Art Genre Subs Tipi di suss'!$A:$B,2,FALSE)","v":1},null,null,null,"Mittag"]
["Sonntag"]
[{"$f":"A62+1","v":"2018-05-27"}]
[]
[]
[{"$f":"SUM(O72:O81)*O71+SUM(J72:J81)*J71+SUM(E72:E81)*E71","v":0},{"$nulls":17},"Abend"]
[]
[]
[]
["Snack"]
[]
[]
["Verpflegungsabrechnung",{"$nulls":7},"Die Richtigkeit bescheinigt:",{"$nulls":4},"Für die fachliche Richtigkeit:",{"$nulls":4},"Genehmigung:"]
["Verbrauch gem Vpf Plan",null,null,null,{"$f":"(A10+A21+A32+A43+A54+A65+A76)*100","v":5378.2999999999993},null,null,null,"Der Rechnungsführer",{"$nulls":4},"Quartiermeister",{"$nulls":4},"Der Kommandant"]
["Vpf Kredit ",null,null,null,{"$f":"'Übersicht und Anleitung'!D18*100-('Übersicht und Anleitung'!C18*100*2)","v":4500}]
["Saldo",null,null,null,{"$f":"E85-E84","v":-878.29999999999927}]
[]
["Herkunftsdeklaration Fleisch, Milch, Eier: Alle Fleisch /-erzeugnisse, Milch /-Milchprodukte und Eier stammen aus der Schweiz "]
["Herkunftsdeklaration Fisch und Meerestiere: Alle Fische und Meerestiere stammen aus der Schweiz oder sind mit dem Label ASC / MSC oder FOS versehen."]
["Deklaration von Zutaten / allergenen Stoffen (LKV Art. 8): Bei Fragen betreffend allergenen Zutaten kann der Küchenchef Auskunft geben."]
["Lenkungspunkte: Diese sind mit * gekennzeichnet. Nach der Umsetzung sind sie mittels Visum zu bestätigen (vgl Regl 06.006 Kochrezepte, Seiten 21  und ff Rezepte)."]

{"sheet":"Plan subs CC","index":5,"n_rows":91,"n_cols":22,"rows_kept":91,"cut":false,"hidden":false,"merged":[[82,4,82,6],[82,13,82,15],[85,18,85,19],[83,4,83,6],[83,8,83,11],[84,4,84,6],[85,4,85,6],[85,8,85,10],[85,13,85,15],[0,18,0,19],[2,1,2,5],[2,6,2,10],[2,11,2,15],[2,16,2,19]]}
["Plan de la subsistance",{"$nulls":5},"du:",null,"2018-04-30",null,null,"à:",null,{"$f":"A73","v":"2018-05-06"},null,"Unité:"]
[]
[null,"Petit déjeuner",{"$nulls":4},"Dîner",{"$nulls":4},"Souper",{"$nulls":4},"Sans viande"]
[null,"PCC","Visa",null,"Prix","Recette","PCC","Visa",null,"Prix","Recette","PCC","Visa",null,"Prix","Recette","PCC","Visa",null,"Recette"]
[null,null,null,"Effectif normal",1,null,null,null,"Effectif normal",1,null,null,null,"Effectif normal",1,null,null,null,"Dîner"]
["Lundi",{"$nulls":7},"Vol-au-vent avec sauce viande et champignons",2.33,923,null,null,"Bouillon aux célestines 50 %",0.05,205,null,null,"Vol-au-vent aux champignons",821]
[{"$f":"I1","v":"2018-04-30"},{"$nulls":12},"Maccaroni au beurre",0.27,617]
[{"$nulls":8},"Pain 100 g ",0.39,null,null,null,"Sauce Waluca",0.68,311]
[{"$nulls":13},"Salade de carottes",0.61,812]
[{"$f":"SUM(O6:O15)*O5+SUM(J6:J15)*J5+SUM(E6:E15)*E5","v":7.08},{"$nulls":17},"Souper"]
[{"$nulls":18},"Maccaroni au beurre",512]
[{"$nulls":18},"Sauce tomates",308]
[{"$nulls":8},"Boisson doux PET 5 dl",0.9,null,null,null,"Thé noir 200 %",0.05,103]
["Snack",{"$nulls":7},"Chocolat militarie 1 pc",0.35,null,null,null,"Sucre de raisin 1 pc",0.15]
[{"$nulls":8},"Pomme 1 pc",0.5,null,null,null,"Banane 1 pc",0.8]
[null,null,null,"Effectif normal",1,null,null,null,"Effectif normal",1,null,null,null,"Effectif normal",1,null,null,null,"Dîner"]
["Mardi",null,null,"Café en portion 50 %",0.2,null,null,null,"Crème de tomates 50 %",0.13,208,null,null,"Potage de Grison 50 %",0.23,208,null,null,"Curry aux légumes"]
[{"$f":"A7+1","v":"2018-05-01"},null,null,"Boisson cacao/malt en port 50 %",0.2,null,"*",null,"Emincé de poulet au curryt",1.71,403,null,null,"Roesti valaisanne",2.34,903]
[null,null,null,"Assortiment pains 100 g",0.39,null,null,null,"Riz pilaf aux lègumes",0.42,608,null,null,"Salades printemps",0.46]
[null,null,null,"Beurre portion 20 g",0.44,{"$nulls":8},"Salade sauce balsamico 30 g",0.05]
[{"$f":"SUM(O17:O26)*O16+SUM(J17:J26)*J16+SUM(E17:E26)*E16","v":10.14},null,null,"Confiture/Crème noisettes 1",0.17,{"$nulls":8}," ",{"$nulls":4},"Souper"]
[null,null,null,"Jus d'orange 1 dl",0.14000000000000001,{"$nulls":8},"Crème au chocolat",0.42,1107,null,null,"Roesti végétarien avec",803]
[{"$nulls":18},"oeuf au plat"]
[null,null,null,"Fromage divers 30 g",0.54,null,null,null,"Thé pomme-pêche 200 %",0.1,100,null,null,"Thé pomme-pêche 200 %",0.1,100]
["Snack",{"$nulls":7},"Bisquit militarie 1 pc",0.55000000000000004,null,null,null,"Leckerli 1 pc",0.55000000000000004,{"$nulls":5}," "]
[{"$nulls":8},"Poire 1 pc",0.6,null,null,null,"Orange 1 pc",0.4]
[null,null,null,"Effectif normal",1,null,null,null,"Effectif normal",1,null,null,null,"Souper facultatif",0.3,null,null,null,"Dîner"]
["Mercredi",null,null,"Café en portion 50 %",0.2,null,null,null,"Bouillon aux pois frites 50 %",0.05,205,null,null,"Purée de légumes 50 %",0.2,208,null,null,"Blanquette de quorn à l'emmentaloise",420]
[{"$f":"A18+1","v":"2018-05-02"},null,null,"Boisson cacao/malt en port 50 %",0.2,null,"*",null,"Blanquette de poulet à l'emmentaloise",2.44,427,null,null,"Spaghetti au beurre",0.27,617]
[null,null,null,"Assortiment pains 100 g",0.39,null,null,null,"Pommes purée",0.53,606,null,null,"Sauce carbonara",2.08,906]
[null,null,null,"Beurre portion 20 g",0.44,null,null,null,"Haricots verts étuvés",0.5,704]
[{"$f":"SUM(O28:O37)*O27+SUM(J28:J37)*J27+SUM(E28:E37)*E27","v":7.9779999999999998},null,null,"Confiture/Crème noisettes 1",0.17,{"$nulls":8},"Salades printemps",0.46,null,null,null,"Souper"]
[null,null,null,"Jus d'orange 1 dl",0.14000000000000001,{"$nulls":8},"Salade sauce à la française 30 g",0.05,null,null,null,"Spaghetti au beurre",512]
[{"$nulls":18},"Pesto CF4 20g"]
[null,null,null,"Charcuterie 50 g",0.6,null,null,null,"Thé framboise-fraise 200 %",0.1,100,null,null,"Thé framboise-fraise 200 %",0.1,100]
["Snack",{"$nulls":7},"Bâton aux céréales fruits 1 pc",0.2,null,null,null,"Swiss Choco Bits 1 pc",0.4,{"$nulls":5}," "]
[{"$nulls":8},"Banane 1 pc",0.8,null,null,null,"Pomme 1 pc",0.5]
[null,null,null,"Effectif normal",1,null,null,null,"Effectif normal",1,null,null,null,"Effectif normal",1,null,null,null,"Dîner"]
["Jeudi",null,null,"Café en portion 50 %",0.2,null,null,null,"Potage paysanne 50 %",0.25,204,null,null,"Bouillon aux croûtons d'ail 50 %",0.05,205,null,null,"Tranche de semoule ",501]
[{"$f":"A29+1","v":"2018-05-03"},null,null,"Boisson cacao/malt en port 50 %",0.2,null,"*",null,"Poitrine de veau roulée glacée",3.2,422,"*",null,"Mah-Meh au porc",3.47,919,null,null,"aux lègumes gratinée"]
[null,null,null,"Assortiment pains 100 g",0.39,null,null,null,"Tranche de semoule gratinée",0.73,603]
[null,null,null,"Beurre portion 20 g",0.44,null,null,null,"Epinards étuvées",0.73,704]
[{"$f":"SUM(O39:O48)*O38+SUM(J39:J48)*J38+SUM(E39:E48)*E38","v":13.379999999999999},null,null,"Confiture/Crème noisettes 1",0.17,{"$nulls":13},"Souper"]
[null,null,null,"Jus d'orange 1 dl",0.14000000000000001,{"$nulls":8},"Gâteau aux pommes",0.86,0,null,null,"Spaghettis sautées aux lègumes  ",null,null," "]
[{"$nulls":18},"et oeufs"]
[null,null,null,"Bircher muesli 30 %",0.5,904,null,null,"Thé ecorce de fruits 200 %",0.1,100,null,null,"Thé ecorce de fruits 200 %",0.1,100,null,null," ",null," "]
["Snack",{"$nulls":7},"Bretzeli 1 pc",0.55000000000000004,null,null,null,"Bâton aux céréales fruits 1 pc",0.2]
[{"$nulls":8},"Pomme 1 pc",0.5,null,null,null,"Poire 1 pc",0.6]
[null,null,null,"Effectif normal",1,null,null,null,"Effectif normal",1,null,null,null,"Licenciement selon performance",0.75,null,null,null,"Dîner"]
["Vendredi",null,null,"Café en portion 50 %",0.2,null,null,null,"Bouillon à l' oeuf 50 %",0.05,205,null,null,"Potage au pain 50 %",0.12,206,null,null,"Piccata d'aubergine",414]
[{"$f":"A40+1","v":"2018-05-04"},null,null,"Boisson cacao/malt en port 50 %",0.2,null,"*",null,"Filet de pangasius à pâte à frire",2.33,501,null,null,"Quiche aux oignons et fromage",3.09,915]
[null,null,null,"Assortiment pains 100 g",0.39,null,null,null,"Sauce rémoulade",0.34,309,null,null,"Salade de choux-blanc 50 %",0.27,805]
[null,null,null,"Beurre portion 20 g",0.44,null,null,null,"Pommes natures",0.68,613,null,null,"Salade de betteraves 50 %",0.15,810]
[{"$f":"SUM(O50:O59)*O49+SUM(J50:J59)*J49+SUM(E50:E59)*E49","v":11.8675},null,null,"Confiture/Crème noisettes 1",0.17,null,null,null,"Courgettes étuvées",0.75,704,null,null,"Salades printemps 30 %",0.15,null,null,null,"Souper",null," "]
[null,null,null,"Jus d'orange 1 dl",0.14000000000000001,{"$nulls":8},"Salade sauce à la française 30 g",0.05,null,null,null,"Quiche aux oignons et fromage",813]
[{"$nulls":8},"Cake aux bananes ",0.57999999999999996,1105]
[null,null,null,"Joghurt aux fruits portion 100 g",0.5,null,null,null,"Thé froid maison 200 %",0.1,100,null,null,"Thé froid maison 200 %",0.1,100,null,null," "]
["Snack",{"$nulls":7},"Cracker 1 pc",0.6,null,null,null,"Bâton de malt 1 pc",0.6]
[{"$nulls":8},"Orange 1 pc",0.4,null,null,null,"Banane 1 pc",0.8]
[null,null,null,"Licenciement selon performance",0.75,null,null,null,"Garde weekend",0.1,null,null,null,"Garde weekend",0.1,null,null,null,"Dîner"]
["Samedi",null,null,"Café en portion 50 %",0.2,null,"*",null,"Côtelette de porc sauté",3.24,null,null,null,"Pizza au jambon ",4.1399999999999997,924,null,null,"Escalope de quorn aux lègumes"]
[{"$f":"A51+1","v":"2018-05-05"},null,null,"Boisson cacao/malt en port 50 %",0.2,null,null,null,"Beurre aux fines herbes",{"$nulls":4},"Salade de carottes 50 %",0.3,812]
[null,"  ",null,"Tresse 100 g",1.35,null,null,null,"Pommes sautées",0.96,600,null,null,"Salade de mais 50 %",0.25,808]
[null,null,null,"Beurre portion 20 g",0.44,null,null,null,"Brocoli aux amandes",1.27,703,null,null,"Salades printemps 30 %",0.15]
[{"$f":"SUM(O61:O70)*O60+SUM(J61:J70)*J60+SUM(E61:E70)*E60","v":3.4634999999999998},null,null,"Confiture/Crème noisettes 1",0.17,{"$nulls":8},"Salade sauce balsamico 30 g",0.05,null,null,null,"Souper"]
[null,null,null,"Jus d'orange 1 dl",0.14000000000000001,{"$nulls":13},"Pizza Calzone à l' oeuf",808]
[]
[null,null,null,"Salami 50 g",0.51,null,null,null,"Thé pomme-pêche 200 %",0.1,100,null,null,"Thé pomme-pêche 200 %",0.1,100]
["Snack",{"$nulls":7},"Bisquit militarie 1 pc",0.35,null,null,null,"Sucre de raisin 1 pc",0.15]
[{"$nulls":8},"Poire 1 pc",0.6,null,null,null,"Orange 1 pc",0.4]
[null,null,null,"Garde weekend",0.1,null,null,null,"Garde weekend",0.1,null,null,null,"Garde weekend",0.1,null,null,null,"Dîner"]
["Dimanche",null,null,"Café en portion 50 %",0.2,null,"*",null,"Demi poulet rôti",4.34,null,null,null,"Café complet",3.93,null,null,null,"Lègumes méditerranée "]
[{"$f":"A62+1","v":"2018-05-06"},null,null,"Boisson cacao/malt en port 50 %",0.2,null,null,null,"avec sauces",{"$nulls":9},"au four"]
[null,null,null,"Tresse 100 g",1.35,null,null,null,"Pommes Chips CF4",1.18]
[null,null,null,"Beurre portion 20 g",0.44,null,null,null,"Boule de Berlin CF4 1 pc",1.7,null,null,null," "]
[{"$f":"SUM(O72:O81)*O71+SUM(J72:J81)*J71+SUM(E72:E81)*E71","v":1.6699999999999997}," ",null,"Confiture/Crème noisettes 1",0.17,{"$nulls":13},"Souper",null,null," "]
[null,null,null,"Jus d'orange 1 dl",0.14000000000000001,{"$nulls":13},"Café complet"]
[null,null,null,"Roesti 50 %",0.25,612]
[null,null,null,"Œuf au plat 1 pc",0.5,null,null,null,"Thé noir 200 %",0.1,103,null,null,"Thé noir 200 %",0.1,103]
["Snack",{"$nulls":7},"Bretzeli 1 pc",0.6,null,null,null,"Bâton aux céréales fruit 1 pc",0.2]
[{"$nulls":8},"Pomme 1 pc",0.5,null,null,null,"Banane 1 pc",0.8]
[{"$nulls":13}," "]
["Décompte de la subsistance",{"$nulls":7},"Certifié exact",{"$nulls":4},"Pour l'exactitude technique",{"$nulls":4},"Approuvé"]
["Utilisation selon plan de la subsistance",null,null,null,{"$f":"(A10+A21+A32+A43+A54+A65+A76)*100","v":5557.9000000000005},null,null,null,"Fourier",{"$nulls":4},"Quartier-maitre",{"$nulls":4},"Le commandant"]
["Crédit subsistance",null,null,null,{"$f":"'Übersicht und Anleitung'!D18*100","v":6300}]
["Solde",null,null,null,{"$f":"E85-E84","v":742.09999999999945}]
[]
["Déclaration d'origine de la viande, du lait, et des œufs: toutes les viandes et succédanés/lait et produits laitiers/œufs proviennent uniquement de Suisse "]
["Déclaration d'origine des poissons et produits marins:  tous les poissons et crustacés proviennent de Suisse ou sont définis par le label ASC / MSC / FOS."]
["Déclaration des ingrédients / substances allergènes (LDAI Art. 8): le chef de cuisine peut répondre aux questions concernant les composantes allergènes."]
["Point de contrôle critique: l'emblème* déclare l'analyse du risque. Une signature confirme la bonne pratique de fabrication (selon Regl 60.006 recettes de cuisine, page 21 et suivante)."]

{"sheet":"Semaine 1","index":6,"n_rows":91,"n_cols":22,"rows_kept":91,"cut":false,"hidden":false,"merged":[[82,4,82,6],[82,13,82,15],[85,18,85,19],[83,4,83,6],[83,8,83,11],[84,4,84,6],[85,4,85,6],[85,8,85,10],[85,13,85,15],[0,18,0,19],[2,1,2,5],[2,6,2,10],[2,11,2,15],[2,16,2,19]]}
["Plan de la subsistance",{"$nulls":5},"du:",null,"2018-05-07",null,null,"à:",null,{"$f":"A73","v":"2018-05-13"},null,"Unité:"]
[]
[null,"Petit déjeuner",{"$nulls":4},"Dîner",{"$nulls":4},"Souper",{"$nulls":4},"Sans viande"]
[null,"PCC","Visa",null,"Prix","Recette","PCC","Visa",null,"Prix","Recette","PCC","Visa",null,"Prix","Recette","PCC","Visa",null,"Recette"]
[null,null,null,"Garde weekend",0.1,null,null,null,"Effectif normal",1,null,null,null,"Effectif normal",1,null,null,null,"Dîner"]
["Lundi",null,null,"Café en portion 50 %",0.2,null,null,null,"Bouillon aux pois frits",0.05,205,null,null,"Velouté épicé",0.1,212,null,null,"Ravioli aux épinards",824]
[{"$f":"I1","v":"2018-05-07"},null,null,"Boisson cacao/malt en port 50 %",0.2,null,null,null,"Ravioli",1,926,"*",null,"Cuisse de poulet étuvées",2.37]
[null,null,null,"Assortiment pains 100 g",0.39,null,null,null,"Fromage râpé 20 g",0.25,null,null,null,"à la sauce au vin rouge"]
[null,null,null,"Beurre portion 20 g",0.44,null,null,null,"Salade Mêlée de printemps",0.46,null,null,null,"Pommes aux oignons",1,600]
[{"$f":"SUM(O6:O15)*O5+SUM(J6:J15)*J5+SUM(E6:E15)*E5","v":8.5530000000000008},null,null,"Confiture/Crème noisettes 1",0.17,null,null,null,"Sauce salade française  30 g",0.05,null,null,null,"Épinards à l'étouffée",0.73,704,null,null,"Souper"]
[null,null,null,"Jus d'orange 1 dl",0.14000000000000001,{"$nulls":13},"Gratin légumes et pommes de terre",600]
[null,null,null,"Müesli-déjeuner 30 g",0.25]
[null,null,null,"Fromages divers 30 g",0.54,null,null,null,"Thé froid 200 %",0.13,null,null,null,"Thé froid 200 %",0.13]
["Snack",{"$nulls":7},"Mélange de noix salé",0.6,null,null,null,"Sucre de raisin 1 pc",0.15]
[{"$nulls":8},"Pomme 1 pc",0.5,null,null,null,"Banane 1 pc",0.8]
[null,null,null,"Effectif normal",1,null,null,null,"Effectif normal",1,null,null,null,"Effectif normal",1,null,null,null,"Dîner"]
["Mardi",null,null,"Café en portion 50 %",0.2,null,null,null,"Velouté à la crème 50 %",0.2,208,null,null,"Bouillon célestine 50 %",0.05,205,null,null,"Emincé de quorn",404]
[{"$f":"A7+1","v":"2018-05-08"},null,null,"Boisson cacao/malt en port 50 %",0.2,null,"*",null,"Emincé de porc ",2.0499999999999998,406,null,null,"Soufflé au pain et fromage de l'Appenzell",2.38,901,null,null,"aux poivrons"]
[null,null,null,"Assortiment pains 100 g",0.39,null,null,null,"aux poivrons",{"$nulls":4},"Salade Mêlée de printemps",0.46]
[null,null,null,"Beurre portion 20 g",0.44,null,null,null,"Risi-bisi",0.48,608,null,null,"Sauce salade française  30 g",0.05]
[{"$f":"SUM(O17:O26)*O16+SUM(J17:J26)*J16+SUM(E17:E26)*E16","v":11.759999999999998},null,null,"Confiture/Crème noisettes 1",0.17,null,null,null,"Chou-rave à l'étouffée",1.08,704,null,null," ",{"$nulls":4},"Souper"]
[null,null,null,"Jus d'orange 1 dl",0.14000000000000001,{"$nulls":8},"Crème au chocolat",0.42,1107,null,null,"Soufflé au pain et fromage",800]
[null,null,null,"Müesli-déjeuner 30 g",0.25,{"$nulls":13},"de l'Appenzell"]
[null,null,null,"Yogurt portion 100 g",0.5,null,null,null,"Thé pomme-pêche 200 %",0.1,100,null,null,"Thé pomme-pêche 200 %",0.1,100]
["Snack",{"$nulls":7},"Biscuit militaire 1 pc",0.55000000000000004,null,null,null,"Leckerli 1 pc",0.55000000000000004,{"$nulls":5}," "]
[{"$nulls":8},"Poire 1 pc",0.6,null,null,null,"Orange 1 pc",0.4]
[null,null,null,"Effectif normal",1,null,null,null,"Effectif normal",1,null,null,null,"Souper facultatif",0.3,null,null,null,"Dîner"]
["Mercredi",null,null,"Café en portion 50 %",0.2,null,null,null,"Purée de céleri 50 %",0.24,208,null,null,"Spaghetti au beurre",0.27,617,null,null,"Purée de pommes de terre",503]
[{"$f":"A18+1","v":"2018-05-09"},null,null,"Boisson cacao/malt en port 50 %",0.2,null,"*",null,"Blanquette de poulet",2.8,406,null,null,"Sauce tomates à thon",0.28999999999999998,311,null,null,"gratinée au fromage"]
[null,null,null,"Assortiment pains 100 g",0.39,null,null,null,"aux fines herbes"]
[null,null,null,"Beurre portion 20 g",0.44,null,null,null,"Purée de pommes de terre aux safran",0.55000000000000004,606,null,null,"Salade Mêlée de printemps 30 %",0.15,709]
[{"$f":"SUM(O28:O37)*O27+SUM(J28:J37)*J27+SUM(E28:E37)*E27","v":9.7769999999999992},null,null,"Confiture/Crème noisettes 1",0.17,null,null,null,"Asperges verte étuvées",2.17,604,null,null,"Salade de choux-blanc 30 %",0.18,805,null,null,"Souper"]
[null,null,null,"Jus d'orange 1 dl",0.14000000000000001,{"$nulls":8},"Salade de mais 30 %",0.15,808,null,null,"Spaghetti au beurre",512]
[null,null,null,"Müesli-déjeuner 30 g",0.25,{"$nulls":8},"Sauce salade balsamico 30 g",0.05,null,null,null,"Sauce à la crème et fromage",306]
[null,null,null,"Birchermüesli",0.5,804,null,null,"Thé framboise-fraise 200 %",0.1,100,null,null,"Thé framboise-fraise 200 %",0.1,100]
["Snack",{"$nulls":7},"Bâton aux céréales miel 1 pc",0.2,null,null,null,"Swiss Choco Bits 1 pc",0.4,{"$nulls":5}," "]
[{"$nulls":8},"Banane 1 pc",0.8,null,null,null,"Pomme 1 pc",0.5]
[null,null,null,"Effectif normal",1,null,null,null,"Effectif normal",1,null,null,null,"Effectif normal",1,null,null,null,"Dîner"]
["Jeudi",null,null,"Café en portion 50 %",0.2,null,null,null,"Crème d'asperges 50 %",0.51,208,null,null,"Soupe thurgovienne au cidre de pomme",0.33,1107,null,null,"Purée de pommes de terre",503]
[{"$f":"A29+1","v":"2018-05-10"},null,null,"Boisson cacao/malt en port 50 %",0.2,null,"*",null,"Paupiettes de boeuf",3.28,null,"*",null,"Chipolata du porc",1.28,null,null,null,"avec légumes gratinée au fromage"]
[null,null,null,"Assortiment pains 100 g",0.39,null,null,null,"Ofetori",1.1599999999999999,604,null,null,"Sauce crème aux fines herbes",0.19,308]
[null,null,null,"Beurre portion 20 g",0.44,null,null,null,"Carottes étuvées",0.49,704,null,null,"Risotto aux tomates",0.6,611]
[{"$f":"SUM(O39:O48)*O38+SUM(J39:J48)*J38+SUM(E39:E48)*E38","v":14.91},null,null,"Confiture/Crème noisettes 1",0.17,{"$nulls":8},"Poivron au four",0.81,706,null,null,"Souper"]
[null,null,null,"Jus d'orange 1 dl",0.14000000000000001,null,null,null,"Country cake",0.82,1105,{"$nulls":7},"Risotto aux tomates",507,null," "]
[null,null,null,"Müesli-déjeuner 30 g",0.25]
[null,null,null,"Charcuterie 50 g",0.6,null,null,null,"Thé écorce de fruits 200 %",0.1,100,null,null,"Thé écorce de fruits 200 %",0.1,100,null,null," ",null," "]
["Snack",{"$nulls":7},"Cracker 1 pc",0.6,null,null,null,"Conserve de viande",1.25]
[{"$nulls":8},"Orange 1 pc",0.4,null,null,null,"Poire 1 pc",0.6]
[null,null,null,"Effectif normal",1,null,null,null,"Effectif normal",1,null,null,null,"Licenciement selon performance",0.75,null,null,null,"Dîner"]
["Vendredi",null,null,"Café en portion 50 %",0.2,null,null,null,"Bouillon aux pois frits 50 %",0.05,205,null,null,"Potage asiatique aigre piquant",0.21,202,null,null,"Curry aux légumes"]
[{"$f":"A40+1","v":"2018-05-11"},null,null,"Boisson cacao/malt en port 50 %",0.2,null,"*",null,"Gratin de pangasius",2.64,507,"*",null,"Bami Goreng au poulet",4.37,922,null,null,"avec pois chiche"]
[null,null,null,"Assortiment pains 100 g",0.39,null,null,null,"aux épinards",{"$nulls":4},"Salade mêlée de printemps 30 %",0.46,709]
[null,null,null,"Beurre portion 20 g",0.44,null,null,null,"Riz pilaf aux légumes",0.42,608,null,null,"Sauce salade française  30 g",0.05]
[{"$f":"SUM(O50:O59)*O49+SUM(J50:J59)*J49+SUM(E50:E59)*E49","v":12.147500000000001},null,null,"Confiture/Crème noisettes 1",0.17,null,null,null,"Fenouil gratiné",0.77,705,{"$nulls":7},"Souper",null," "]
[null,null,null,"Jus d'orange 1 dl",0.14000000000000001,{"$nulls":8},"Tresse russe",0.61,1114,null,null,"Spaghettis sautés au quorn et légumes",819]
[null,null,null,"Müesli-déjeuner 30 g",0.25]
[null,null,null,"Fromages divers 30 g",0.54,null,null,null,"Thé froid maison 200 %",0.1,100,null,null,"Thé froid maison 200 %",0.1,100,null,null," "]
["Snack",{"$nulls":7},"Mélange de fruits 1 pc",0.35,null,null,null,"Bâton de malt 1 pc",0.45]
[{"$nulls":8},"Pomme 1 pc",0.5,null,null,null,"Orange 1 pc",0.4]
[null,null,null,"Licenciement selon performance",0.75,null,null,null,"Garde weekend",0.1,null,null,null,"Garde weekend",0.1,null,null,null,"Dîner"]
["Samedi",null,null,"Café en portion 50 %",0.2,null,"*",null,"Jarret de porc braisé gremolata",2.91,416,null,null,"Quiche aux oignons et fromage",3.09,915,null,null,"Gnocchi de pommes de terre"]
[{"$f":"A51+1","v":"2018-05-12"},null,null,"Boisson cacao/malt en port 50 %",0.2,null,null,null,"Gnocchi de pommes de terre",0.68,null,null,null,"Salade de betteraves 30 %",0.1,812,null,null,"avec courgettes et ricotta"]
[null,"  ",null,"Assortiment pains 100 g",0.39,null,null,null,"Courgettes étuvées",0.75,704,null,null,"Salade de carottes 30 %",0.12,810]
[null,null,null,"Beurre portion 20 g",0.44,{"$nulls":8},"Salade de mais 30 %",0.15,808]
[{"$f":"SUM(O61:O70)*O60+SUM(J61:J70)*J60+SUM(E61:E70)*E60","v":2.9125000000000001},null,null,"Confiture/Crème noisettes 1",0.17,null,null,null,"Croissant aux noisettes CF 4 1 pc",1.2,null,null,null,"Salade mêlée de printemps 30 %",0.15,709,null,null,"Souper"]
[null,null,null,"Jus d'orange 1 dl",0.14000000000000001,{"$nulls":8},"Sauce salade balsamico 30 g",0.05,null,null,null,"Quiche aux oignons et fromage",813]
[null,null,null,"Müesli-déjeuner 30 g",0.25]
[null,null,null,"Charcuterie 50 g",0.6,null,null,null,"Thé pommes-pêches",0.1,100,null,null,"Thé pommes-pêches",0.1,100]
["Snack",{"$nulls":7},"Biscuit militaire 1 pc",0.55000000000000004,null,null,null,"Sucre de raisin 1 pc",0.15]
[{"$nulls":8},"Poire 1 pc",0.6,null,null,null,"Pomme 1 pc",0.5]
[null,null,null,"Garde weekend",0.1,null,null,null,"Garde weekend",0.1,null,null,null,"Garde weekend",0.1,null,null,null,"Dîner"]
["Dimanche",null,null,"Café en portion 50 %",0.2,null,"*",null,"Gigot d'agneau roulé rôti",4.45,422,null,null,"Café complet",3.93,null,null,null,"Pommes boulangere",500]
[{"$f":"A62+1","v":"2018-05-13"},null,null,"Boisson cacao/malt en port 50 %",0.2,null,null,null,"avec jus de thym",{"$nulls":9},"avec Œuf au plat"]
[null,null,null,"Tresse 100 g",1.35,null,null,null,"Pommes boulangere",1,600]
[null,null,null,"Beurre portion 20 g",0.44,null,null,null,"Haricots verts braisés",0.54,604,null,null," "]
[{"$f":"SUM(O72:O81)*O71+SUM(J72:J81)*J71+SUM(E72:E81)*E71","v":1.6060000000000001}," ",null,"Confiture/Crème noisettes 1",0.17,null,null,null,"Glace à la vanille 50 g",0.49,{"$nulls":8},"Souper",null,null," "]
[null,null,null,"Jus d'orange 1 dl",0.14000000000000001,null,null,null,"Sauce au chocolat 30 g",0.1,{"$nulls":8},"Café complet"]
[null,null,null,"Rösti 50 %",0.25,612]
[null,null,null,"Œuf au plat 1 pc",0.5,null,null,null,"Thé noir 200 %",0.1,103,null,null,"Thé noir 200 %",0.1,103]
["Snack",{"$nulls":7},"Bretzeli 1 pc",0.6,null,null,null,"Bâton aux céréales fruit 1 pc",0.2]
[{"$nulls":8},"Pomme 1 pc",0.5,null,null,null,"Banane 1 pc",0.8]
[{"$nulls":13}," "]
["Décompte de la subsistance",{"$nulls":7},"Certifié exact",{"$nulls":4},"Pour l'exactitude technique",{"$nulls":4},"Approuvé"]
["Utilisation selon plan de la subsistance",null,null,null,{"$f":"(A10+A21+A32+A43+A54+A65+A76)*100","v":6166.6},null,null,null,"Fourier",{"$nulls":4},"Quartier-maitre",{"$nulls":4},"Le commandant"]
["Crédit subsistance",null,null,null,{"$f":"'Übersicht und Anleitung'!D18*100","v":6300}]
["Solde",null,null,null,{"$f":"E85-E84","v":133.39999999999964}]
[]
["Déclaration d'origine de la viande, du lait, et des œufs: toutes les viandes et succédanés/lait et produits laitiers/œufs proviennent uniquement de Suisse "]
["Déclaration d'origine des poissons et produits marins:  tous les poissons et crustacés proviennent de Suisse ou sont définis par le label ASC / MSC / FOS."]
["Déclaration des ingrédients / substances allergènes (LDAI Art. 8): le chef de cuisine peut répondre aux questions concernant les composantes allergènes."]
["Point de contrôle critique: l'emblème* déclare l'analyse du risque. Une signature confirme la bonne pratique de fabrication (selon Regl 60.006 recettes de cuisine, page 21 et suivante)."]

{"sheet":"Semaine 2","index":7,"n_rows":91,"n_cols":22,"rows_kept":91,"cut":false,"hidden":false,"merged":[[82,4,82,6],[82,13,82,15],[85,18,85,19],[83,4,83,6],[83,8,83,11],[84,4,84,6],[85,4,85,6],[85,8,85,10],[85,13,85,15],[0,18,0,19],[2,1,2,5],[2,6,2,10],[2,11,2,15],[2,16,2,19]]}
["Plan de la subsistance",{"$nulls":5},"du:",null,"2018-05-14",null,null,"à:",null,{"$f":"A73","v":"2018-05-20"},null,"Unité:"]
[]
[null,"Petit déjeuner",{"$nulls":4},"Dîner",{"$nulls":4},"Souper",{"$nulls":4},"Sans viande"]
[null,"PCC","Visa",null,"Prix","Recette","PCC","Visa",null,"Prix","Recette","PCC","Visa",null,"Prix","Recette","PCC","Visa",null,"Recette"]
[null,null,null,"Effectif normal",1,null,null,null,"Effectif normal",1,null,null,null,"Effectif normal",1,null,null,null,"Dîner"]
["Lundi",null,null,"Café en portion 50 %",0.2,null,null,null,"Bouillon aux célestines 50 %",0.05,205,null,null,"Potage paysanne 50 %",0.25,204,null,null,"Macaroni des alpages",900]
[{"$f":"I1","v":"2018-05-14"},null,null,"Boisson cacao/malt en port 50 %",0.2,null,null,null,"Macaroni des alpages",1.94,900,"*",null,"Saucisse de porc avec",2.52]
[null,null,null,"Assortiment pains 100 g",0.39,null,null,null,"Compote aux pommes",0.57999999999999996,1109,null,null,"Sauce oignons 50 %",0.2,301]
[null,null,null,"Beurre portion 20 g",0.44,null,null,null,"Salade mêlée de printemps 30 %",0.46,null,null,null,"Rösti",0.49,612]
[{"$f":"SUM(O6:O15)*O5+SUM(J6:J15)*J5+SUM(E6:E15)*E5","v":11.99},null,null,"Confiture/Crème noisettes 1",0.17,null,null,null,"Salade sauce balsamico 30 g",0.05,null,null,null,"Tomates provençales",0.5,707,null,null,"Souper"]
[null,null,null,"Jus d'orange 1 dl",0.14000000000000001,{"$nulls":8},"Crème au Leckerli",0.56000000000000005,1107,null,null,"Rösti",612]
[null,null,null,"Müesli-déjeuner 30 g",0.25,{"$nulls":13},"avec Œuf au plat"]
[null,null,null,"Fromages divers 30 g",0.54,null,null,null,"Thé froid 200 %",0.13,null,null,null,"Thé froid 200 %",0.13]
["Snack",{"$nulls":7},"Chocolat militaire",0.35,null,null,null,"Sucre de raisin 1 pc",0.15]
[{"$nulls":8},"Pomme 1 pc",0.5,null,null,null,"Banane 1 pc",0.8]
[null,null,null,"Effectif normal",1,null,null,null,"Effectif normal",1,null,null,null,"Effectif normal",1,null,null,null,"Dîner"]
["Mardi",null,null,"Café en portion 50 %",0.2,null,null,null,"Crème de courgette 50 %",0.2,208,null,null,"Bouillon aux croûtons 50 %",0.05,205,null,null,"Purée de pommes de terre",606]
[{"$f":"A7+1","v":"2018-05-15"},null,null,"Boisson cacao/malt en port 50 %",0.2,null,"*",null,"Rôti de porc ",2.67,422,"*",null,"Nasi Goreng",4.26,922,null,null,"gratinée"]
[null,null,null,"Assortiment pains 100 g",0.39,null,null,null,"Purée de pommes de terre",0.53,606,null,null,"Salade mêlée de printemps 30 %",0.15]
[null,null,null,"Beurre portion 20 g",0.44,null,null,null,"Chou-fleur à la polonaise",0.8,703,null,null,"Salade de carottes 30 %",0.2,812]
[{"$f":"SUM(O17:O26)*O16+SUM(J17:J26)*J16+SUM(E17:E26)*E16","v":13.7},null,null,"Confiture/Crème noisettes 1",0.17,{"$nulls":8},"Salade de mais 30 %",0.15,808,null,null,"Souper"]
[null,null,null,"Jus d'orange 1 dl",0.14000000000000001,{"$nulls":8},"Sauce salade balsamico 30 g",0.05,null,null,null,"Riz sautés",608]
[null,null,null,"Müesli-déjeuner 30 g",0.25,{"$nulls":13},"à l'œuf et légumes"]
[null,null,null,"Yogurt portion 100 g",0.5,null,null,null,"Thé pomme-pêche 200 %",0.1,100,null,null,"Thé pomme-pêche 200 %",0.1,100]
["Snack",{"$nulls":7},"Mélange de noix salé",0.6,null,null,null,"Leckerli 1 pc",0.55000000000000004,{"$nulls":5}," "]
[{"$nulls":8},"Poire 1 pc",0.6,null,null,null,"Orange 1 pc",0.4]
[null,null,null,"Effectif normal",1,null,null,null,"Effectif normal",1,null,null,null,"Souper facultatif",0.3,null,null,null,"Dîner"]
["Mercredi",null,null,"Café en portion 50 %",0.2,null,null,null,"Crème de légumes 50 %",0.2,208,null,null,"Gratin de pâtes",3.02,928,null,null,"Blanquette de quorn",427]
[{"$f":"A18+1","v":"2018-05-16"},null,null,"Boisson cacao/malt en port 50 %",0.2,null,"*",null,"Blanquette de poulet",2.81,427,null,null,"Salade de betteraves 30 %",0.1,810,null,null,"à l'emmentaloise"]
[null,null,null,"Assortiment pains 100 g",0.39,null,null,null,"à l'ancienne",{"$nulls":4},"Salade de choux-blanc 30 %",0.18,805]
[null,null,null,"Beurre portion 20 g",0.44,null,null,null,"Ebly",0.65,602,null,null,"Salade de mais 30 %",0.15,808]
[{"$f":"SUM(O28:O37)*O27+SUM(J28:J37)*J27+SUM(E28:E37)*E27","v":9.0300000000000011},null,null,"Confiture/Crème noisettes 1",0.17,null,null,null,"Haricots verts braisés",0.54,704,null,null,"Salade mêlée de printemps 30 %",0.15,null,null,null,"Souper"]
[null,null,null,"Jus d'orange 1 dl",0.14000000000000001,{"$nulls":8},"Sauce salade française  30 g",0.05,null,null,null,"Gratin de pâtes",928]
[null,null,null,"Müesli-déjeuner 30 g",0.25]
[null,null,null,"Birchermüesli",0.5,904,null,null,"Thé framboise-fraise 200 %",0.1,100,null,null,"Thé framboise-fraise 200 %",0.1,100]
["Snack",{"$nulls":7},"Bâton aux céréales miel 1 pc",0.2,null,null,null,"Bretzeli 1 pc",0.55000000000000004,{"$nulls":5}," "]
[{"$nulls":8},"Banane 1 pc",0.8,null,null,null,"Pomme 1 pc",0.5]
[null,null,null,"Effectif normal",1,null,null,null,"Effectif normal",1,null,null,null,"Effectif normal",1,null,null,null,"Dîner"]
["Jeudi",null,null,"Café en portion 50 %",0.2,null,null,null,"Bouillon aux pois frits 50 %",0.04,205,null,null,"Crème de tomate 50 %",0.13,208,null,null,"Piccata de aubergine"]
[{"$f":"A29+1","v":"2018-05-17"},null,null,"Boisson cacao/malt en port 50 %",0.2,null,"*",null,"Piccata de porc",3.39,413,"*",null,"Brochette de cipolata",1.28]
[null,null,null,"Assortiment pains 100 g",0.39,null,null,null,"Sauce  tomates 50 %",0.13,311,null,null,"Beurre aux fines herbes CF4",0.1]
[null,null,null,"Beurre portion 20 g",0.44,null,null,null,"Polenta",0.55000000000000004,610,null,null,"Risotto au vin blanc",0.56999999999999995,611]
[{"$f":"SUM(O39:O48)*O38+SUM(J39:J48)*J38+SUM(E39:E48)*E38","v":12.14},null,null,"Confiture/Crème noisettes 1",0.17,null,null,null,"Ratatouille",0.61,709,null,null,"Salade mêlée de printemps",0.46,null,null,null,"Souper"]
[null,null,null,"Jus d'orange 1 dl",0.14000000000000001,null,null,null,"Cake banane",0.57999999999999996,1105,null,null,"Sauce Thousand Island 30 g",0.11,303,null,null,"Brochette de légumes",null,null," "]
[null,null,null,"Müesli-déjeuner 30 g",0.25]
[null,null,null,"Charcuterie 50 g",0.5,null,null,null,"Thé écorce de fruits 200 %",0.1,100,null,null,"Thé écorce de fruits 200 %",0.1,100,null,null," ",null," "]
["Snack",{"$nulls":7},"Swiss Choco Bits",0.4,null,null,null,"Bâton aux céréales fruit 1 pc",0.2]
[{"$nulls":8},"Pomme 1 pc",0.5,null,null,null,"Poire 1 pc",0.6]
[null,null,null,"Effectif normal",1,null,null,null,"Effectif normal",1,null,null,null,"Licenciement selon performance",0.75,null,null,null,"Dîner"]
["Vendredi",null,null,"Café en portion 50 %",0.2,null,null,null,"Minestrone 50 %",0.31,218,"*",null,"Cornettes pilaf",2.59,1002,null,null,"Hamburger aux céréales et légumes"]
[{"$f":"A40+1","v":"2018-05-18"},null,null,"Boisson cacao/malt en port 50 %",0.2,null,"*",null,"Filet de colin pané",1.88,505,null,null,"Salade mêlée de printemps",0.46]
[null,null,null,"Assortiment pains 100 g",0.39,null,null,null,"Sauce rémoulade",0.34,309,null,null,"Sauce salade française  30 g",0.05]
[null,null,null,"Beurre portion 20 g",0.44,null,null,null,"Pommes natures",0.68,613]
[{"$f":"SUM(O50:O59)*O49+SUM(J50:J59)*J49+SUM(E50:E59)*E49","v":11.215},null,null,"Confiture/Crème noisettes 1",0.17,null,null,null,"Epinards étuvés",0.73,704,null,null,"Tranche  étudiants",1.21,1115,null,null,"Souper",null," "]
[null,null,null,"Jus d'orange 1 dl",0.14000000000000001,{"$nulls":13},"Cornettes pilaf",1002]
[null,null,null,"Müesli-déjeuner 30 g",0.25,{"$nulls":13},"Sauce bolognaise au quorn"]
[null,null,null,"Fromages divers 30 g",0.54,null,null,null,"Thé froid maison 200 %",0.1,100,null,null,"Thé froid maison 200 %",0.1,100,null,null," "]
["Snack",{"$nulls":7},"Bâton aux céréales fruits 1 pc",0.2,null,null,null,"Bâton de malt 1 pc",0.45]
[{"$nulls":8},"Orange 1 pc",0.4,null,null,null,"Banane 1 pc",0.8]
[null,null,null,"Licenciement selon performance",0.75,null,null,null,"Garde weekend",0.1,null,null,null,"Garde weekend",0.1,null,null,null,"Dîner"]
["Samedi",null,null,"Café en portion 50 %",0.2,null,"*",null,"Spare rips de porc",5.27,426,null,null,"Tarte flambée",3,909,null,null,"Pommes au four avec crème aigre"]
[{"$f":"A51+1","v":"2018-05-19"},null,null,"Boisson cacao/malt en port 50 %",0.2,null,null,null,"Pommes au four avec crème aigre",0.94,null,null,null,"Salade mêlée de printemps 30 %",0.15,709]
[null,"  ",null,"Assortiment pains 100 g",0.39,null,null,null,"épi de maïs",1.37,null,null,null,"Salade de betteraves 30 %",0.1,810]
[null,null,null,"Beurre portion 20 g",0.44,null,null,null,"Salades printemps 30 %",0.46,null,null,null,"Salade de mais 30 %",0.15,808]
[{"$f":"SUM(O61:O70)*O60+SUM(J61:J70)*J60+SUM(E61:E70)*E60","v":3.0589999999999997},null,null,"Confiture/Crème noisettes 1",0.17,null,null,null,"Salade sauce balsamico 30 g",0.05,null,null,null,"Sauce salade française  30 g",0.05,null,null,null,"Souper"]
[null,null,null,"Jus d'orange 1 dl",0.14000000000000001,{"$nulls":13},"Tarte flambée sans lard",909]
[null,null,null,"Müesli-déjeuner 30 g",0.25]
[null,null,null,"Salami 50 g",0.51,null,null,null,"Thé framboise-fraise 200 %",0.1,100,null,null,"Thé framboise-fraise 200 %",0.1,100]
["Snack",{"$nulls":7},"Biscuit militarie 1 pc",0.35,null,null,null,"Sucre de raisin 1 pc",0.15]
[{"$nulls":8},"Poire 1 pc",0.6,null,null,null,"Pomme 1 pc",0.5]
[null,null,null,"Garde weekend",0.1,null,null,null,"Garde weekend",0.1,null,null,null,"Garde weekend",0.1,null,null,null,"Dîner"]
["Dimanche",null,null,"Café en portion 50 %",0.2,null,"*",null,"Poitrine de veau roulée glacée",3.2,422,null,null,"Café complet",3.93,null,null,null,"Gratin de pommes de terre",605]
[{"$f":"A62+1","v":"2018-05-20"},null,null,"Boisson cacao/malt en port 50 %",0.2,null,null,null,"avec jus du romarin"]
[null,null,null,"Tresse 100 g",1.35,null,null,null,"Gratin de pommes de terre",0.93,605]
[null,null,null,"Beurre portion 20 g",0.44,null,null,null,"Pois mange-tout étuvés",0.79,704,null,null," "]
[{"$f":"SUM(O72:O81)*O71+SUM(J72:J81)*J71+SUM(E72:E81)*E71","v":1.5519999999999998}," ",null,"Confiture/Crème noisettes 1",0.17,{"$nulls":13},"Souper",null,null," "]
[null,null,null,"Jus d'orange 1 dl",0.14000000000000001,null,null,null,"Tiramisu ",1.22,1118,{"$nulls":7},"Café complet"]
[null,null,null,"Rösti 50 %",0.25,612]
[null,null,null,"Œuf au plat 1 pc",0.5,null,null,null,"Thé noir 200 %",0.1,103,null,null,"Thé noir 200 %",0.1,103]
["Snack",{"$nulls":7},"Bretzeli 1 pc",0.6,null,null,null,"Bâton aux céréales fruit 1 pc",0.2]
[{"$nulls":8},"Banane 1 pc",0.8,null,null,null,"Orange 1 pc",0.4]
[{"$nulls":13}," "]
["Décompte de la subsistance",{"$nulls":7},"Certifié exact",{"$nulls":4},"Pour l'exactitude technique",{"$nulls":4},"Approuvé"]
["Utilisation selon plan de la subsistance",null,null,null,{"$f":"(A10+A21+A32+A43+A54+A65+A76)*100","v":6268.6},null,null,null,"Fourier",{"$nulls":4},"Quartier-maitre",{"$nulls":4},"Le commandant"]
["Crédit subsistance",null,null,null,{"$f":"'Übersicht und Anleitung'!D18*100","v":6300}]
["Solde",null,null,null,{"$f":"E85-E84","v":31.399999999999636}]
[]
["Déclaration d'origine de la viande, du lait, et des œufs: toutes les viandes et succédanés/lait et produits laitiers/œufs proviennent uniquement de Suisse "]
["Déclaration d'origine des poissons et produits marins:  tous les poissons et crustacés proviennent de Suisse ou sont définis par le label ASC / MSC / FOS."]
["Déclaration des ingrédients / substances allergènes (LDAI Art. 8): le chef de cuisine peut répondre aux questions concernant les composantes allergènes."]
["Point de contrôle critique: l'emblème* déclare l'analyse du risque. Une signature confirme la bonne pratique de fabrication (selon Regl 60.006 recettes de cuisine, page 21 et suivante)."]

{"sheet":"Semaine 3","index":8,"n_rows":91,"n_cols":22,"rows_kept":91,"cut":false,"hidden":false,"merged":[[82,4,82,6],[82,13,82,15],[85,18,85,19],[83,4,83,6],[83,8,83,11],[84,4,84,6],[85,4,85,6],[85,8,85,10],[85,13,85,15],[0,18,0,19],[2,1,2,5],[2,6,2,10],[2,11,2,15],[2,16,2,19]]}
["Plan de la subsistance",{"$nulls":5},"du:",null,"2018-05-21",null,null,"à:",null,{"$f":"A73","v":"2018-05-27"},null,"Unité:"]
[]
[null,"Petit déjeuner",{"$nulls":4},"Dîner",{"$nulls":4},"Souper",{"$nulls":4},"Sans viande"]
[null,"PCC","Visa",null,"Prix","Recette","PCC","Visa",null,"Prix","Recette","PCC","Visa",null,"Prix","Recette","PCC","Visa",null,"Recette"]
[null,null,null,"Effectif normal",1,null,null,null,"Effectif normal",1,null,null,null,"Effectif normal",1,null,null,null,"Dîner"]
["Lundi",null,null,"Café en portion 50 %",0.2,null,null,null,"Bouillon aux célestines 50 %",0.05,205,null,null,"Crème au cresson 50 %",0.14000000000000001,208,null,null,"Spaghettis",617]
[{"$f":"I1","v":"2018-05-21"},null,null,"Boisson cacao/malt en port 50 %",0.2,null,null,null,"Spaghettis",0.25,617,"*",null,"Rôti haché de porc maison",1.92,null,null,null,"Sauce  tomates",311]
[null,null,null,"Assortiment pains 100 g",0.39,null,null,null,"Sauce  tomates",0.16,311,null,null,"Sauce moutarde (brune)",7.0000000000000007E-2,301,null,null,"Pesto CF 4 20 g"]
[null,null,null,"Beurre portion 20 g",0.44,null,null,null,"Pesto CF 4 20 g",7.0000000000000007E-2,null,null,null,"Pommes nouvelles sautées",0.96,600]
[{"$f":"SUM(O6:O15)*O5+SUM(J6:J15)*J5+SUM(E6:E15)*E5","v":9.15},null,null,"Confiture/Crème noisettes 1",0.17,null,null,null,"Salade Mêlée de printemps",0.46,null,null,null,"Carottes étuvées",0.49,704,null,null,"Souper"]
[null,null,null,"Jus d'orange 1 dl",0.14000000000000001,null,null,null,"Salade sauce à la française 30 g",0.05,{"$nulls":8},"Hamburger aux céréales et légumes"]
[null,null,null,"Müesli-déjeuner 30 g",0.25,{"$nulls":13},"avec fromage"]
[null,null,null,"Fromages divers 30 g",0.54,null,null,null,"Thé pomme-pêche 200 %",0.1,100,null,null,"Thé pomme-pêche 200 %",0.1,100]
["Snack",{"$nulls":7},"Biscuit militaire 1 pc",0.35,null,null,null,"Leckerli 1 pc",0.55000000000000004]
[{"$nulls":8},"Poire 1 pc",0.6,null,null,null,"Pomme 1 pc",0.5]
[null,null,null,"Effectif normal",1,null,null,null,"Effectif normal",1,null,null,null,"Effectif normal",1,null,null,null,"Dîner"]
["Mardi",null,null,"Café en portion 50 %",0.2,null,null,null,"Crème de légumes 50 %",0.2,208,null,null,"Bouillon aux œufs 50 %",0.05,205,null,null,"Omelette aux fromages"]
[{"$f":"A7+1","v":"2018-05-22"},null,null,"Boisson cacao/malt en port 50 %",0.2,null,"*",null,"Côtelette de porc",3.24,null,null,null,"Lasagne aux épinards et ricotta",2.4500000000000002,915]
[null,null,null,"Assortiment pains 100 g",0.39,null,null,null,"Beurre aux fines herbes",0.35,null,null,null,"Salade Mêlée de printemps 30 %",0.15,709]
[null,null,null,"Beurre portion 20 g",0.44,null,null,null,"Risotto au vin blanc",0.56999999999999995,611,null,null,"Salade de betteraves 30 %",0.1,810]
[{"$f":"SUM(O17:O26)*O16+SUM(J17:J26)*J16+SUM(E17:E26)*E16","v":13.399999999999999},null,null,"Confiture/Crème noisettes 1",0.17,null,null,null,"Courgettes à la provençale",0.68,704,null,null,"Salade de mais 30 %",0.15,808,null,null,"Souper"]
[null,null,null,"Jus d'orange 1 dl",0.14000000000000001,{"$nulls":8},"Sauce salade balsamico 30 g",0.05,null,null,null,"Lasagne aux épinards et ricotta",915]
[null,null,null,"Müesli-déjeuner 30 g",0.25,{"$nulls":8},"Crème mocca",0.42,1107]
[null,null,null,"Charcuterie 50 g",0.6,null,null,null,"Thé framboise-fraise 200 %",0.1,100,null,null,"Thé framboise-fraise 200 %",0.1,100]
["Snack",{"$nulls":7},"Mélange de noix salé",0.6,null,null,null,"Cracker",0.6,{"$nulls":5}," "]
[{"$nulls":8},"Banane 1 pc",0.8,null,null,null,"Orange 1 pc",0.4]
[null,null,null,"Effectif normal",1,null,null,null,"Effectif normal",1,null,null,null,"Souper facultatif",0.3,null,null,null,"Dîner"]
["Mercredi",null,null,"Café en portion 50 %",0.2,null,null,null,"Soupe de gingembre et carottes",0.22,219,null,null,"Croûtes valaisannes",3.61,902,null,null,"Potée de lentilles et légumes",213]
[{"$f":"A18+1","v":"2018-05-23"},null,null,"Boisson cacao/malt en port 50 %",0.2,null,"*",null,"Blanquette de poulet à l'emmentaloise",2.44,427,null,null,"Salade de carottes 30 %",0.1,812]
[null,null,null,"Assortiment pains 100 g",0.39,null,null,null,"Purée de pommes de terre",0.53,606,null,null,"Salade de mais 30 %",0.15,808]
[null,null,null,"Beurre portion 20 g",0.44,null,null,null,"Peperonata",0.59,709,null,null,"Salade mêlée de printemps 30 %",0.15]
[{"$f":"SUM(O28:O37)*O27+SUM(J28:J37)*J27+SUM(E28:E37)*E27","v":8.472999999999999},null,null,"Confiture/Crème noisettes 1",0.17,{"$nulls":8},"Sauce salade balsamico 30 g",0.05,null,null,null,"Souper"]
[null,null,null,"Jus d'orange 1 dl",0.14000000000000001,{"$nulls":13},"Croûtes valaisanne",902]
[null,null,null,"Müesli-déjeuner 30 g",0.25]
[null,null,null,"Birchermüesli",0.5,904,null,null,"Thé écorce de fruits 200 %",0.1,100,null,null,"Thé écorce de fruits 200 %",0.1,100]
["Snack",{"$nulls":7},"Bâton aux céréales miel 1 pc",0.2,null,null,null,"Mélange de fruits 1 pc",0.35,{"$nulls":5}," "]
[{"$nulls":8},"poire 1 pc",0.6,null,null,null,"Pomme 1 pc",0.5]
[null,null,null,"Effectif normal",1,null,null,null,"Effectif normal",1,null,null,null,"Effectif normal",1,null,null,null,"Dîner"]
["Jeudi",null,null,"Café en portion 50 %",0.2,null,null,null,"Purée de légumes 50 %",0.2,219,"*",null,"Demi poulet rôti",4.34,null,null,null,"Gratin de légumes",700]
[{"$f":"A29+1","v":"2018-05-24"},null,null,"Boisson cacao/malt en port 50 %",0.2,null,"*",null,"Filet de pangasius frit",2.33,501,null,null,"et sauces"]
[null,null,null,"Assortiment pains 100 g",0.39,null,null,null,"Sauce rémoulade",0.34,309,null,null,"Pommes chips CF 4",1.18]
[null,null,null,"Beurre portion 20 g",0.44,null,null,null,"Pommes de terre nature avec ciboulette",0.7,600]
[{"$f":"SUM(O39:O48)*O38+SUM(J39:J48)*J38+SUM(E39:E48)*E38","v":14.690000000000001},null,null,"Confiture/Crème noisettes 1",0.17,null,null,null,"Epinards étuvés",0.73,704,null,null,"Cake aux carottes",0.47,1105,null,null,"Souper"]
[null,null,null,"Jus d'orange 1 dl",0.14000000000000001,{"$nulls":13},"Hamburger aux légumes",null,null," "]
[null,null,null,"Müesli-déjeuner 30 g",0.25]
[null,null,null,"Yogurt portion 100 g",0.5,null,null,null,"Thé pomme-pêche 200%",0.13,null,null,null,"Thé pomme-pêche 200%",0.13,null,null,null," ",null," "]
["Snack",{"$nulls":7},"Bâton aux céréales fruit 1 pc",0.2,null,null,null,"Bâton au malt (ovo choc) 1 pc",0.45]
[{"$nulls":8},"Orange 1 pc",0.4,null,null,null,"Banane 1 pc",0.8]
[null,null,null,"Effectif normal",1,null,null,null,"Effectif normal",1,null,null,null,"Licenciement selon performance",0.75,null,null,null,"Dîner"]
["Vendredi",null,null,"Comella 5 dl CF4",3.8,null,null,null,"Sandwich au thon 1 pc",1.17,{"$nulls":8},"Sandwich au fromage 1 pc"]
[{"$f":"A40+1","v":"2018-05-25"},null,null,"et croissant",1.1499999999999999,null,null,null,"Bâton aux céréales 1 pc",0.2]
[{"$nulls":8},"Chocolat militaire 1 pc",0.35]
[{"$nulls":8},"Pomme 1 pc",0.5]
[{"$f":"SUM(O50:O59)*O49+SUM(J50:J59)*J49+SUM(E50:E59)*E49","v":8.0699999999999985},{"$nulls":7},"PET Boisson douce 5 dl ",0.9,{"$nulls":10}," "]
[]
[]
[]
["Snack"]
[]
[null,null,null,"Licenciement selon performance",0.75,null,null,null,"Garde weekend",0.1,null,null,null,"Garde weekend",0.1,null,null,null,"Dîner"]
["Samedi"]
[{"$f":"A51+1","v":"2018-05-26"}]
[null,"  "]
[]
[{"$f":"SUM(O61:O70)*O60+SUM(J61:J70)*J60+SUM(E61:E70)*E60","v":0},{"$nulls":17},"Souper"]
[]
[]
[]
["Snack"]
[]
[null,null,null,"Garde weekend",0.1,null,null,null,"Garde weekend",0.1,null,null,null,"Garde weekend",0.1,null,null,null,"Dîner"]
["Dimanche"]
[{"$f":"A62+1","v":"2018-05-27"}]
[]
[]
[{"$f":"SUM(O72:O81)*O71+SUM(J72:J81)*J71+SUM(E72:E81)*E71","v":0}," ",{"$nulls":16},"Souper",null,null," "]
[]
[]
[]
["Snack"]
[]
[{"$nulls":13}," "]
["Décompte de la subsistance",{"$nulls":7},"Certifié exact",{"$nulls":4},"Pour l'exactitude technique",{"$nulls":4},"Approuvé"]
["Utilisation selon plan de la subsistance",null,null,null,{"$f":"(A10+A21+A32+A43+A54+A65+A76)*100","v":5378.2999999999993},null,null,null,"Fourier",{"$nulls":4},"Quartier-maitre",{"$nulls":4},"Le commandant"]
["Crédit subsistance",null,null,null,{"$f":"'Übersicht und Anleitung'!D18*100-('Übersicht und Anleitung'!C18*100*2)","v":4500}]
["Solde",null,null,null,{"$f":"E85-E84","v":-878.29999999999927}]
[]
["Déclaration d'origine de la viande, du lait, et des œufs: toutes les viandes et succédanés/lait et produits laitiers/œufs proviennent uniquement de Suisse "]
["Déclaration d'origine des poissons et produits marins:  tous les poissons et crustacés proviennent de Suisse ou sont définis par le label ASC / MSC / FOS."]
["Déclaration des ingrédients / substances allergènes (LDAI Art. 8): le chef de cuisine peut répondre aux questions concernant les composantes allergènes."]
["Point de contrôle critique: l'emblème* déclare l'analyse du risque. Une signature confirme la bonne pratique de fabrication (selon Regl 60.006 recettes de cuisine, page 21 et suivante)."]

{"sheet":"Piano suss CQ","index":9,"n_rows":91,"n_cols":20,"rows_kept":91,"cut":false,"hidden":false,"merged":[[85,18,85,19],[0,18,0,19],[2,1,2,5],[2,6,2,10],[2,11,2,15],[2,16,2,19],[82,4,82,6],[83,4,83,6],[84,4,84,6],[85,4,85,6],[85,8,85,10],[85,13,85,15]]}
["Piano di sussistenza",{"$nulls":5},"da:",null,"2018-04-30",null,null,"a:",null,{"$f":"A73","v":"2018-05-06"},null,"Unità:"]
[]
[null,"Colazione",{"$nulls":4},"Pranzo",{"$nulls":4},"Cena",{"$nulls":4},"senza carne"]
[null,"PCC","Visto",null,"Prezzo","Ricetta","PCC","Visto",null,"Prezzo","Ricetta","PCC","Visto",null,"Prezzo","Ricetta","PCC","Visto",null,"Ricetta"]
[null,null,null,"Effetivo normale",1,null,null,null,"Effetivo normale",1,null,null,null,"Effetivo normale",1,null,null,null,"Pranzo"]
["Lunedì",{"$nulls":7},"Vol-au-vent con salsa di carne e funghi",2.33,923,null,null,"Brodo celestino 50%",0.05,205,null,null,"Vol au vent con funghi",923]
[{"$f":"I1","v":"2018-04-30"},{"$nulls":12},"Maccheroni con burro",0.27,617]
[{"$nulls":8},"Pane 100 g ",0.39,null,null,null,"Salsa Waluca",0.68,311]
[{"$nulls":13},"Insalata di carote ",0.61,812]
[{"$f":"SUM(O6:O15)*O5+SUM(J6:J15)*J5+SUM(E6:E15)*E5","v":7.08},{"$nulls":17},"Cena"]
[{"$nulls":18},"Maccheroni con Burro",617]
[{"$nulls":18},"Salsa ai pomodori",311]
[{"$nulls":8},"PET Bevanda dolce 5 dl",0.9,null,null,null,"Tè nero 200 %",0.05,103]
["Snack",{"$nulls":7},"Cioccolata militare",0.35,null,null,null,"Destrosio 1 St",0.15]
[{"$nulls":8},"Mele 1 St",0.5,null,null,null,"Banana 1 St",0.8]
[null,null,null,"Effetivo normale",1,null,null,null,"Effetivo normale",1,null,null,null,"Effetivo normale",1,null,null,null,"Pranzo"]
["Martedi",null,null,"Caffè 50%",0.2,null,null,null,"Crema ai pomodori 50%",0.13,208,null,null,"Zuppa d'orzo al grigionese 50%",0.23,208,null,null,"Curry di verdura"]
[{"$f":"A7+1","v":"2018-05-01"},null,null,"Cacao/bevanda al malto in porzioni 50%",0.2,null,"*",null,"Stufato di pollo con curry",1.71,403,null,null,"Rösti vallasana",2.34,903]
[null,null,null,"Sorta di pane 100g",0.39,null,null,null,"Riso con verdurine",0.42,608,null,null,"Insalata mista primavera 30%",0.46]
[null,null,null,"Burro porzione 20g",0.44,{"$nulls":8},"Salsa per insalata balsamico 30g",0.05]
[{"$f":"SUM(O17:O26)*O16+SUM(J17:J26)*J16+SUM(E17:E26)*E16","v":10.14},null,null,"Marmellata/Spalmatura di noci 1",0.17,{"$nulls":13},"Cena"]
[null,null,null,"Succo d'arancia 1 dl",0.14000000000000001,{"$nulls":8},"Crema al chioccolato",0.42,1007,null,null,"Rösti vegetariani con spiegelei",903]
[]
[null,null,null,"Formaggio diverso 30g",0.54,null,null,null,"Tè mela-pesca 200%",0.1,100,null,null,"Tè mela-pesca 200%",0.1,100]
["Snack",{"$nulls":7},"Biscotti militari 1 stk",0.55000000000000004,null,null,null,"Leckerli 1 St",0.55000000000000004]
[{"$nulls":8},"Pera",0.6,null,null,null,"Orancione 1 St ",0.4]
[null,null,null,"Effetivo normale",1,null,null,null,"Effetivo normale",1,null,null,null,"Cena facoltativa",0.3,null,null,null,"Pranzo"]
["Mercroledi",null,null,"Caffè 50%",0.2,null,null,null,"Brodo palline fritte",0.05,205,null,null,"Zuppa di verdure 50%",0.2,208,null,null,"Bianchetto di quorn all'emmentalese",427]
[{"$f":"A18+1","v":"2018-05-02"},null,null,"Cacao/bevanda al malto in porzioni 50%",0.2,null,"*",null,"Bianchetto di pollo all'emmentalese",2.44,427,null,null,"Spaghetti con burro",0.27,617]
[null,null,null,"Sorta di pane 100g",0.39,null,null,null,"Purea di patate",0.53,606,null,null,"Sauce Carbonara",2.08,906]
[null,null,null,"Burro porzione 20g",0.44,null,null,null,"Fagioli al stufato",0.5,704]
[{"$f":"SUM(O28:O37)*O27+SUM(J28:J37)*J27+SUM(E28:E37)*E27","v":7.9779999999999998},null,null,"Marmellata/Spalmatura di noci 1",0.17,{"$nulls":8},"Insalata mista primavera 30%",0.46,null,null,null,"Cena"]
[null,null,null,"Succo d'arancia 1 dl",0.14000000000000001,{"$nulls":8},"Salsa per insalata francese  ",0.05,null,null,null,"Spaghetti con burro",617]
[{"$nulls":18},"Pesto CF4 20g"]
[null,null,null,"Salumi diverso",0.6,null,null,null,"Tè lampone-fragola 200%",0.1,100,null,null,"Tè lampone-fragola 200%",0.1,100]
["Snack",{"$nulls":7},"Bastoncino ai cereali gusto lampone 1 St",0.2,null,null,null,"Swiss Choco Bits 1 St",0.4]
[{"$nulls":8},"Banana 1 St",0.8,null,null,null,"Mele 1 St",0.5]
[null,null,null,"Effetivo normale",1,null,null,null,"Effetivo normale",1,null,null,null,"Effetivo normale",1,null,null,null,"Pranzo"]
["Giovedi",null,null,"Caffè 50%",0.2,null,null,null,"Zuppa di verdure paesana 50 %",0.25,204,null,null,"Brodo con crostini all'aglio 50%",0.05,205,null,null,"Tranci di semolino con verdure",603]
[{"$f":"A29+1","v":"2018-05-03"},null,null,"Cacao/bevanda al malto in porzioni 50%",0.2,null,"*",null,"Petto di vitello arrotolato e glassato",3.2,422,"*",null,"Mah-Meh con maiale",3.47,919,null,null,"e gratinate con formaggio"]
[null,null,null,"Sorta di pane 100g",0.39,null,null,null,"Polenta Bramata",0.73,603]
[null,null,null,"Burro porzione 20g",0.44,null,null,null,"Spinaci stufati",0.73,704]
[{"$f":"SUM(O39:O48)*O38+SUM(J39:J48)*J38+SUM(E39:E48)*E38","v":13.379999999999999},null,null,"Marmellata/Spalmatura di noci 1",0.17,{"$nulls":13},"Cena"]
[null,null,null,"Succo d'arancia 1 dl",0.14000000000000001,{"$nulls":8},"Torta alla mele",0.86,0,null,null,"Spaghetti"]
[{"$nulls":18},"con verdure e uovo"]
[null,null,null,"Birchermüesli 30 %",0.5,904,null,null,"Tè di frutta 200%",0.1,100,null,null,"Tè di frutta 200%",0.1,100]
["Snack",{"$nulls":7},"Bretzeli 1 St",0.55000000000000004,null,null,null,"Bastoncino ai cereali gusto albicocca 1 St",0.2]
[{"$nulls":8},"Mele 1 St",0.5,null,null,null,"Pera",0.6]
[null,null,null,"Effetivo normale",1,null,null,null,"Effetivo normale",1,null,null,null,"Congedo di prestazione",0.75,null,null,null,"Pranzo"]
["Venerdi",null,null,"Caffè 50%",0.2,null,null,null,"Brodo alle uova",0.05,205,null,null,"Minestra di pane",0.12,206,null,null,"Zucchettipiccata"]
[{"$f":"A40+1","v":"2018-05-04"},null,null,"Cacao/bevanda al malto in porzioni 50%",0.2,null,"*",null,"Filetti di pangasius inpastella de friggere",2.33,501,null,null,"Torta di formaggio e alle cipolle",3.09,915]
[null,null,null,"Sorta di pane 100g",0.39,null,null,null,"Salsa remoulade",0.34,309,null,null,"Insalata di cavolo bianco 50%",0.27,805]
[null,null,null,"Burro porzione 20g",0.44,null,null,null,"Patate nature",0.68,613,null,null,"Insalata di barbabietole 50%",0.15,810]
[{"$f":"SUM(O50:O59)*O49+SUM(J50:J59)*J49+SUM(E50:E59)*E49","v":11.8675},null,null,"Marmellata/Spalmatura di noci 1",0.17,null,null,null,"Zucchine stufate",0.75,704,null,null,"Insalata mista primavera 30%",0.15,null,null,null,"Cena"]
[null,null,null,"Succo d'arancia 1 dl",0.14000000000000001,{"$nulls":8},"Salsa per insalata francese  ",0.05,null,null,null,"Torta di formaggio e alle cipolle",915]
[{"$nulls":8},"Cake alle banane",0.57999999999999996,1006]
[null,null,null,"Yogurt di frutti Port 100 g",0.5,null,null,null,"Tè freddo fatto in casa 200%",0.1,100,null,null,"Tè freddo fatto in casa 200%",0.1,100]
["Snack",{"$nulls":7},"Cracker 1 St",0.6,null,null,null,"Bastoncino al malto (ovo choc)",0.6]
[{"$nulls":8},"Orancione 1 St ",0.4,null,null,null,"Banana 1 St",0.8]
[null,null,null,"Congedo di prestazione",0.75,null,null,null,"Guardia",0.1,null,null,null,"Guardia",0.1,null,null,null,"Pranzo"]
["Sabato",null,null,"Caffè 50%",0.2,null,"*",null,"Castelletto di maiale",3.24,null,null,null,"Pizza prosciutto",4.1399999999999997,924,null,null,"braciola al quorn con verdure"]
[{"$f":"A51+1","v":"2018-05-05"},null,null,"Cacao/bevanda al malto in porzioni 50%",0.2,null,null,null,"Burro alla erbe aromatiche",{"$nulls":4},"Insalata di carote 50%",0.3,812]
[null,null,null,"Treccia 100 g",1.35,null,null,null,"Patate arrostito",0.96,600,null,null,"Insalata di mais 50%",0.25,808]
[null,null,null,"Burro porzione 20g",0.44,null,null,null,"Broccoli con tonsilla",1.27,703,null,null,"Insalata mista primavera 30%",0.15]
[{"$f":"SUM(O61:O70)*O60+SUM(J61:J70)*J60+SUM(E61:E70)*E60","v":3.4634999999999998},null,null,"Marmellata/Spalmatura di noci 1",0.17,{"$nulls":8},"Salsa per insalata balsamico 30g",0.05,null,null,null,"Cena"]
[null,null,null,"Succo d'arancia 1 dl",0.14000000000000001,{"$nulls":13},"Pizza Calzone con uovo",808]
[]
[null,null,null,"Salami 50 g",0.51,null,null,null,"Tè lampone-fragola 200%",0.1,100,null,null,"Tè lampone-fragola 200%",0.1,100]
["Snack",{"$nulls":7},"Biscotti militari 1 stk",0.35,null,null,null,"Destrosio 1 St",0.15]
[{"$nulls":8},"Pera",0.6,null,null,null,"Orancione 1 St ",0.4]
[null,null,null,"Guardia",0.1,null,null,null,"Guardia",0.1,null,null,null,"Guardia",0.1,null,null,null,"Pranzo"]
["Domenica",null,null,"Caffè 50%",0.2,null,"*",null,"Mezzo pollo arrostito",4.34,null,null,null,"Café completo",3.93,null,null,null,"verdure mediterranea"]
[{"$f":"A62+1","v":"2018-05-06"},null,null,"Cacao/bevanda al malto in porzioni 50%",0.2,null,null,null,"con salse",{"$nulls":9},"al forno "]
[null,null,null,"Treccia 100 g",1.35,null,null,null,"Pommes Chips CF4",1.18,{"$nulls":8},"con mozzarella e basilico"]
[null,null,null,"Burro porzione 20g",0.44,null,null,null,"Krapfen CF 4",1.7]
[{"$f":"SUM(O72:O81)*O71+SUM(J72:J81)*J71+SUM(E72:E81)*E71","v":1.6699999999999997},null,null,"Marmellata/Spalmatura di noci 1",0.17,{"$nulls":13},"Cena"]
[null,null,null,"Succo d'arancia 1 dl",0.14000000000000001,{"$nulls":13},"Café completo"]
[null,null,null,"Rösti 50 %",0.25,612]
[null,null,null,"Spiegelei 1 St",0.5,null,null,null,"Tè nero 200%",0.1,103,null,null,"Tè nero 200%",0.1,103]
["Snack",{"$nulls":7},"Bretzeli 1 St",0.6,null,null,null,"Bastoncino ai cereali gusto mela",0.2]
[{"$nulls":8},"Mele 1 St",0.5,null,null,null,"Banana 1 St",0.8]
[]
["Conteggio della sussistenza",{"$nulls":7},"Certificata l'esattezza:",{"$nulls":4},"Fattibilità specialistica:",{"$nulls":4},"Approviazione:"]
["Utilizzo sec piano sussistenza",null,null,null,{"$f":"(A10+A21+A32+A43+A54+A65+A76)*100","v":5557.9000000000005},null,null,null,"Il contabile",{"$nulls":4},"Il Quartiermastro",{"$nulls":4},"Il Comandante"]
["Credito suss ",null,null,null,{"$f":"'Übersicht und Anleitung'!D18*100","v":6300}]
["Saldo",null,null,null,{"$f":"E85-E84","v":742.09999999999945}]
[]
["Dichiarazione d'origine della carne, del latte e delle uova: tutte le carni e succedanei/latte e prodotti lattieri/uova provengono unicamente dalla Svizzera."]
["Dichiarazione d'origine die pesci e prodotti marini: tutti i peschi e crostacei provengono dalla Svizzera o sono definiti per il marchio ASC / MSC / FOS."]
["Dichiarazione degli ingredienti / sostanze allergeniche ( Lderr art. 8): i capi cucina possono rispondere alle domande riguardanti componenti allergenici."]
["Punti di controllo critici: il simbolo * dichiara l'analisi del rischio. Una firma conferma una buona pratica di fabbricazione (vedi regl 06.006 Ricettario di cucina, pag.21 e ss ricette)."]

{"sheet":"Settimana 1","index":10,"n_rows":91,"n_cols":20,"rows_kept":91,"cut":false,"hidden":false,"merged":[[85,18,85,19],[0,18,0,19],[2,1,2,5],[2,6,2,10],[2,11,2,15],[2,16,2,19],[82,4,82,6],[83,4,83,6],[84,4,84,6],[85,4,85,6],[85,8,85,10],[85,13,85,15]]}
["Piano di sussistenza",{"$nulls":5},"da:",null,"2018-05-07",null,null,"a:",null,{"$f":"A73","v":"2018-05-13"},null,"Unità:"]
[]
[null,"Colazione",{"$nulls":4},"Pranzo",{"$nulls":4},"Cena",{"$nulls":4},"senza carne"]
[null,"PCC","Visto",null,"Prezzo","Ricetta","PCC","Visto",null,"Prezzo","Ricetta","PCC","Visto",null,"Prezzo","Ricetta","PCC","Visto",null,"Ricetta"]
[null,null,null,"Guardia",0.1,null,null,null,"Effetivo normale",1,null,null,null,"Effetivo normale",1,null,null,null,"Pranzo"]
["Lunedì",null,null,"Caffè 50%",0.2,null,null,null,"Brodo palline fritte",0.05,205,null,null,"Crema di curry 50 %",0.1,212,null,null,"Ravioli di spinaci",824]
[{"$f":"I1","v":"2018-05-07"},null,null,"Cacao/bevanda al malto in porzioni 50%",0.2,null,null,null,"Ravioli",1,926,"*",null,"Asta di pollo",2.37]
[null,null,null,"Sorta di pane 100g",0.39,null,null,null,"Ricotta 20 g",0.25,null,null,null,"Salsa al vino rosso"]
[null,null,null,"Burro porzione 20g",0.44,null,null,null,"Insalata mista primavera 30%",0.46,null,null,null,"Patate di lyoner",1,600]
[{"$f":"SUM(O6:O15)*O5+SUM(J6:J15)*J5+SUM(E6:E15)*E5","v":8.5530000000000008},null,null,"Marmellata/Spalmatura di noci 1",0.17,null,null,null,"Salsa per insalata francese  ",0.05,null,null,null,"Spinaci",0.73,704,null,null,"Cena"]
[null,null,null,"Succo d'arancia 1 dl",0.14000000000000001,{"$nulls":13},"Gratin di patate e di verdure",700]
[null,null,null,"Müsli di colazione 30g",0.25]
[null,null,null,"Formaggio diverso 30g",0.54,null,null,null,"Tè freddo 200 %",0.13,null,null,null,"Tè freddo 200 %",0.13]
["Snack",{"$nulls":7},"Arachidi salate",0.6,null,null,null,"Destrosio 1 St",0.15]
[{"$nulls":8},"Mele 1 St",0.5,null,null,null,"Banana 1 St",0.8]
[null,null,null,"Effetivo normale",1,null,null,null,"Effetivo normale",1,null,null,null,"Effetivo normale",1,null,null,null,"Pranzo"]
["Martedi",null,null,"Caffè 50%",0.2,null,null,null,"Zuppa di verdure 50%",0.2,208,null,null,"Brodo celestino 50%",0.05,205,null,null,"Sminuzzato di quorn con ",406]
[{"$f":"A7+1","v":"2018-05-08"},null,null,"Cacao/bevanda al malto in porzioni 50%",0.2,null,"*",null,"Sminuzzato di maiale",2.0499999999999998,406,null,null,"Sformato di pane e formaggio all'appenzellese",2.38,901,null,null,"Peperoni"]
[null,null,null,"Sorta di pane 100g",0.39,null,null,null,"ai peperoni",{"$nulls":4},"Insalata mista primavera 30%",0.46]
[null,null,null,"Burro porzione 20g",0.44,null,null,null,"Risi-Bisi",0.48,608,null,null,"Salsa per insalata balsamico 30g",0.05]
[{"$f":"SUM(O17:O26)*O16+SUM(J17:J26)*J16+SUM(E17:E26)*E16","v":11.759999999999998},null,null,"Marmellata/Spalmatura di noci 1",0.17,null,null,null,"Cavolo rapa stufato",1.08,704,{"$nulls":7},"Cena"]
[null,null,null,"Succo d'arancia 1 dl",0.14000000000000001,{"$nulls":8},"Crema al chioccolato",0.42,1007,null,null,"Sformato di pane e formaggio all'appenzellese",901]
[null,null,null,"Müsli di colazione 30g",0.25]
[null,null,null,"Yogurt Port 100 g",0.5,null,null,null,"Tè mela-pesca 200%",0.1,100,null,null,"Tè mela-pesca 200%",0.1,100]
["Snack",{"$nulls":7},"Biscotti militari 1 stk",0.55000000000000004,null,null,null,"Leckerli 1 St",0.55000000000000004]
[{"$nulls":8},"Pera",0.6,null,null,null,"Orancione 1 St ",0.4]
[null,null,null,"Effetivo normale",1,null,null,null,"Effetivo normale",1,null,null,null,"Cena facoltativa",0.3,null,null,null,"Pranzo"]
["Mercroledi",null,null,"Caffè 50%",0.2,null,null,null,"Zuppa di sedano 50%",0.24,208,null,null,"Spaghetti con burro",0.27,617,null,null,"Gratin Purea di patate",604]
[{"$f":"A18+1","v":"2018-05-09"},null,null,"Cacao/bevanda al malto in porzioni 50%",0.2,null,"*",null,"Bianchetto di pollo",2.8,406,null,null,"Salsa al pomodoro e tonno",0.28999999999999998,311,null,null,"con formaggio"]
[null,null,null,"Sorta di pane 100g",0.39,null,null,null,"alle erbe"]
[null,null,null,"Burro porzione 20g",0.44,null,null,null,"Purea di patate con zafferano",0.55000000000000004,606,null,null,"Insalata mista primavera 30%",0.15]
[{"$f":"SUM(O28:O37)*O27+SUM(J28:J37)*J27+SUM(E28:E37)*E27","v":9.7769999999999992},null,null,"Marmellata/Spalmatura di noci 1",0.17,null,null,null,"Asparagi stufati",2.17,604,null,null,"Insalata di cavolo bianco 30%",0.18,805,null,null,"Cena"]
[null,null,null,"Succo d'arancia 1 dl",0.14000000000000001,{"$nulls":8},"Insalata di mais 30%",0.15,808,null,null,"Spaghetti con burro",617]
[null,null,null,"Müsli di colazione 30g",0.25,{"$nulls":8},"Salsa per insalata balsamico 30g",0.05,null,null,null,"Crema alla formaggio",308]
[null,null,null,"Birchermüesli",0.5,804,null,null,"Tè lampone-fragola 200%",0.1,100,null,null,"Tè lampone-fragola 200%",0.1,100]
["Snack",{"$nulls":7},"Bastoncino ai cereali gusto miele",0.2,null,null,null,"Swiss Choco Bits 1 St",0.4]
[{"$nulls":8},"Banana 1 St",0.8,null,null,null,"Mele 1 St",0.5]
[null,null,null,"Effetivo normale",1,null,null,null,"Effetivo normale",1,null,null,null,"Effetivo normale",1,null,null,null,"Pranzo"]
["Giovedi",null,null,"Caffè 50%",0.2,null,null,null,"Crema d'asparagi 50%",0.51,208,null,null,"Zuppa di mosto di mele alla thurgoviese 50 %",0.33,1107,null,null,"Purea di patate con verdure"]
[{"$f":"A29+1","v":"2018-05-10"},null,null,"Cacao/bevanda al malto in porzioni 50%",0.2,null,"*",null,"Carne di manzo",3.28,416,"*",null,"Chippolata vom Schwein mit",1.28,null,null,null,"e gratinare con formaggio"]
[null,null,null,"Sorta di pane 100g",0.39,null,null,null,"Ofentori",1.1599999999999999,604,null,null,"Salsa all erbe",0.19,308]
[null,null,null,"Burro porzione 20g",0.44,null,null,null,"Carote stufate",0.49,704,null,null,"Risotto ai pomodori",0.6,611]
[{"$f":"SUM(O39:O48)*O38+SUM(J39:J48)*J38+SUM(E39:E48)*E38","v":14.91},null,null,"Marmellata/Spalmatura di noci 1",0.17,{"$nulls":8},"Peperoni al forno",0.81,706,null,null,"Cena"]
[null,null,null,"Succo d'arancia 1 dl",0.14000000000000001,null,null,null,"Country Cake",0.82,1006,{"$nulls":7},"Risotto ai pomodori",611]
[null,null,null,"Müsli di colazione 30g",0.25]
[null,null,null,"Salumi diverso",0.6,null,null,null,"Tè di frutta 200%",0.1,100,null,null,"Tè di frutta 200%",0.1,100]
["Snack",{"$nulls":7},"Cracker 1 St",0.6,null,null,null,"Conserva di carne 1 St",1.25]
[{"$nulls":8},"Orancione 1 St ",0.4,null,null,null,"Pera",0.6]
[null,null,null,"Effetivo normale",1,null,null,null,"Effetivo normale",1,null,null,null,"Congedo di prestazione",0.75,null,null,null,"Pranzo"]
["Venerdi",null,null,"Caffè 50%",0.2,null,null,null,"Brodo palline fritte",0.05,205,null,null,"Minestra asiatica piccante",0.21,202,null,null,"Curry di verdura"]
[{"$f":"A40+1","v":"2018-05-11"},null,null,"Cacao/bevanda al malto in porzioni 50%",0.2,null,"*",null,"Gratin di pesce con Filetti di pangasius ",2.64,507,"*",null,"Bami Goreng",4.37,922,null,null,"con ceci"]
[null,null,null,"Sorta di pane 100g",0.39,null,null,null,"agli spinaci",{"$nulls":4},"Insalata mista primavera 30%",0.46]
[null,null,null,"Burro porzione 20g",0.44,null,null,null,"Riso con verdurine",0.42,608,null,null,"Salsa per insalata francese  ",0.05]
[{"$f":"SUM(O50:O59)*O49+SUM(J50:J59)*J49+SUM(E50:E59)*E49","v":12.147500000000001},null,null,"Marmellata/Spalmatura di noci 1",0.17,null,null,null,"Finocchio gratinate",0.77,705,{"$nulls":7},"Cena"]
[null,null,null,"Succo d'arancia 1 dl",0.14000000000000001,{"$nulls":8},"Treccia russa",0.61,1114,null,null,"Spaghetti al quorn",617]
[null,null,null,"Müsli di colazione 30g",0.25,{"$nulls":13},"e verdure"]
[null,null,null,"Formaggio diverso 30g",0.54,null,null,null,"Tè freddo fatto in casa 200%",0.1,100,null,null,"Tè freddo fatto in casa 200%",0.1,100]
["Snack",{"$nulls":7},"Misto di noci e frutta",0.35,null,null,null,"Bastoncino al malto (ovo choc)",0.45]
[{"$nulls":8},"Mele 1 St",0.5,null,null,null,"Orancione 1 St ",0.4]
[null,null,null,"Congedo di prestazione",0.75,null,null,null,"Guardia",0.1,null,null,null,"Guardia",0.1,null,null,null,"Pranzo"]
["Sabato",null,null,"Caffè 50%",0.2,null,"*",null,"Ossobuco di maiale ",2.91,416,null,null,"Torta di formaggio e alle cipolle",3.09,915,null,null,"Gnocchi di patate con zucchini"]
[{"$f":"A51+1","v":"2018-05-12"},null,null,"Cacao/bevanda al malto in porzioni 50%",0.2,null,null,null,"Gnocchi di patate",0.68,null,null,null,"Insalata di barbabietole 30%",0.1,812,null,null,"e ricotta"]
[null,null,null,"Sorta di pane 100g",0.39,null,null,null,"Zucchine stufate",0.75,704,null,null,"Insalata di carote 30%",0.12,810]
[null,null,null,"Burro porzione 20g",0.44,{"$nulls":8},"Insalata di mais 30%",0.15,808]
[{"$f":"SUM(O61:O70)*O60+SUM(J61:J70)*J60+SUM(E61:E70)*E60","v":2.9125000000000001},null,null,"Marmellata/Spalmatura di noci 1",0.17,null,null,null,"Cornetto di sfoglia alle noci CF 4",1.2,null,null,null,"Insalata mista primavera 30%",0.15,null,null,null,"Cena"]
[null,null,null,"Succo d'arancia 1 dl",0.14000000000000001,{"$nulls":8},"Salsa per insalata balsamico 30g",0.05,null,null,null,"Torta di formaggio e alle cipolle",915]
[null,null,null,"Müsli di colazione 30g",0.25]
[null,null,null,"Salumi diverso",0.6,null,null,null,"Tè lampone-fragola 200%",0.1,100,null,null,"Tè lampone-fragola 200%",0.1,100]
["Snack",{"$nulls":7},"Biscotti militari 1 stk",0.55000000000000004,null,null,null,"Destrosio 1 St",0.15]
[{"$nulls":8},"Pera",0.6,null,null,null,"Mele 1 St",0.5]
[null,null,null,"Guardia",0.1,null,null,null,"Guardia",0.1,null,null,null,"Guardia",0.1,null,null,null,"Pranzo"]
["Domenica",null,null,"Caffè 50%",0.2,null,"*",null,"Gigot d'agnello alle erbe",4.45,422,null,null,"Café completo",3.93,null,null,null,"Patate arrosto",600]
[{"$f":"A62+1","v":"2018-05-13"},null,null,"Cacao/bevanda al malto in porzioni 50%",0.2,null,null,null,"Thymianjus",{"$nulls":9},"con uovo fritto"]
[null,null,null,"Zopf 100 g",1.35,null,null,null,"patate arrosto",1,600]
[null,null,null,"Burro porzione 20g",0.44,null,null,null,"Fagioli vedi brasato",0.54,604]
[{"$f":"SUM(O72:O81)*O71+SUM(J72:J81)*J71+SUM(E72:E81)*E71","v":1.6060000000000001},null,null,"Marmellata/Spalmatura di noci 1",0.17,null,null,null,"Gelati alla vaniglia",0.49,{"$nulls":8},"Cena"]
[null,null,null,"Succo d'arancia 1 dl",0.14000000000000001,null,null,null,"Salsa alla cioccolata",0.1,{"$nulls":8},"Café completo"]
[null,null,null,"Rösti 50 %",0.25,612]
[null,null,null,"Spiegelei 1 St",0.5,null,null,null,"Tè nero 200%",0.1,103,null,null,"Tè nero 200%",0.1,103]
["Snack",{"$nulls":7},"Bretzeli 1 St",0.6,null,null,null,"Bastoncino ai cereali gusto mela",0.2]
[{"$nulls":8},"Mele 1 St",0.5,null,null,null,"Banana 1 St",0.8]
[]
["Conteggio della sussistenza",{"$nulls":7},"Certificata l'esattezza:",{"$nulls":4},"Fattibilità specialistica:",{"$nulls":4},"Approviazione:"]
["Utilizzo sec piano sussistenza",null,null,null,{"$f":"(A10+A21+A32+A43+A54+A65+A76)*100","v":6166.6},null,null,null,"Il contabile",{"$nulls":4},"Il Quartiermastro",{"$nulls":4},"Il Comandante"]
["Credito suss ",null,null,null,{"$f":"'Übersicht und Anleitung'!D18*100","v":6300}]
["Saldo",null,null,null,{"$f":"E85-E84","v":133.39999999999964}]
[]
["Dichiarazione d'origine della carne, del latte e delle uova: tutte le carni e succedanei/latte e prodotti lattieri/uova provengono unicamente dalla Svizzera."]
["Dichiarazione d'origine die pesci e prodotti marini: tutti i peschi e crostacei provengono dalla Svizzera o sono definiti per il marchio ASC / MSC / FOS."]
["Dichiarazione degli ingredienti / sostanze allergeniche ( Lderr art. 8): i capi cucina possono rispondere alle domande riguardanti componenti allergenici."]
["Punti di controllo critici: il simbolo * dichiara l'analisi del rischio. Una firma conferma una buona pratica di fabbricazione (vedi regl 06.006 Ricettario di cucina, pag.21 e ss ricette)."]

{"sheet":"Settimana 2","index":11,"n_rows":91,"n_cols":20,"rows_kept":91,"cut":false,"hidden":false,"merged":[[85,18,85,19],[0,18,0,19],[2,1,2,5],[2,6,2,10],[2,11,2,15],[2,16,2,19],[82,4,82,6],[83,4,83,6],[84,4,84,6],[85,4,85,6],[85,8,85,10],[85,13,85,15]]}
["Piano di sussistenza",{"$nulls":5},"da:",null,"2018-05-14",null,null,"a:",null,{"$f":"A73","v":"2018-05-20"},null,"Unità:"]
[]
[null,"Colazione",{"$nulls":4},"Pranzo",{"$nulls":4},"Cena",{"$nulls":4},"senza carne"]
[null,"PCC","Visto",null,"Prezzo","Ricetta","PCC","Visto",null,"Prezzo","Ricetta","PCC","Visto",null,"Prezzo","Ricetta","PCC","Visto",null,"Ricetta"]
[null,null,null,"Effetivo normale",1,null,null,null,"Effetivo normale",1,null,null,null,"Effetivo normale",1,null,null,null,"Pranzo"]
["Lunedì",null,null,"Caffè 50%",0.2,null,null,null,"Brodo con Fideli 50%",0.05,205,null,null,"Zuppa di verdure paesana 50 %",0.25,204,null,null,"Maccheroni delle alpi",900]
[{"$f":"I1","v":"2018-05-14"},null,null,"Cacao/bevanda al malto in porzioni 50%",0.2,null,null,null,"Maccheroni delle alpi",1.94,900,"*",null,"Salsicce di maiale con",2.52]
[null,null,null,"Sorta di pane 100g",0.39,null,null,null,"Composta di mele",0.57999999999999996,1109,null,null,"Salsa alle cipolle",0.2,301]
[null,null,null,"Burro porzione 20g",0.44,null,null,null,"Insalata mista primavera 30%",0.46,null,null,null,"Rösti",0.49,612]
[{"$f":"SUM(O6:O15)*O5+SUM(J6:J15)*J5+SUM(E6:E15)*E5","v":11.99},null,null,"Marmellata/Spalmatura di noci 1",0.17,null,null,null,"Salsa per insalata balsamico 30g",0.05,null,null,null,"Pomodori alla provinciale",0.5,707,null,null,"Cena"]
[null,null,null,"Succo d'arancia 1 dl",0.14000000000000001,{"$nulls":8},"Crema di Leckerli",0.56000000000000005,1107,null,null,"Rösti con uovo fritto",612]
[null,null,null,"Müsli di colazione 30g",0.25]
[null,null,null,"formaggio diverso 30g",0.54,null,null,null,"Tè freddo 200 %",0.13,null,null,null,"Tè freddo 200 %",0.13]
["Snack",{"$nulls":7},"Cioccolata militare",0.35,null,null,null,"Destrosio 1 St",0.15]
[{"$nulls":8},"Mele 1 St",0.5,null,null,null,"Banana 1 St",0.8]
[null,null,null,"Effetivo normale",1,null,null,null,"Effetivo normale",1,null,null,null,"Effetivo normale",1,null,null,null,"Pranzo"]
["Martedi",null,null,"Caffè 50%",0.2,null,null,null,"Crema di zucchine",0.2,208,null,null,"Brodo con crostini all'aglio 50%",0.05,205,null,null,"Gratin di Purea di patate",606]
[{"$f":"A7+1","v":"2018-05-15"},null,null,"Cacao/bevanda al malto in porzioni 50%",0.2,null,"*",null,"Arrosta di maiale",2.67,422,"*",null,"Nasi Goreng",4.26,922]
[null,null,null,"Sorta di pane 100g",0.39,null,null,null,"Purea di patate",0.53,606,null,null,"Insalata mista primavera 30%",0.15]
[null,null,null,"Burro porzione 20g",0.44,null,null,null,"Cavolfiori",0.8,703,null,null,"Salsa per insalata balsamico 30g",0.2,812]
[{"$f":"SUM(O17:O26)*O16+SUM(J17:J26)*J16+SUM(E17:E26)*E16","v":13.7},null,null,"Marmellata/Spalmatura di noci 1",0.17,null,null,null,"maniera polacca",{"$nulls":4},"Insalata di mais 30%",0.15,808,null,null,"Cena"]
[null,null,null,"Succo d'arancia 1 dl",0.14000000000000001,{"$nulls":8},"Salsa per insalata balsamico 30g",0.05,null,null,null,"Riso saltato ",608]
[null,null,null,"Müsli di colazione 30g",0.25,{"$nulls":13},"all uovo e verdure"]
[null,null,null,"Yogurt Port 100 g",0.5,null,null,null,"Tè mela-pesca 200%",0.1,100,null,null,"Tè mela-pesca 200%",0.1,100]
["Snack",{"$nulls":7},"Arachidi salate",0.6,null,null,null,"Leckerli 1 St",0.55000000000000004]
[{"$nulls":8},"Pera",0.6,null,null,null,"Orancione 1 St ",0.4]
[null,null,null,"Effetivo normale",1,null,null,null,"Effetivo normale",1,null,null,null,"Cena facoltativa",0.3,null,null,null,"Pranzo"]
["Mercroledi",null,null,"Caffè 50%",0.2,null,null,null,"Zuppa di verdure 50%",0.2,208,null,null,"Gratin di pasta",3.02,928,null,null,"Bianchetto di quorn ",427]
[{"$f":"A18+1","v":"2018-05-16"},null,null,"Cacao/bevanda al malto in porzioni 50%",0.2,null,"*",null,"Bianchetto di pollo ",2.81,427,null,null,"Insalata di barbabietole 30%",0.1,810,null,null," all'antica"]
[null,null,null,"Sorta di pane 100g",0.39,null,null,null,"all'antica",{"$nulls":4},"Insalata di cavolo bianco 30%",0.18,805]
[null,null,null,"Burro porzione 20g",0.44,null,null,null,"Ebly",0.65,602,null,null,"Insalata di mais 30%",0.15,808]
[{"$f":"SUM(O28:O37)*O27+SUM(J28:J37)*J27+SUM(E28:E37)*E27","v":9.0300000000000011},null,null,"Marmellata/Spalmatura di noci 1",0.17,null,null,null,"Fagiolini verdi brasato",0.54,704,null,null,"insalata mista primavera 30%",0.15,null,null,null,"Cena"]
[null,null,null,"Succo d'arancia 1 dl",0.14000000000000001,{"$nulls":8},"Salsa per insalata francese  ",0.05,null,null,null,"Gratin di pasta",928]
[null,null,null,"Müsli di colazione 30g",0.25]
[null,null,null,"Birchermüesli",0.5,904,null,null,"Tè lampone-fragola 200%",0.1,100,null,null,"Tè lampone-fragola 200%",0.1,100]
["Snack",{"$nulls":7},"Bastoncino ai cereali gusto miele",0.2,null,null,null,"Bretzeli 1 St",0.55000000000000004]
[{"$nulls":8},"Banana 1 St",0.8,null,null,null,"Mele 1 St",0.5]
[null,null,null,"Effetivo normale",1,null,null,null,"Effetivo normale",1,null,null,null,"Effetivo normale",1,null,null,null,"Pranzo"]
["Giovedi",null,null,"Caffè 50%",0.2,null,null,null,"Brodo palline fritte",0.04,205,null,null,"Crema ai pomodori 50%",0.13,208,null,null,"Piccata alla melanzane"]
[{"$f":"A29+1","v":"2018-05-17"},null,null,"Cacao/bevanda al malto in porzioni 50%",0.2,null,"*",null,"Piccata di maiale",3.39,413,"*",null,"Chipolataspiessli",1.28]
[null,null,null,"Sorta di pane 100g",0.39,null,null,null,"Salsa al pomodoro 50%",0.13,311,null,null,"Burro alla erbe aromatiche",0.1]
[null,null,null,"Burro porzione 20g",0.44,null,null,null,"Polenta",0.55000000000000004,610,null,null,"Risotto al vino bianco",0.56999999999999995,611]
[{"$f":"SUM(O39:O48)*O38+SUM(J39:J48)*J38+SUM(E39:E48)*E38","v":12.14},null,null,"Marmellata/Spalmatura di noci 1",0.17,null,null,null,"Ratatouille",0.61,null,null,null,"Insalata mista primavera 30%",0.46,null,null,null,"Cena"]
[null,null,null,"Succo d'arancia 1 dl",0.14000000000000001,null,null,null,"Cake alle banane",0.57999999999999996,1105,null,null,"Thousend Island dressing  30 g",0.11,303,null,null,"Spiedo di verdure"]
[null,null,null,"Müsli di colazione 30g",0.25]
[null,null,null,"Tacchino 50 g",0.5,null,null,null,"Tè di frutta 200%",0.1,100,null,null,"Tè di frutta 200%",0.1,100]
["Snack",{"$nulls":7},"Swiss Choco Bits 1 St",0.4,null,null,null,"Bastonico ai cereali gusto albicocca 1 St",0.2]
[{"$nulls":8},"Mele 1 St",0.5,null,null,null,"Pera",0.6]
[null,null,null,"Effetivo normale",1,null,null,null,"Effetivo normale",1,null,null,null,"Congedo di prestazione",0.75,null,null,null,"Pranzo"]
["Venerdi",null,null,"Caffè 50%",0.2,null,null,null,"Minestrone 50 %",0.31,218,"*",null,"Hörnlipilaf",2.59,1002,null,null,"Hamburger integrale alle verdure"]
[{"$f":"A40+1","v":"2018-05-18"},null,null,"Cacao/bevanda al malto in porzioni 50%",0.2,null,"*",null,"Filetti di merluzzo carbonaro impanati",1.88,505,null,null,"Insalata mista primavera 30%",0.46]
[null,null,null,"Sorta di pane 100g",0.39,null,null,null,"Salsa remoulade",0.34,309,null,null,"Salsa per insalata francese  ",0.05]
[null,null,null,"Burro porzione 20g",0.44,null,null,null,"Patate nature",0.68,613]
[{"$f":"SUM(O50:O59)*O49+SUM(J50:J59)*J49+SUM(E50:E59)*E49","v":11.215},null,null,"Marmellata/Spalmatura di noci 1",0.17,null,null,null,"Spinaci stufati",0.73,704,null,null,"Tranci dello studente",1.21,1115,null,null,"Cena"]
[null,null,null,"Succo d'arancia 1 dl",0.14000000000000001,{"$nulls":13},"Hörnli Pilaf ",1002]
[null,null,null,"Müsli di colazione 30g",0.25,{"$nulls":13},"Salsa bolognese al quorn"]
[null,null,null,"Formaggio diverso 30g",0.54,null,null,null,"Tè freddo fatto in casa 200%",0.1,100,null,null,"Tè freddo fatto in casa 200%",0.1,100]
["Snack",{"$nulls":7},"Bastoncino ai cereali gusto lampone1 St",0.2,null,null,null,"Bastoncino al malto (ovo choc)",0.45]
[{"$nulls":8},"Orancione 1 St ",0.4,null,null,null,"Banana 1 St",0.8]
[null,null,null,"Congedo di prestazione",0.75,null,null,null,"Guardia",0.1,null,null,null,"Guardia",0.1,null,null,null,"Pranzo"]
["Sabato",null,null,"Caffè 50%",0.2,null,"*",null,"Spareribs di maiale",5.27,426,null,null,"Flammkuchen",3,909,null,null,"Patate al forno con panna acida"]
[{"$f":"A51+1","v":"2018-05-19"},null,null,"Cacao/bevanda al malto in porzioni 50%",0.2,null,null,null,"Patate in forno con panna acida",0.94,null,null,null,"Insalata mista primavera 30%",0.15]
[null,null,null,"Sorta di pane 100g",0.39,null,null,null,"Pannocchia",1.37,null,null,null,"Insalata di barbabietole 30%",0.1,810]
[null,null,null,"Burro porzione 20g",0.44,null,null,null,"Insalata mista primavera 30%",0.46,null,null,null,"Insalata di mais 30%",0.15,808]
[{"$f":"SUM(O61:O70)*O60+SUM(J61:J70)*J60+SUM(E61:E70)*E60","v":3.0589999999999997},null,null,"Marmellata/Spalmatura di noci 1",0.17,null,null,null,"Salsa per insalata balsamico 30g",0.05,null,null,null,"Salsa per insalata francese  ",0.05,null,null,null,"Cena"]
[null,null,null,"Succo d'arancia 1 dl",0.14000000000000001,{"$nulls":13},"Flammkuchen sin pancetta",909]
[null,null,null,"Müsli di colazione 30g",0.25]
[null,null,null,"Salami 50 g",0.51,null,null,null,"Tè lampone-fragola 200%",0.1,100,null,null,"Tè lampone-fragola 200%",0.1,100]
["Snack",{"$nulls":7},"Biscotti militari 1 stk",0.35,null,null,null,"Destrosio 1 St",0.15]
[{"$nulls":8},"Pera",0.6,null,null,null,"Mele 1 St",0.5]
[null,null,null,"Guardia",0.1,null,null,null,"Guardia",0.1,null,null,null,"Guardia",0.1,null,null,null,"Pranzo"]
["Domenica",null,null,"Kaffee in Portionen 50 %",0.2,null,"*",null,"Petto di vitello arrotolato e glassato",3.2,422,null,null,"Café completo",3.93,null,null,null,"Gratin di patate",605]
[{"$f":"A62+1","v":"2018-05-20"},null,null,"Cacao/bevanda al malto in porzioni 50%",0.2,null,null,null,"Rosmarinjus"]
[null,null,null,"Treccia 100 g",1.35,null,null,null,"Gratin di patate",0.93,605]
[null,null,null,"Burro porzione 20g",0.44,null,null,null,"Taccole stufate",0.79,704]
[{"$f":"SUM(O72:O81)*O71+SUM(J72:J81)*J71+SUM(E72:E81)*E71","v":1.5519999999999998},null,null,"Marmellata/Spalmatura di noci 1",0.17,{"$nulls":13},"Cena"]
[null,null,null,"Succo d'arancia 1 dl",0.14000000000000001,null,null,null,"Tirami su",1.22,1118,{"$nulls":7},"Café completo"]
[null,null,null,"Rösti 50 %",0.25,612]
[null,null,null,"Spiegelei 1 St",0.5,null,null,null,"Tè nero 200%",0.1,103,null,null,"Tè nero 200%",0.1,103]
["Snack",{"$nulls":7},"Bretzeli 1 St",0.6,null,null,null,"Bastoncino ai cereali gusto mela",0.2]
[{"$nulls":8},"Banana 1 St",0.8,null,null,null,"Orancione 1 St ",0.4]
[]
["Conteggio della sussistenza",{"$nulls":7},"Certificata l'esattezza:",{"$nulls":4},"Fattibilità specialistica:",{"$nulls":4},"Approviazione:"]
["Utilizzo sec piano sussistenza",null,null,null,{"$f":"(A10+A21+A32+A43+A54+A65+A76)*100","v":6268.6},null,null,null,"Il contabile",{"$nulls":4},"Il Quartiermastro",{"$nulls":4},"Il Comandante"]
["Credito suss ",null,null,null,{"$f":"'Übersicht und Anleitung'!D18*100","v":6300}]
["Saldo",null,null,null,{"$f":"E85-E84","v":31.399999999999636}]
[]
["Dichiarazione d'origine della carne, del latte e delle uova: tutte le carni e succedanei/latte e prodotti lattieri/uova provengono unicamente dalla Svizzera."]
["Dichiarazione d'origine die pesci e prodotti marini: tutti i peschi e crostacei provengono dalla Svizzera o sono definiti per il marchio ASC / MSC / FOS."]
["Dichiarazione degli ingredienti / sostanze allergeniche ( Lderr art. 8): i capi cucina possono rispondere alle domande riguardanti componenti allergenici."]
["Punti di controllo critici: il simbolo * dichiara l'analisi del rischio. Una firma conferma una buona pratica di fabbricazione (vedi regl 06.006 Ricettario di cucina, pag.21 e ss ricette)."]

{"sheet":"Settimana 3","index":12,"n_rows":91,"n_cols":22,"rows_kept":91,"cut":false,"hidden":false,"merged":[[85,18,85,19],[0,18,0,19],[2,1,2,5],[2,6,2,10],[2,11,2,15],[2,16,2,19],[82,4,82,6],[83,4,83,6],[84,4,84,6],[85,4,85,6],[85,8,85,10],[85,13,85,15]]}
["Piano di sussistenza",{"$nulls":5},"da:",null,"2018-05-21",null,null,"a:",null,{"$f":"A73","v":"2018-05-27"},null,"Unità:"]
[]
[null,"Colazione",{"$nulls":4},"Pranzo",{"$nulls":4},"Cena",{"$nulls":4},"senza carne"]
[null,"PCC","Visto",null,"Prezzo","Ricetta","PCC","Visto",null,"Prezzo","Ricetta","PCC","Visto",null,"Prezzo","Ricetta","PCC","Visto",null,"Ricetta"]
[null,null,null,"Effetivo normale",1,null,null,null,"Effetivo normale",1,null,null,null,"Effetivo normale",1,null,null,null,"Pranzo"]
["Lunedì",null,null,"Caffè 50%",0.2,null,null,null,"Brodo celestino 50%",0.05,205,null,null,"Crema al crescione 50%",0.14000000000000001,208,null,null,"Spaghetti con burro",617]
[{"$f":"I1","v":"2018-05-21"},null,null,"Cacao/bevanda al malto in porzioni 50%",0.2,null,null,null,"Spaghetti ",0.25,617,"*",null,"Polpettone casareccio",1.92,null,null,null,"Salsa al pomodoro",311]
[null,null,null,"Sorta di pane 100g",0.39,null,null,null,"Salsa al pomodoro",0.16,311,null,null,"Salsa senape",7.0000000000000007E-2,301,null,null,"Pesto CF4 20 g"]
[null,null,null,"Burro porzione 20g",0.44,null,null,null,"Pesto CF4 20 g",7.0000000000000007E-2,null,null,null,"Patate arrostite",0.96,600]
[{"$f":"SUM(O6:O15)*O5+SUM(J6:J15)*J5+SUM(E6:E15)*E5","v":9.15},null,null,"Marmellata/Spalmatura di noci 1",0.17,null,null,null,"Insalata mista primavera 30%",0.46,null,null,null,"Carote stufate",0.49,704,null,null,"Cena"]
[null,null,null,"Succo d'arancia 1 dl",0.14000000000000001,null,null,null,"Salsa per insalata francese  ",0.05,{"$nulls":8},"Hamburger integrale alle verdure"]
[null,null,null,"Müsli di colazione 30g",0.25,{"$nulls":13},"con formaggio"]
[null,null,null,"Formaggio diverso 30g",0.54,null,null,null,"Tè mela-pesca 200%",0.1,100,null,null,"Tè mela-pesca 200%",0.1,100]
["Snack",{"$nulls":7},"Biscotti militari 1 stk",0.35,null,null,null,"Leckerli 1 St",0.55000000000000004,{"$nulls":5}," "]
[{"$nulls":8},"Pera",0.6,null,null,null,"Mele 1 St",0.5]
[null,null,null,"Effetivo normale",1,null,null,null,"Effetivo normale",1,null,null,null,"Effetivo normale",1,null,null,null,"Pranzo"]
["Martedi",null,null,"Caffè 50%",0.2,null,null,null,"Zuppa di verdure 50%",0.2,208,null,null,"Brodo alle uova",0.05,205,null,null,"Frittata al formaggio"]
[{"$f":"A7+1","v":"2018-05-22"},null,null,"Cacao/bevanda al malto in porzioni 50%",0.2,null,"*",null,"Castelletto di maiale,",3.24,null,null,null,"Lasagne al spinaci e ricotta",2.4500000000000002,915]
[null,null,null,"Sorta di pane 100g",0.39,null,null,null,"Burro alla erbe aromatiche",0.35,null,null,null,"Insalata mista primavera 30%",0.15]
[null,null,null,"Burro porzione 20g",0.44,null,null,null,"Risotto al vino bianco",0.56999999999999995,611,null,null,"Salsa per insalata balsamico 30g",0.1,810]
[{"$f":"SUM(O17:O26)*O16+SUM(J17:J26)*J16+SUM(E17:E26)*E16","v":13.399999999999999},null,null,"Marmellata/Spalmatura di noci 1",0.17,null,null,null,"Zucchine alla provinciale",0.68,704,null,null,"Insalata di mais 30%",0.15,808,null,null,"Cena"]
[null,null,null,"Succo d'arancia 1 dl",0.14000000000000001,{"$nulls":8},"Salsa per insalata balsamico 30g",0.05,null,null,null,"Lasagne al spinaci e ricotta",915]
[null,null,null,"Müsli di colazione 30g",0.25,{"$nulls":8},"Crema alla moka",0.42,1107]
[null,null,null,"Salumi diverso",0.6,null,null,null,"Tè mela-pesca 200%",0.1,100,null,null,"Tè lampone-fragola 200%",0.1,100]
["Snack",{"$nulls":7},"Arachidi salate",0.6,null,null,null,"Crackers 1 St",0.6]
[{"$nulls":8},"Banana 1 St",0.8,null,null,null,"Orancione 1 St ",0.4]
[null,null,null,"Effetivo normale",1,null,null,null,"Effetivo normale",1,null,null,null,"Cena facoltativa",0.3,null,null,null,"Pranzo"]
["Mercroledi",null,null,"Caffè 50%",0.2,null,null,null,"Zuppa di zenzero e carote 50 %",0.22,219,null,null,"Crostini al formaggio vallasana",3.61,902,null,null,"Stufato di lente-verdure",213]
[{"$f":"A18+1","v":"2018-05-23"},null,null,"Cacao/bevanda al malto in porzioni 50%",0.2,null,"*",null,"Bianchetto di pollo all'emmentalese",2.44,427,null,null,"Insalata di carote 30%",0.1,812]
[null,null,null,"Sorta di pane 100g",0.39,null,null,null,"Purea di patate",0.53,606,null,null,"Insalata di mais 30%",0.15,808]
[null,null,null,"Burro porzione 20g",0.44,null,null,null,"Peperonata",0.59,null,null,null,"Insalata mista primavera 30%",0.15]
[{"$f":"SUM(O28:O37)*O27+SUM(J28:J37)*J27+SUM(E28:E37)*E27","v":8.472999999999999},null,null,"Marmellata/Spalmatura di noci 1",0.17,{"$nulls":8},"Salsa per insalata balsamico 30g",0.05,null,null,null,"Cena"]
[null,null,null,"Succo d'arancia 1 dl",0.14000000000000001,{"$nulls":13},"Crostini al formaggio vallasana",902]
[null,null,null,"Müsli di colazione 30g",0.25]
[null,null,null,"Birchermüesli",0.5,904,null,null,"Tè di frutta 200%",0.1,100,null,null,"Tè di frutta 200%",0.1,100]
["Snack",{"$nulls":7},"Bastoncino ai cereali gusto miele",0.2,null,null,null,"Misto di noci e frutta",0.35]
[{"$nulls":8},"Pera 1 St",0.6,null,null,null,"Mele 1 St",0.5]
[null,null,null,"Effetivo normale",1,null,null,null,"Effetivo normale",1,null,null,null,"Effetivo normale",1,null,null,null,"Pranzo"]
["Giovedi",null,null,"Caffè 50%",0.2,null,null,null,"Zuppa di verdure 50%",0.2,219,"*",null,"Mezzo pollo arrostito ",4.34,null,null,null,"Stufato di verdure",700]
[{"$f":"A29+1","v":"2018-05-24"},null,null,"Cacao/bevanda al malto in porzioni 50%",0.2,null,"*",null,"Filetti di pangasius in pastella de friggere",2.33,501,null,null,"con salse"]
[null,null,null,"Sorta di pane 100g",0.39,null,null,null,"Salsa remoulade",0.34,309,null,null,"Pommes Chips CF4",1.18]
[null,null,null,"Burro porzione 20g",0.44,null,null,null,"Patate all'erba cipollina",0.7,600]
[{"$f":"SUM(O39:O48)*O38+SUM(J39:J48)*J38+SUM(E39:E48)*E38","v":14.690000000000001},null,null,"Marmellata/Spalmatura di noci 1",0.17,null,null,null,"Spinaci stufati",0.73,704,null,null,"Cake alle carote",0.47,1105,null,null,"Cena",null,null," "]
[null,null,null,"Succo d'arancia 1 dl",0.14000000000000001,{"$nulls":13},"Hamburger alle verdure"]
[null,null,null,"Müsli di colazione 30g",0.25,{"$nulls":16}," "]
[null,null,null,"Yogurt Port 100 g",0.5,null,null,null,"Tè freddo 200 %",0.13,null,null,null,"Tè freddo 200 %",0.13,{"$nulls":6}," "]
["Snack",{"$nulls":7},"Bastoncino ai cereali gusto mela",0.2,null,null,null,"Bastoncino al malto (ovo choc)",0.45]
[{"$nulls":8},"Orancione 1 St ",0.4,null,null,null,"Banana 1 St",0.8]
[null,null,null,"Effetivo normale",1,null,null,null,"Effetivo normale",1,null,null,null,"Effetivo normale",1,null,null,null,"Pranzo"]
["Venerdi",null,null,"Comella 5 dl CF4",3.8,null,null,null,"Panini con tonno",1.17,{"$nulls":8},"Panini con formaggio"]
[{"$f":"A40+1","v":"2018-05-25"},null,null,"Cornetto 1St",1.1499999999999999,null,null,null,"Bastoncino ai cereali",0.2]
[{"$nulls":8},"Cioccolata militare",0.35]
[{"$nulls":8},"Mele 1 St",0.5]
[{"$f":"SUM(O50:O59)*O49+SUM(J50:J59)*J49+SUM(E50:E59)*E49","v":8.0699999999999985},{"$nulls":7},"PET Bevanda dolce 5 dl",0.9,null,null,null," ",{"$nulls":4},"Cena"]
[null,null,null," "]
[]
[null,null,null," "]
["Snack"]
[]
[null,null,null,"Effetivo normale",1,null,null,null,"Effetivo normale",1,null,null,null,"Effetivo normale",1,null,null,null,"Pranzo"]
["Sabato"]
[{"$f":"A51+1","v":"2018-05-26"}]
[]
[]
[{"$f":"SUM(O61:O70)*O60+SUM(J61:J70)*J60+SUM(E61:E70)*E60","v":0},{"$nulls":17},"Cena"]
[]
[]
[]
["Snack"]
[]
[null,null,null,"Effetivo normale",1,null,null,null,"Effetivo normale",1,null,null,null,"Effetivo normale",1,null,null,null,"Pranzo"]
["Domenica"]
[{"$f":"A62+1","v":"2018-05-27"}]
[]
[]
[{"$f":"SUM(O72:O81)*O71+SUM(J72:J81)*J71+SUM(E72:E81)*E71","v":0},{"$nulls":17},"Cena"]
[]
[]
[]
["Snack"]
[]
[]
["Conteggio della sussistenza",{"$nulls":7},"Certificata l'esattezza:",{"$nulls":4},"Fattibilità specialistica:",{"$nulls":4},"Approviazione:"]
["Utilizzo sec piano sussistenza",null,null,null,{"$f":"(A10+A21+A32+A43+A54+A65+A76)*100","v":5378.2999999999993},null,null,null,"Il contabile",{"$nulls":4},"Il Quartiermastro",{"$nulls":4},"Il Comandante"]
["Credito suss ",null,null,null,{"$f":"'Übersicht und Anleitung'!D18*100-('Übersicht und Anleitung'!C18*100*2)","v":4500}]
["Saldo",null,null,null,{"$f":"E85-E84","v":-878.29999999999927}]
[]
["Dichiarazione d'origine della carne, del latte e delle uova: tutte le carni e succedanei/latte e prodotti lattieri/uova provengono unicamente dalla Svizzera."]
["Dichiarazione d'origine die pesci e prodotti marini: tutti i peschi e crostacei provengono dalla Svizzera o sono definiti per il marchio ASC / MSC / FOS."]
["Dichiarazione degli ingredienti / sostanze allergeniche ( Lderr art. 8): i capi cucina possono rispondere alle domande riguardanti componenti allergenici."]
["Punti di controllo critici: il simbolo * dichiara l'analisi del rischio. Una firma conferma una buona pratica di fabbricazione (vedi regl 06.006 Ricettario di cucina, pag.21 e ss ricette)."]

{"sheet":"Preise Prix Prezzi","index":13,"n_rows":411,"n_cols":15,"rows_kept":411,"cut":false,"hidden":false,"merged":[]}
["Preise für Militärspeisen"]
[]
["Gerichte Liste","Preis",null,"Liste des mets","Preis",null,"Lista ricetta","Preis",null,"Gewicht in g","Prozent"]
[null,"pro Person",null,null,"pro Person",null,null,"pro Person",null,"pro Person","Anteil gem KR"]
["1 Getränke / Frühstück",null,"Rezept #","1 Boisson / petit déjeuner",null,"Recette #","1 Bevanda / prima colazione",null,"Ricetta #"]
["Apfel-Pfirsichtee",0.04,null,"Thé froid",0.04,null,"Tè freddo",0.04,null,248,1]
["Kaffee",0.22,null,"Café ",0.22,null,"Caffè ",0.22,null,221,1]
["Kräuter / Früchtetee",0.05,100,"Thé aux herbes / aux fruits",0.05,100,"Tè alle erbe / Tè di frutta",0.05,100,474,1]
["Kaffee in Portionen",0.22,null,"Café en portion",0.22,null,"Caffè latte",0.22,null,304,1]
["Schokoladenmilch",0.13,null,"Chocolat au lait",0.13,null,"Cioccolata al latte",0.13,null,270,1,null," "]
["Schwarztee",0.05,103,"Thé noir",0.05,103,"Tè nero",0.05,103,474,1]
["Zitronenwasser",0.16,104,"Citronnade",0.16,104,"Limonata",0.16,104,350,1]
["Frühstück Standard",2.38,null,"Petit déjeuner standard",2.38,null,"Colazione standard",2.38,null,477,1]
["Frühstück Standard mit Rührei",2.86,null,"Petit déjeuner avec œuf brouillé",2.86,null,"Colazione con uova strapazzate",2.86,null,534,1]
["Frühstück Standard mit Pancakes",2.39,null,"Petit déjeuner avec pancakes",2.39,null,"Colazione con pancakes",2.39,null,507,1]
["Frühstück Standard mit Speck",3.35,null,"Petit déjeuner aux lards",3.35,null,"Colazione con pancetta",3.35,null,505,1]
["Frühstück Comella Gipfeli",2.64,null,"Petit déjeuner Comella et croissant",2.64,null,"Colazione con Comella e cornetto",2.64,null,545,1]
["Aufschnitt divers",0.6,null,"Charcuterie divers",0.6,null,"Salumi diverso",0.6,null,50,1]
["Brot zu Mahlzeiten 100 g",0.4,null,"Pain avec le repas 100 g",0.4,null,"Pane per i pasti 100 g",0.4,null,100,1,null,null,null," "]
["Brot zu Mahlzeiten 20 g",0.13,null,"Pain avec le repas 20 g",0.13,null,"Pane per i pasti 20 g",0.13,null,20,1]
["Brot zu Mahlzeiten 50 g",0.2,null,"Pain avec le repas 50 g",0.2,null,"Pane per i pasti 50 g",0.2,null,50,1]
["Butter Portion 10 g",0.23,null,"Beurre portion 10 g",0.23,null,"Burro porzione 10 g",0.23,null,10,1]
["Fruchtjoghurt Portion 180 g",0.6,null,"Yogurt des fruits portion 180 g",0.6,null,"Yogurt di frutti portione 180 g",0.6,null,180,1]
["Käse divers 30 g",0.54,null,"Fromage divers 30 g",0.54,null,"Formaggio diverso 30 g",0.54,null,30,1]
["Konfitüre/Nussaufstrich 1",0.13,null,"Confiture ouverte 30 g",0.13,null,"Marmellata/Spalmatura di noci 1",0.13,null,30,1]
["Orangensaft 1 dl",0.14000000000000001,null,"Jus d'orange 1 dl",0.14000000000000001,null,"Succo d'arancia 1 dl",0.14000000000000001,null,100,1]
["PET Süssgetränk 5 dl",0.9,null,"PET Boisson douce 5 dl",0.9,null,"PET Bevanda dolce 5 dl",0.9,null,500,1]
["1.2 Sandwich",null,"Rezept #","1.2 Sandwich",null,"Recette #","1.2 Panini",null,"Ricetta #"]
["Ciabatta Sandwich mit Mozzarella",2.38,null,"Sandwich de ciabatta au mozzarella",2.38,null,"Panini ciabatta con mozzarella",2.38,null,191,1]
["Sandwich mit Brie Suisse",2.37,null,"Sandwich au Brie suisse",2.37,null,"Panini con Brie Suisse",2.37,null,205,1]
["Sandwich mit Salami",2.4700000000000002,null,"Sandwich au salami",2.4700000000000002,null,"Panini con salame",2.4700000000000002,null,205,1]
["Sandwich mit Schinken",2.52,null,"Sandwich au jambon",2.52,null,"Panini con prosciutto",2.52,null,205,1]
["Sandwich mit Thon Mayonnaise",1.17,null,"Sandwich au thon",1.17,null,"Panini con tonno",1.17,null,200,1]
["Sandwich mit Trutenschinken",2.87,null,"Sandwich au jambon de dinde",2.87,null,"Panini con tacchino",2.87,null,205,1]
["Landjäger Paar 85 g",1.7,null,"Gendarme paire 85 g",1.7,null,"Landjäger coppia 85 g",1.7,null,85,1]
["Wienerli Stück 70 g",0.84,null,"Wienerli pièce 70 g",0.84,null,"Wurstel pezzo 70 g",0.84,null,70,1]
["Cervelat Stück 120 g",1.36,null,"Cervelat pièce 120 g",1.36,null,"Cervellata pezzo 120 g",1.36,null,120,1]
["1.3 Früchte für Snack",null,"Rezept #","1.3 Fruits pour snack",null,"Recette #","1.3 Frutti per snack",null,"Ricetta #"]
["Apfel ø 180 g ",0.5,null,"Pomme ø 180 g",0.5,null,"Mele ø 180 g",0.5,null,"180 g",1]
["Orange ø 200 g",0.4,null,"Orange ø 200 g",0.4,null,"Orancione ø 200 g",0.4,null,"200 g",1]
["Mandarine ø 100 g",0.35,null,"Mandarine ø 100 g",0.35,null,"Mandarino ø 100 g",0.35,null,"100 g",1]
["Birne ø 180 g",0.6,null,"Poire ø 180 g",0.6,null,"Pera ø 180 g",0.6,null,"180 g",1]
["Banane ø 200 g",0.8,null,"Banane ø 200 g",0.8,null,"Banana ø 200 g",0.8,null,"200 g",1]
["Pfirsich ø 180 g",0.5,null,"Pêche ø 180 g",0.5,null,"Pesca ø 180 g",0.5,null,"180 g",1]
["Nektarine ø 180 g",0.5,null,"Nectarine ø 180 g",0.5,null,"Nettarina ø 180 g",0.5,null,"180 g",1]
["Pflaume ø 150 g",0.6,null,"Prune ø 150 g",0.6,null,"Prugna ø 150 g",0.6,null,"150 g",1]
["Zwetschge ø 100 g",0.35,null,"Pruneau ø 100 g",0.35,null,"Prugna ø 100 g",0.35,null,"100 g",1]
["2 Suppen",null,"Rezept #","2 Soupes",null,"Recette #","2 Minestre e zuppe",null,"Ricetta #"]
["Appenzeller Käsesuppe",0.6,200,"Soupe à l'appenzelloise",0.6,200,"Minestra di formaggio all'appenzellese",0.6,200,201,1]
["Appenzeller Zwiebelsuppe",0.45,201,"Soupe appenzelloise aux oignons",0.45,201,"Zuppa di cipolle all'appenzellese",0.45,201,201,1]
["Asiatisch scharf-saure Suppe",0.42,202,"Potage asiatique aigre piquant",0.42,202,"Minestra asiatica piccante",0.42,202,208,1]
["Basler Mehlsuppe ",0.56999999999999995,203,"Potage bâlois",0.56999999999999995,203,"Zuppa di farina alla basilese",0.56999999999999995,203,210,1]
["Bauernsuppe",0.54,204,"Soupe paysanne",0.54,204,"Zuppa del contadino",0.54,204,204,1]
["Berner Märitsuppe",0.75,204,"Soupe bernoise du marché",0.75,204,"Zuppa del mercato bernese",0.75,204,198,1]
["Brotsuppe",0.23,206,"Potage au pain",0.23,206,"Minestra di pane",0.23,206,204,1]
["Bündner Gerstensuppe",0.46,208,"Potage des Grisons",0.46,208,"Zuppa d'orzo al grigionese",0.46,208,211,1]
["Freiburger Hüttensuppe",0.83,209,"Soupe de chalet",0.83,209,"Minestra dello chalet alla friburghese",0.83,209,211,1]
["Minestrone",0.63,218,"Minestrone",0.63,218,"Minestrone",0.63,218,205,1]
["Thurgauer Mostsuppe",0.66,223,"Soupe thurgovienne au cidre de pomme",0.66,223,"Zuppa di mosto di mele alla thurgoviese",0.66,223,201,1]
["Weissweinsuppe",0.39,224,"Soupe au vin blanc",0.39,224,"Zuppa di vino bianco",0.39,224,203,1]
["Bouillon mit Backerbsen",0.04,205,"Bouillon aux pois frits",0.04,205,"Brodo palline fritte",0.04,205,179,1]
["Bouillon mit Ei",0.1,205,"Bouillon aux œufs",0.1,205,"Brodo alle uova",0.1,205,183,1]
["Bouillon mit Flädli",0.13,205,"Bouillon célestine",0.13,205,"Brodo celestino",0.13,205,179,1]
["Bouillon mit kleinem Gemüse",0.2,205,"Bouillon aux petites légumes",0.2,205,"Brodo con piccole verdure",0.2,205,183,1]
["Bouillon mit Knoblauch Croutons",0.06,205,"Bouillon aux croûtons à l'ail",0.06,205,"Brodo con crostini all'aglio",0.06,205,184,1]
["Bouillon mit Reis",0.02,205,"Bouillon aux riz",0.02,205,"Brodo con riso",0.02,205,179,1]
["Bouillon mit Teigwaren",0.02,205,"Bouillon aux pâtes",0.02,205,"Brodo con pasta",0.02,205,179,1]
["Knoblauch Cremesuppe",0.24,208,"Crème à l'ail",0.24,208,"Crema all'aglio",0.24,208,207,1]
["Kresse Cremesuppe",0.28000000000000003,208,"Crème aux cressons",0.28000000000000003,208,"Crema al crescione ",0.28000000000000003,208,203,1]
["Peperoni Cremesuppe",0.45,208,"Crème aux poivrons",0.45,208,"Crema ai peperoni",0.45,208,208,1]
["Petersiliencremesuppe",0.26,208,"Crème aux persils",0.26,208,"Crema al prezzemolo",0.26,208,203,1]
["Spargelcremesuppe",1.03,208,"Crème d'asperges",1.03,208,"Crema d'asparagi",1.03,208,203,1]
["Tomatencremesuppe",0.16,208,"Crème de tomate",0.16,208,"Crema ai pomodori",0.16,208,208,1]
["Zucchetti Cremesuppe",0.4,208,"Crème de courgette",0.4,208,"Crema di zucchine",0.4,208,208,1]
["2 Suppen",null,"Rezept #","2 Soupes",null,"Recette #","2 Minestre e zuppe",null,"Ricetta #"]
["Kurkumasuppe",0.2,212,"Potage au curcuma",0.2,212,"Zuppa di curcuma",0.2,212,201,1]
["Paprikasuppe",0.21,212,"Potage au paprika",0.21,212,"Zuppa di paprica",0.21,212,201,1]
["Safransuppe",0.3,212,"Potage au safran",0.3,212,"Zuppa di zafferano",0.3,212,199,1]
["Suppe nach Bauern Art",0.5,222,"Potage paysanne",0.5,222,"Zuppa paesana",0.5,222,211,1]
["Suppe nach flämischer Art",0.34,222,"Potage flamande",0.34,222,"Zuppa flamande",0.34,222,211,1]
["Suppe nach Hausfrauen Art",0.43,222,"Potage bonne-femme",0.43,222,"Zuppa bonne-femme",0.43,222,217,1]
["Suppe nach Pflanzer Art",0.3,222,"Potage cultivateur",0.3,222,"Zuppa del coltivatore",0.3,222,202,1]
["Gelberbsensuppe mit Speck",0.31,213,"Potage de pois  jaunes au lard",0.31,213,"Zuppa di piselli gialle con speck ",0.31,213,219,1]
["Grünerbsensuppe",0.21,213,"Potage de pois verts",0.21,213,"Zuppa di piselli verdi",0.21,213,215,1]
["Hafercremesuppe",0.2,213,"Crème d'avoine",0.2,213,"Crema d'avena",0.2,213,210,1]
["Indische Kichererbsen Suppe",0.44,213,"Potage de pois chiches",0.44,213,"Zuppa di ceci alla Indinese",0.44,213,217,1]
["Linsensuppe",0.24,213,"Potage aux lentilles",0.24,213,"Zuppa di lenti",0.24,213,215,1]
["Pürierte Blumenkohlsuppe",0.47,219,"Purée de chou-fleur",0.47,219,"Zuppa di cavolfiore",0.47,219,201,1]
["Pürierte Broccoli Suppe",0.43,219,"Purée de brocolis",0.43,219,"Zuppa di broccoli",0.43,219,215,1]
["Pürierte Fenchelsuppe",0.39,219,"Purée de fenouil",0.39,219,"Zuppa di finocchio",0.39,219,215,1]
["Pürierte Gemüsesuppe",0.37,219,"Purée de légumes",0.37,219,"Zuppa di verdure",0.37,219,193,1]
["Pürierte Kürbissuppe",0.39,219,"Purée de courges",0.39,219,"Zuppa di zucca",0.39,219,202,1]
["Pürierte Lauchsuppe",0.38,219,"Purée de poireaux",0.38,219,"Minestra di porri",0.38,219,215,1]
["Pürierte Rotkabissuppe",0.31,219,"Purée de chou rouges",0.31,219,"Minestra di kabis rosso",0.31,219,202,1]
["Pürierte Schwarzwurzelsuppe",0.47,219,"Purée de salsifis",0.47,219,"Zuppa di scorzonera",0.47,219,215,1]
["Pürierte Selleriesuppe",0.49,219,"Purée de céleri",0.49,219,"Zuppa di sedano",0.49,219,215,1]
["Kartoffelpüree Suppe",0.32,219,"Soupe de pommes de terre",0.32,219,"Zuppa di patate",0.32,219,214,1]
["Maispüreesuppe",0.19,219,"Soupe de mais",0.19,219,"Zuppa di mais",0.19,219,214,1]
["Marronipüreesuppe",0.9,219,"Soupe de marron",0.9,219,"Zuppa di castagne",0.9,219,214,1]
["Süsskartoffelpüreesuppe",0.43,219,"Soupe de patates douces",0.43,219,"Zuppa di patate dolce",0.43,219,193,1]
["Gazpacho",0.52,210,"Gazpacho",0.52,210,"Gazpacho",0.52,210,201,1]
["Kalte Gurkensuppe",0.37,215,"Soupe froide de concombre",0.37,215,"Minestra di cetrioli fredda",0.37,215,203,1]
["Melonenkaltschale",0.99,217,"Soupe froide de melon",0.99,217,"Crema fredda al melone",0.99,217,205,1]
["3 Saucen",null,"Rezept #","3 Sauces",null,"Recette #","3 Salse",null,"Ricetta #"]
["Currysauce",0.72,306,"Sauce curry",0.72,306,"Salsa al curry",0.72,306,111,1]
["Tomatensauce",0.16,311,"Sauce  tomates",0.16,311,"Salsa al pomodoro",0.16,311,77,1]
["Tomatensauce mit Thon",0.28999999999999998,311,"Sauce tomates à thon",0.28999999999999998,311,"Salsa al pomodoro e tonno",0.28999999999999998,311,77,1]
["Tomatensauce all' arrabiata",0.23,311,"Sauce tomates piquante",0.23,311,"Salsa al pomodoro all' arrabbiata",0.23,311,81,1]
["Tomatensauce alla puttanesca",0.65,311,"Sauce tomates puttanesca",0.65,311,"Salsa al pomodoro alla puttanesca",0.65,311,79,1]
["Tomatensauce nach mexikanischer Art",0.3,311,"Sauce tomates mexicaine",0.3,311,"Salsa al pomodoro alla messicana",0.3,311,80,1]
["Tomatensauce Waluca",0.68,311,"Sauce aux tomate Waluca",0.68,311,"Salsa al pomodoro Waluca",0.68,311,93,1]
["Pfeffersauce",0.21,301,"Sauce aux poivre verts",0.21,301,"Salsa al pepe verde",0.21,301,66,1]
["Jägersauce",0.53,301,"Sauce Chasseur",0.53,301,"Salsa alla cacciatora",0.53,301,73,1]
["Rotweinsauce",0.13,301,"Sauce vin rouge",0.13,301,"Salsa al vino rosso",0.13,301,68,1]
["Senfsauce (braun)",7.0000000000000007E-2,301,"Sauce moutarde (brune)",7.0000000000000007E-2,301,"Salsa alla senape",7.0000000000000007E-2,301,78,1]
["Zwiebelsauce",0.18,301,"Sauce oignons",0.18,301,"Salsa alle cipolle",0.18,301,86,1]
["Champignonsauce",0.42,302,"Sauce champignons",0.42,302,"Salsa ai funghi",0.42,302,99,1]
["Käsesauce",0.34,308,"Sauce fromage (Mornay)",0.34,308,"Salsa al formaggio",0.34,308,68,1]
["Kräuterrahmsauce",0.19,308,"Sauce crème aux fines herbes",0.19,308,"Salsa alla crema con erba aromatiche",0.19,308,83,1]
["Meerrettichsauce",0.19,308,"Sauce au raifort",0.19,308,"Salsa al rafano",0.19,308,64,1]
["Milchsauce",0.13,308,"Sauce Béchamel",0.13,308,"Salsa besciamella",0.13,308,69,1]
["Rahmsauce",0.12,308,"Sauce à la crème",0.12,308,"Salsa alla crema",0.12,308,81,1]
["Senfsauce (hell)",0.16,308,"Sauce moutarde (blanche)",0.16,308,"Salsa alla senape",0.16,308,90,1]
["Cocktailsauce",0.23,303,"Sauce Cocktail",0.23,303,"Salsa Cocktail",0.23,303,70,1]
["Currymayonnaise",0.2,305,"Mayonnaise au curry",0.2,305,"Maionese al curry",0.2,305,57,1]
["Ketchup",0.15,null,"Ketchup  ",0.15,null,"Ketchup  ",0.15,null,50,1]
["Knoblauchmayonnaise",0.18,307,"Mayonnaise à l'ail",0.18,307,"Maionese all'aglio",0.18,307,57,1]
["Kräutermayonnaise",0.24,307,"Mayonnaise aux fines herbes",0.24,307,"Maionese alle erbe",0.24,307,57,1]
["Kräutervinaigrette",0.18,304,"Vinaigrette aux fines herbes",0.18,304,"Maionese vinaigrette",0.18,304,51,1]
["Mayonnaise  ",0.15,null,"Mayonnaise  ",0.15,null,"Maionese  ",0.15,null,50,1]
["Quarkmayonnaise",0.17,305,"Mayonnaise au séré",0.17,305,"Maionese al quark",0.17,305,55,1]
["Remouladensauce",0.34,309,"Sauce rémoulade",0.34,309,"Salsa remoulade",0.34,309,56,1]
["Salatsauce französisch  ",0.2,null,"Sauce salade française  ",0.2,null,"Salsa per insalata francese  ",0.2,null,50,1]
["Salatsauce italienisch  ",0.2,null,"Sauce salade italienne  ",0.2,null,"Salsa per insalata italiana  ",0.2,null,50,1]
["Senf mild  ",0.17,null,"Moutarde",0.17,null,"Senape  ",0.17,null,50,1]
["Thousand Island Salatsauce",0.11,303,"Sauce Thousand Island",0.11,303,"Salsa per insalata thousand Island",0.11,303,51,1]
["4 Fleischgerichte",null,"Rezept #","4 Mets de viande",null,"Recette #","4 Piatti a base di carne",null,"Ricetta #"]
["Chinapfanne mit Schweinsgeschnetzeltem",2.23,402,"Mets chinois, émincé porc",2.23,402,"Stufato cinese con maiale",2.23,402,236,1]
["Feuertopf mit Schwein",2.27,404,"Potée du diable au porc",2.27,404,"Stufato di maiale piccante",2.27,404,234,1]
["Fleischkäse aus dem Ofen CF 3",2.16,408,"Fromage d'Italie au four CF 3 ",2.16,408,"Fleischkäse al forno CF 3",2.16,408,144,1]
["Geschnetzeltes Schwein mexikanische Art",1.93,407,"Emincé de porc à la mexicaine",1.93,407,"Sminuzzato di pollo alla messicana",1.93,407,251,1]
["Geschnetzeltes Schwein mit Kräutern",1.86,406,"Emincé de porc aux fines herbes",1.86,406,"Sminuzzato di maiala alle erbe aromatiche",1.86,406,221,1]
["Geschnetzeltes Schwein mit Peperoni",2.0499999999999998,406,"Emincé de porc aux poivrons",2.0499999999999998,406,"Sminuzzato di maiale ai peperoni",2.0499999999999998,406,254,1]
["Geschnetzeltes Schwein mit Pilzen",2.0499999999999998,406,"Emincé de porc aux champignons",2.0499999999999998,406,"Sminuzzato di maiale ai funghi",2.0499999999999998,406,234,1]
["Geschnetzeltes Schwein nach Berner Art",2.2999999999999998,406,"Emincé de porc à la bernoise",2.2999999999999998,406,"Sminuzzato di maiale alla bernese",2.2999999999999998,406,242,1]
["Grosi's Cervelat Goulasch",2.34,null,"Goulache de cervela Grand-mère",2.34,null,"Gulasch di cervellate della nonna",2.34,null,240,1]
["Hackbraten aus dem Ofen CF 3",2.85,408,"Rôti haché de porc au four CF 3",2.85,408,"Polpettone di maiale al forno CF 3",2.85,408,120,1]
["Hausgemachter Schweinshackbraten",1.92,null,"Rôti haché de porc maison",1.92,null,"Polpettone casareccio di maiale",1.92,null,161,1]
["Schinken im Brotteig",1.95,1100,"Jambon en croûte",1.95,1100,"Prosciutto in crosta",1.95,1100,219,1]
["Schweins Piccata",3.39,413,"Piccata de porc",3.39,413,"Piccata di maiale",3.39,413,169,1]
["Schweins Saftplätzli",2.91,420,"Carbonnade de porc",2.91,420,"Carbonata di maiale",2.91,420,218,1]
["Schweins Spare rips",5.27,426,"Spare rips de porc",5.27,426,"Costine di maiale",5.27,426,153,1]
["Schweinsbratwurst",2.52,null,"Saucisse de porc",2.52,null,"Salsicce di maiale",2.52,null,167,1]
["Schweinshalsbraten",2.67,null,"Rôti de porc ",2.67,null,"Arrosta di maiale",2.67,null,226,1]
["Schweinskotelett mit Kräuterbutter",3.24,null,"Côtelette de porc, beurre aux fines herbes",3.24,null,"Castelletto di maiale, burro alla erbe aromatiche",3.24,null,168,1]
["Schweinshaxe geschmort",2.91,null,"Jarret de porc braisé",2.91,null,"Ossobuco di maiale brasato",2.91,null,244,1]
["Schweinspaprika Goulasch",2.4,411,"Goulache de porc au paprika",2.4,411,"Gulasch di maiale alla paprika",2.4,411,257,1]
["Schweinspfeffer nach Jäger Art",2.14,412,"Civet de porc chasseur",2.14,412,"Salmi di maiale alla cacciatora",2.14,412,226,1]
["Schweinsragout mexikanische Art",2,416,"Ragoût de porc à la mexicaine",2,416,"Spezzatino di maiale alla messicana",2,416,251,1]
["Schweinsragout nach Berner Art",2.36,416,"Ragoût de porc à la bernoise",2.36,416,"Spezzatino di maiale alla bernese",2.36,416,233,1]
["Voressen vom Schwein nach alter Art",2.1800000000000002,427,"Blanquette de porc à l'ancienne",2.1800000000000002,427,"Bianchetto di maiale all'antica",2.1800000000000002,427,231,1]
["Chinapfanne mit Pouletgeschnetzeltem",3.34,402,"Mets chinois, poulet",3.34,402,"Stufato cinese con pollo",3.34,402,236,1]
["Feuertopf mit Poulet",3.38,404,"Potée du diable au poulet",3.38,404,"Stufato di pollo piccante",3.38,404,234,1]
["Geschnetzeltes Poulet  mexikanische Art",3.04,407,"Emincé de poulet à la mexicaine",3.04,407,"Sminuzzato di pollo alla messicana",3.04,407,251,1]
["Geschnetzeltes Poulet mit Kräutern",2.97,406,"Emincé poulet aux fines herbes",2.97,406,"Sminuzzato di pollo alle erbe aromatiche",2.97,406,221,1]
["Geschnetzeltes Poulet mit Peperoni",3.16,407,"Emincé de poulet aux poivrons",3.16,407,"Sminuzzato di pollo ai peperoni",3.16,407,254,1]
["Geschnetzeltes Poulet mit Pilzen",3.16,"406/7","Emincé de poulet aux champignons",3.16,"406/7","Sminuzzato di pollo ai funghi",3.16,"406/7",234,1]
["Geschnetzeltes Poulet nach Berner Art",3.19,407,"Emincé de poulet à la bernoise",3.19,407,"Sminuzzato di pollo alla bernese",3.19,407,242,1]
["Halbes Poulet gebraten mit Saucen",4.34,null,"Demi poulet rôti et sauces",4.34,null,"Mezzo pollo arrostito con salse",4.34,null,243,1]
["Poulet mit Gemüse an Hoisin sauce",4.3499999999999996,null,"Poulet aux légumes Hoisin",4.3499999999999996,null,"Pollo con verdure Hoisin",4.3499999999999996,null,198,1]
["Poulet süss-sauer",3.2,414,"Poulet aigre-doux",3.2,414,"Pollo in agrodolce",3.2,414,238,1]
["Pouletgeschnetzeltes an Currysauce",1.71,403,"Emincé de poulet au curry",1.71,403,"Sminuzzato di pollo al curry",1.71,403,110,1]
["Pouletragout mexikanische Art",2.63,416,"Ragoût de poulet à la mexicaine",2.63,416,"Spezzatino di pollo alla messicana",2.63,416,251,1]
["Pouletragout nach Berner Art",2.86,416,"Ragoût de poulet à la bernoise",2.86,416,"Spezzatino di pollo alla bernese",2.86,416,233,1]
["Pouletvoressen nach alter Art",2.81,427,"Blanquette de poulet à l'ancienne",2.81,427,"Bianchetto di pollo all'antica",2.81,427,231,1]
["Pouletvoressen nach Emmentaler Art",2.44,427,"Blanquette de poulet à l'emmentaloise",2.44,427,"Bianchetto di pollo all'emmentalese",2.44,427,207,1]
["Chinapfanne mit Truthahngeschnetzeltem",3.45,402,"Mets chinois, dinde",3.45,402,"Stufato cinese con tacchino",3.45,402,236,1]
["Feuertopf mit Truthahn",3.48,404,"Potée au diable à la dinde",3.48,404,"Stufato di tacchino piccante",3.48,404,234,1]
["Geschnetzelter Truthahn mexikanische Art",3.14,416,"Emincé de dinde à la mexicaine",3.14,416,"Sminuzzato di tacchino alla messicana",3.14,416,251,1]
["Geschnetzelter Truthahn mit Kräutern",3.07,406,"Emincé de dinde aux fines herbes",3.07,406,"Sminuzzato di tacchino alle erbe aromatiche",3.07,406,221,1]
["Geschnetzelter Truthahn mit Peperoni",3.27,407,"Emincé de dinde aux poivrons",3.27,407,"Sminuzzato di tacchino ai peperoni",3.27,407,254,1]
["Geschnetzelter Truthahn mit Pilzen",3.27,406,"Emincé de dinde aux champignons",3.27,406,"Sminuzzato di tacchino ai funghi",3.27,406,234,1]
["Geschnetzelter Truthahn nach Berner Art",3.28,416,"Emincé de dinde à la bernoise",3.28,416,"Sminuzzato di tacchino alla bernese",3.28,416,242,1]
["Truthahn Piccata",5.63,413,"Piccata de dinde",5.63,413,"Piccata di tacchino",5.63,413,169,1]
["Truthahngeschnetzeltes an Currysauce",1.76,403,"Emincé de dinde au curry",1.76,403,"Sminuzzato di tacchino al curry",1.76,403,110,1]
["Truthahnragout mexikanische Art",3.31,416,"Ragoût de dinde à la mexicaine",3.31,416,"Spezzatino di tacchino alla messicana",3.31,416,251,1]
["Truthahnragout nach Berner Art",3.4,416,"Ragoût de dinde à la bernoise",3.4,416,"Spezzatino di tacchino alla bernese",3.4,416,233,1]
["Truthahnrollbraten",3.7,422,"Rôti de dinde roulé",3.7,422,"Arrosto di tacchino arrotolato",3.7,422,210,1]
["Truthahnvoressen nach alter Art",3.49,427,"Blanquette de dinde à l'ancienne",3.49,427,"Bianchetto di tacchino all'antica",3.49,427,231,1]
["Truthahnvoressen nach Emmentaler Art",3.12,427,"Blanquette de dinde à l'emmentaloise",3.12,427,"Bianchetto di tacchino all'emmentalese",3.12,427,207,1]
["Gefüllte Kalbsbrust glasiert",3.2,422,"Poitrine de veau farcie glacée",3.2,422,"Petto di vitello farcito e glassato",3.2,422,210,1]
["Geschnetzeltes Kalbfleisch mit Kräutern",4.03,406,"Emincé de veau aux fines herbes",4.03,406,"Sminuzzato di vitello alle erbe aromatiche",4.03,406,221,1]
["Geschnetzeltes Kalbfleisch mit Peperoni",4.2300000000000004,407,"Emincé de veau aux poivrons",4.2300000000000004,407,"Sminuzzato di vitello ai peperoni",4.2300000000000004,407,254,1]
["Geschnetzeltes Kalbfleisch mit Pilzen",4.2300000000000004,406,"Emincé de veau aux champignons",4.2300000000000004,406,"Sminuzzato di vitello ai funghi",4.2300000000000004,406,234,1]
["Geschnetzeltes Kalbfleisch nach Berner Art",4.04,416,"Emincé de veau à la bernoise",4.04,416,"Sminuzzato di vitello alla bernese",4.04,416,242,1]
["Kalbgeschnetzeltes an Currysauce",2.2400000000000002,403,"Emincé de veau au curry",2.2400000000000002,403,"Sminuzzato di vitello al curry",2.2400000000000002,403,110,1]
["Kalbshaxe geschmort",3.99,null,"Jarret de veau braisé",3.99,416,"Ossobuco di vitello brasato",3.99,416,244,1]
["Kalbsbrustrollbraten",3.2,422,"Poitrine de veau roulée glacée",3.2,422,"Petto di vitello arrotolato e glassato",3.2,422,210,1]
["Kalbsragout mexikanische Art",3.95,416,"Ragoût de veau à la mexicaine",3.95,416,"Spezzatino di vitello alla messicana",3.95,416,251,1]
["Kalbsragout nach Berner Art",3.92,416,"Ragoût de veau à la bernoise",3.92,416,"Spezzatino di vitello alla bernese",3.92,416,233,1]
["Kalbsvoressen nach alter Art",4.13,427,"Blanquette de veau à l'ancienne",4.13,427,"Bianchetto di vitello all'antica",4.13,427,231,1]
["Kalbsvoressen nach Emmentaler Art",3.76,427,"Blanquette de veau à l'emmentaloise",3.76,427,"Bianchetto di vitello all'emmentalese",3.76,427,207,1]
["Geschnetzeltes Rindfleisch mexikanische Art",3.5,416,"Emincé de bœuf à la mexicaine",3.5,416,"Sminuzzato di manzo alla messicana",3.5,416,251,1]
["Geschnetzeltes Rindfleisch mit Kräutern",3.43,406,"Emincé de bœuf aux fines herbes",3.43,406,"Sminuzzato di manzo alle erbe aromatiche",3.43,406,221,1]
["Geschnetzeltes Rindfleisch mit Peperoni",3.63,407,"Emincé de bœuf aux peppéroni",3.63,407,"Sminuzzato di Manzo ai peperoni",3.63,407,254,1]
["Geschnetzeltes Rindfleisch mit Pilzen",3.63,406,"Emincé de bœuf aux champignons",3.63,406,"Sminuzzato di manzo ai funghi",3.63,406,234,1]
["Geschnetzeltes Rindfleisch nach Berner Art",3.56,416,"Emincé de bœuf à la bernoise",3.56,416,"Sminuzzato di manzo alla bernese",3.56,416,242,1]
["Rindfleisch an Austernsauce",3.89,417,"Bœuf japonais",3.89,417,"Manzo alla salsa d'ostriche",3.89,417,246,1]
["Rindragout nach Berner Art",3.08,416,"Ragoût de bœuf à la bernoise",3.08,416,"Spezzatino di manzo alla bernese",3.08,416,233,1]
["Rindsgeschnetzeltes an Currysauce",1.94,403,"Emincé de bœuf au curry",1.94,403,"Sminuzzato di manzo al curry",1.94,403,110,1]
["Rindspaprika Goulasch",3.3,411,"Goulache de bœuf au paprika",3.3,411,"Gulasch di manzo alla paprika",3.3,411,257,1]
["Rindspfeffer nach Jäger Art",3.04,412,"Civet de bœuf chasseur",3.04,412,"Salmì di manzo alla cacciatora",3.04,412,226,1]
["Rindsragout mexikanischer Art",2.9,416,"Ragoût de bœuf à la mexicaine",2.9,416,"Spezzatino di manzo alla messicana",2.9,416,251,1]
["Rindssaftplätzli",5.05,420,"Carbonnade de bœuf",5.05,420,"Carbonata di manzo",5.05,420,233,1]
["Rindsschmorbraten",3.85,422,"Bœuf braisé",3.85,422,"Stufato di manzo",3.85,422,236,1]
["Siedfleisch",3.18,424,"Bœuf bouilli",3.18,424,"Bollito di manzo",3.18,424,156,1]
["Solothurner Suuremocke",4.8499999999999996,425,"Daube de bœuf soleuroise",4.8499999999999996,425,"Stufato di manzo alla solettese",4.8499999999999996,425,218,1]
["Lammgigotrollbraten",3.95,422,"Gigot d'agneau roulé rôti",3.95,422,"Gigot d'agnello arrotolato arrostito",3.95,422,210,1]
["Lammvoressen nach Emmentaler Art",4.51,427,"Blanquette d'agneau à l'emmentaloise",4.51,427,"Bianchetto di agnello all'emmentalese",4.51,427,207,1]
["Kaninchenragout nach Berner Art",5.36,416,"Ragoût de lapin à la bernoise",5.36,416,"Spezzatino di coniglio alla bernese",5.36,416,233,1]
["Kaninchenvoressen nach Emmentaler Art",5.56,427,"Blanquette de lapin à l'emmentaloise",5.56,427,"Bianchetto di coniglio all'emmentalese",5.56,427,207,1]
["5 Fischgerichte",null,"Rezept #","5 Mets de poisson",null,"Recette #","5 Piatti a base di pesce",null,"Ricetta #"]
["Felchenfilet nach Luzerner Art",4,502,"Filet de féra lucernoise",4,502,"Filetti di coregone alla lucernese",4,502,162,1]
["Forellenfilet nach Zuger Art",4.47,506,"Filet de truite zougoise",4.47,506,"Filetti di trotta alla zughese",4.47,506,202,1]
["Kabeljaupiccata",3.64,413,"Piccata de morue",3.64,413,"Piccata di merluzzo",3.64,413,181,1]
["Pangasiusfilet im Backteig",2.33,501,"Filet de pangasius frit",2.33,501,"Filetti di pangasius in pastella de friggere",2.33,501,147,1]
["Pangasiusfilet nach Luzerner Art",1.9,502,"Filet de pangasius lucernoise",1.9,502,"Filetti di pangasius alla lucernese",1.9,502,162,1]
["Pangasiusfilet nach Neuenburger Art",2,504,"Filet de pangasius neuchâteloise",2,504,"Filetti di pangasius alla neocastellana",2,504,196,1]
["Pangasiusgratin auf Spinat",2.64,507,"Gratin de pangasius aux épinards",2.64,507,"Gratin di pangasius agli spinaci",2.64,507,293,1]
["Panierte Fischfilet",1.88,505,"Filet de poisson pané",1.88,505,"Filetti di pesce impanati",1.88,505,156,1]
["Saiblingfilet nach Neuenburger Art",6.05,504,"Filets d'omble neuchâteloise",6.05,504,"Filetti di salmerino alla neocastellana",6.05,504,196,1]
["Seelachspiccata",3.36,413,"Piccata de colin",3.36,413,"Piccata di merluccius",3.36,413,148,1]
["Seelachsfilet nach Luzerner Art",3.55,502,"Filet de colin lucernoise",3.55,502,"Filetti di merluzzo carbonaro alla lucernese",3.55,502,162,1]
["Seelachsfilet nach Neuenburger Art",3.65,504,"Filet de colin neuchâteloise",3.65,504,"Filetti di merluzzo carbonaro alla neocastellana",3.65,504,196,1]
["6 Stärkebeilagen",null,"Rezept #","6 Féculents",null,"Recette #","6 Contorni",null,"Ricetta #"]
["Bratkartoffeln",0.96,600,"Pommes rissolées",0.96,600,"Patate arrostite",0.96,600,200,1]
["Gemüserösti mit Spiegelei",1.28,612,"Rösti de légumes et œuf au plat",1.28,612,"Rösti con verdure e spiegelei",1.28,612,200,1]
["Kartoffelchips CF 4",1.57,null,"Pommes chips CF 4",1.57,null,"Pommes chips CF 4",1.57,null,80,1]
["Kartoffelgnocchi",0.68,null,"Gnocchi de pommes de terre",0.68,null,"Gnocchi di patate",0.68,null,200,1]
["Kartoffelgratin",0.93,605,"Gratin de pommes de terre",0.93,605,"Gratin di patate",0.93,605,207,1]
["Kartoffel-Lauchgratin",1.72,605,"Gratin de pommes de terre et poireaux",1.72,605,"Gratin di patate e porro",1.72,605,205,1]
["Kartoffelstock",0.43,606,"Purée de pommes de terre",0.43,606,"Purea di patate",0.43,606,190,1]
["Ofenkartoffeln",0.94,null,"Pommes au four",0.94,null,"Patate al forno",0.94,null,251,1]
["Plain in Pigna",1.74,609,"Plain in Pigna",1.74,609,"Plain in Pigna",1.74,609,176,1]
["Rösti",0.49,612,"Rösti",0.49,612,"Rösti",0.49,612,200,1]
["Salzkartoffeln",0.68,613,"Pommes de terre nature",0.68,613,"Patate nature",0.68,613,141,1]
["Saucenkartoffeln",0.92,614,"Pommes de terre en sauce",0.92,614,"Patate in salsa",0.92,614,180,1]
["Schälkartoffeln / Gschwelti",0.5,615,"Pommes de terre en robe",0.5,615,"Patate in camicia",0.5,615,163,1]
["Teigwaren als Beilage",0.25,617,"Pâtes comme féculant",0.25,617,"Pasta di contorno",0.25,617,122,1]
["Teigwaren als Nebenmahlzeit",0.27,617,"Pâtes comme repas secondaire",0.27,617,"Pasta di piatti secondario",0.27,617,176,1]
["Gemüsepilawreis",0.42,608,"Riz pilaf aux petites légumes",0.42,608,"Riso pilaf con verdurine",0.42,608,211,1]
["Ofetori",1.1599999999999999,606,"Ofetori",1.1599999999999999,606,"Ofetori",1.1599999999999999,606,185,1]
["Orientalischer Pilawreis",1.1100000000000001,608,"Riz pilaf à l'orientale",1.1100000000000001,608,"Riso pilaf all'orientale",1.1100000000000001,608,266,1]
["Pilawreis",0.22,608,"Riz pilaf",0.22,608,"Riso pilaf",0.22,608,207,1]
["Risi Bisi",0.48,608,"Risi-bisi",0.48,608,"Risi-bisi",0.48,608,254,1]
["Risotto mit Pilzen",1.1399999999999999,611,"Risotto aux champignons",1.1399999999999999,611,"Risotto ai funghi",1.1399999999999999,611,258,1]
["Rispor",0.85,608,"Rispor",0.85,608,"Rispor",0.85,608,264,1]
["Tomatenrisotto",0.6,611,"Risotto aux tomates",0.6,611,"Risotto ai pomodori",0.6,611,253,1]
["Weissweinrisotto",0.56999999999999995,611,"Risotto au vin blanc",0.56999999999999995,611,"Risotto al vino bianco",0.56999999999999995,611,254,1]
["Griessschnitte gratiniert",0.73,603,"Tranche de semoule gratinée",0.73,603,"Tranci di semolino gratinati",0.73,603,218,1]
["Bramatapolenta",0.55000000000000004,610,"Polenta Bramata",0.55000000000000004,610,"Polenta Bramata",0.55000000000000004,610,227,1]
["Tessiner Polenta",0.06,618,"Polenta tessinoise",0.06,618,"Polenta ticinese",0.06,618,171,1]
["Brotknödel mit Kräutern",0.69,null,"Knödel aux fines herbes",0.69,null,"Knödel alle erbe",0.69,null,219,1]
["Ebly",0.65,602,"Ebly",0.65,602,"Ebly",0.65,602,208,1]
["Spätzli",0.93,null,"Knoepfli",0.93,null,"Spätzli",0.93,null,200,1]
["7 Gemüse",null,"Rezept #","7 Légumes",null,"Recette #","7 Verdura",null,"Ricetta #"]
["Blumenkohlauflauf",1.47,700,"Gratin de chou-fleur",1.47,700,"Gratin di cavolfiori",1.47,700,160,1]
["Broccoliauflauf",1.1100000000000001,700,"Gratin de brocoli",1.1100000000000001,700,"Gratin di broccoli",1.1100000000000001,700,160,1]
["Provenzalischer Zucchettigratin",0.68,708,"Gratin de courgettes à la provençale",0.68,708,"Gratin di zucchine alla provinciale",0.68,708,null,1]
["Erbsen nach französischer Art",0.56999999999999995,702,"Petits pois à la française",0.56999999999999995,702,"Piselli alla francese",0.56999999999999995,702,113,1]
["Kohlrabi an Rahmsauce",1.17,702,"Choux-raves à la crème",1.17,702,"Cavolo rapa alla crema",1.17,702,114,1]
["Krautstiele an Rahmsauce",1.37,702,"Côte de bettes à la crème",1.37,702,"Coste alla crema",1.37,702,114,1]
["Wirsing an Rahmsauce",0.57999999999999996,702,"Choux-frisé à la crème",0.57999999999999996,702,"Verza alla crema",0.57999999999999996,702,114,1]
["Blumenkohl gedämpft",1.21,703,"Chou-fleur à la vapeur",1.21,703,"Cavolfiori al vapore",1.21,703,106,1]
["Broccoli gedämpft",1.27,703,"Brocoli à la vapeur",1.27,703,"Broccoli al vapore",1.27,703,106,1]
["Mischgemüse gedämpft",0.79,703,"Légumes mixte à la vapeur",0.79,703,"Misto di verdure al vapore",0.79,703,106,1]
["Bohnen gedünstet",0.54,704,"Haricots verts étuvés",0.54,704,"Fagioli al stufato",0.54,704,null,1]
["Erbsen gedünstet",0.61,704,"Petits pois étuvés",0.61,704,"Piselli al stufato",0.61,704,null,1]
["Kefen gedünstet",0.79,704,"Pois mange-tout étuvés",0.79,704,"Taccole stufate",0.79,704,null,1]
["Kohlrabi gedünstet",1.08,704,"Choux-raves étuvés",1.08,704,"Cavolo rapa stufato",1.08,704,null,1]
["Mischgemüse gedünstet",0.69,704,"Légumes mixtes étuvés",0.69,704,"Verdure miste stufate",0.69,704,null,1]
["Peperoni gedünstet",0.73,704,"Poivrons étuvés",0.73,704,"Peperoni al stufato",0.73,704,119,1]
["Rosenkohl gedünstet",0.56000000000000005,704,"Choux de Bruxelles étuvés",0.56000000000000005,704,"Cavoli di Bruxelles Stufati",0.56000000000000005,704,null,1]
["Rüebli gedünstet",0.49,704,"Carottes étuvées",0.49,704,"Carote stufate",0.49,704,null,1]
["Schwarzwurzel gedünstet",0.79,704,"Salsifis étuvés",0.79,704,"Scorzonere al stufato",0.79,704,null,1]
["Spargel gedünstet",2.17,704,"Asperges étuvées",2.17,704,"Asparagi stufati",2.17,704,128,1]
["Spinat gedünstet",0.73,704,"Epinards étuvés",0.73,704,"Spinaci stufati",0.73,704,null,1]
["Zucchetti gedünstet",0.75,704,"Courgettes étuvées",0.75,704,"Zucchine stufate",0.75,704,119,1]
["Dörrbohnen geschmort",0.56000000000000005,704,"Haricots secs braisés",0.56000000000000005,704,"Fagiolini verdi secchi brasato",0.56000000000000005,704,107,1]
["Peperonata",0.59,709,"Peperonata",0.59,709,"Peperonata",0.59,709,null,1]
["Ratatouille",0.61,709,"Ratatouille",0.61,709,"Ratatouille",0.61,709,106,1]
["Rotkraut geschmort",0.44,704,"Choux rouges braisés",0.44,704,"Cavolo rosso brasato",0.44,704,115,1]
["Sauerkraut",0.62,711,"Choucroute",0.62,711,"Crauti",0.62,711,110,1]
["Fenchel gratiniert",0.77,705,"Fenouil gratiné",0.77,705,"Finocchio gratinate",0.77,705,104,1]
["Peperoni im Ofen gegart",0.81,706,"Poivron au four",0.81,706,"Peperoni al forno",0.81,706,114,1]
["Kräutertomaten",0.5,707,"Tomates provençales",0.5,707,"Pomodori alla provinciale",0.5,707,115,1]
["8 Salate",null,"Rezept #","8 Salade",null,"Recette #","8 Insalate",null,"Ricetta #"]
["Blattsalate",0.46,null,"Salade verte",0.46,null,"Insalata di lattuga",0.46,null,70,1]
["Bohnensalat",0.79,null,"Salade d'haricots",0.79,null,"Insalata di fagioli",0.79,null,111,1]
["Kartoffelsalat",0.39,806,"Salade de pommes de terre",0.39,806,"Insalata di patate",0.39,806,116,1]
["Käsesalat",1.6,807,"Salade de fromage",1.6,807,"Insalata di formaggio",1.6,807,112,1]
["Maissalat",0.47,808,"Salade de mais",0.47,808,"Insalata di mais",0.47,808,110,1]
["Randensalat",0.31,810,"Salade de betteraves",0.31,810,"Insalata di barbabietole",0.31,810,110,1]
["Reissalat mit Curry",0.43,811,"Salade de riz au curry",0.43,811,"Insalata di riso al curry",0.43,811,126,1]
["Rüeblisalat",0.61,812,"Salade de carottes",0.61,812,"Insalata di carote",0.61,812,107,1]
["Teigwarensalat mit Schinken",0.41,814,"Salade de pâtes au jambon",0.41,814,"Insalata di pasta al prosciutto",0.41,814,120,1]
["Tomatensalat mit Basilikum",0.47,null,"Salade de tomates et basilic",0.47,null,"Insalata di pomodori e basilico",0.47,null,100,1]
["Weisskabissalat",0.55000000000000004,805,"Salade de choux-blanc",0.55000000000000004,805,"Insalata di cavolo bianco",0.55000000000000004,805,104,1]
["Wurst-Käsesalat",1.23,807,"Salade de fromage et cervela",1.23,807,"Insalata di cervellate e formaggio",1.23,807,99,1]
["9 Nebenmahlzeiten",null,"Rezept #","9 Repas secondaire",null,"Recette #","9 Secondi piatti e spuntini",null,"Ricetta #"]
["Hawaiischnitten",3.72,902,"Toast Hawaii",3.72,902,"Crostone Hawaii",3.72,902,304,1]
["Walliserschnitte",3.61,902,"Croûtes valaisanne",3.61,902,"Crostone vallesano",3.61,902,304,1]
["Bernerrösti",2.0299999999999998,903,"Rösti à la bernoise",2.0299999999999998,903,"Rösti alla bernese",2.0299999999999998,903,342,1]
["Walliser Rösti",2.34,903,"Rösti à la valaisanne",2.34,903,"Rösti alla vallesana",2.34,903,342,1]
["Bolognaiser Sauce",1.93,905,"Sauce bolognaise",1.93,905,"Salsa alla bolognese",1.93,905,283,1]
["Carbonara Sauce",2.08,906,"Sauce carbonara",2.08,906,"Salsa alla carbonara",2.08,906,201,1]
["Café complet",3.93,null,"Café complet",3.93,null,"Caffè completo",3.93,null,366,1]
["Chili con carne",2.44,908,"Chili con carne",2.44,908,"Chili con carne",2.44,908,318,1]
["Flammkuchen",3,909,"Tarte flambée",3,909,"Flammkuchen",3,909,296,1]
["Lothringer Käsekuchen",3.56,915,"Quiche lorraine",3.56,915,"Torta di formaggio all'alsaziana",3.56,915,331,1]
["Lasagne mit Bolognaise",2.57,918,"Lasagne au four",2.57,918,"Lasagne al forno",2.57,918,412,1]
["Capuns",4.95,null,"Capuns",4.95,null,"Capuns",4.95,null,183,1]
["Mah-Meh mit Schwein",3.47,919,"Mah-Meh au porc",3.47,919,"Mah-Meh con maiale",3.47,919,399,1]
["Bami Goreng mit Poulet",4.37,922,"Bami Goreng au poulet",4.37,922,"Bami Goreng con pollo",4.37,922,366,1]
["Nasi Goreng mit Poulet",4.26,922,"Nasi Goreng au poulet",4.26,922,"Nasi Goreng con pollo",4.26,922,360,1]
["Pastetli mit Fleischfüllung und Pilzen",2.33,923,"Vol-au-vent de viandes et champignons",2.33,923,"Vol-au-vent con salsa di carne e funghi",2.33,923,256,1]
["Linsengericht Malcantone mit Luganighe",3.2,null,"Lentilles du Malcantone et saucisse",3.2,null,"Stufato di lenticchie alla malcantonese",3.2,null,245,1]
["Pizza mit Schinken und Peperoni",4.1399999999999997,924,"Pizza au jambon et poivrons",4.1399999999999997,924,"Pizza prosciutto e peperoni",4.1399999999999997,924,424,1]
["Ravioligratin",2.17,926,"Gratin de ravioli",2.17,926,"Gratin di ravioli",2.17,926,413,1]
["Teigwarenauflauf",3.02,928,"Gratin de pâtes",3.02,928,"Gratin di pasta",3.02,928,359,1]
["10 Eintopfgerichte",null,"Rezept #","10 Potées",null,"Recette #","10 piatti unici",null,"Ricetta #"]
["Bauerneintopf",3.49,1000,"Potée paysanne",3.49,1000,"Stufato alla contadino",3.49,1000,497,1]
["Rindsgoulasch Eintopf",3.75,1001,"Potée goulache de bœuf",3.75,1001,"Gulasch di manzo",3.75,1001,484,1]
["Schweinsgoulasch Eintopf",2.85,1001,"Potée goulache de porc",2.85,1001,"Gulasch di maiale",2.85,1001,484,1]
["Hörnli Pilaw",2.59,1002,"Cornettes pilaf",2.59,1002,"Cornetti pilaf",2.59,1002,467,1]
["Pot au feu",3.73,1002,"Pot-au-feu",3.73,1002,"Pot-au-feu",3.73,1002,462,1]
["Schnitz und drunder",3.37,1005,"Potée argovienne",3.37,1005,"Stufato all'argoviese",3.37,1005,467,1]
["Schweinssteak nach Basler Art",4.3600000000000003,1005,"Steak de porc bâloise",4.3600000000000003,1005,"Scaloppine di maiale alla basilese",4.3600000000000003,1005,442,1]
["Tessiner Weisskohleintopf",2.87,1006,"Potée de choux blanc tessinoise",2.87,1006,"Stufato di cavolo bianco al ticinese",2.87,1006,469,1]
["Unterwaldner Stunggis",3.44,1007,"Stunggis unterwaldoise",3.44,1007,"Stufato di maiale dell'Untervaldo (Stunggis)",3.44,1007,490,1]
["Waadtländer Lauch-Kartoffel Eintopf",4.62,1008,"Papet Vaudois",4.62,1008,"Stufato di porri e patate alla vodese",4.62,1008,454,1]
["Walliser Chuchisuppe",4.6900000000000004,1009,"Soupe valaisanne",4.6900000000000004,1009,"Zuppa alla vallesana",4.6900000000000004,1009,452,1]
["Zürcher Eintopf",2.8,0,"Potée zurichoise",2.8,0,"Stufato alla zurighese",2.8,0,465,1]
["11 Teige / Desserts",null,"Rezept #","11 Pâte / desserts",null,"Recette #","11 Paste / dolci",null,"Ricetta #"]
["Brotteig",0.14000000000000001,1100,"Pâte à pain",0.14000000000000001,1100,"Impasto per il pane",0.14000000000000001,1100,99,1]
["Hefeteig süss",0.19,1103,"Pâte levée sucrée",0.19,1103,"Pasta lievitata dolce",0.19,1103,61,1]
["Pizzateig",0.31,1,"Pâte à pizza",0.31,1,"Impasto per la pizza",0.31,1,112,1]
["Zopfteig (Berner)",0.53,1,"Pâte à tresse (bernoise)",0.53,1,"Impasto per la treccia (bernese)",0.53,1,141,1]
["Apfelquarkcreme",0.59,1103,"Séré aux pommes",0.59,1103,"Crema di quark e mele",0.59,1103,164,1]
["Bananen Kokoscreme",0.66,1103,"Séré aux bananes et coco",0.66,1103,"Crema di quark alle banane e cocco",0.66,1103,165,1]
["Beerenquarkcreme",0.53,1103,"Séré aux baies des bois",0.53,1103,"Crema di quark di frutta di bosco",0.53,1103,163,1]
["Bananen Cake",0.57999999999999996,1105,"Cake banane",0.57999999999999996,1105,"Cake alle banane",0.57999999999999996,1105,115,1]
["Country Cake",0.82,1105,"Country cake",0.82,1105,"Country cake",0.82,1105,114,1]
["Früchte Cake",0.6,1105,"Cake aux fruits",0.6,1105,"Cake ai frutti",0.6,1105,114,1]
["Marmor Cake",0.56000000000000005,1105,"Cake marbré",0.56000000000000005,1105,"Cake marmorizzato",0.56000000000000005,1105,105,1]
["Rüebli Cake",0.47,1105,"Cake aux carottes",0.47,1105,"Cake alle carote",0.47,1105,83,1]
["Zitronen Cake",0.51,1105,"Cake citron",0.51,1105,"Cake al limone",0.51,1105,110,1]
["Caramelcreme",0.56000000000000005,1107,"Crème caramel",0.56000000000000005,1107,"Cake al caramello",0.56000000000000005,1107,170,1]
["Leckerlicreme",0.56000000000000005,1107,"Crème au Leckerli",0.56000000000000005,1107,"Crema di Leckerli",0.56000000000000005,1107,160,1]
["Mokkacreme",0.41,1107,"Crème mocca",0.41,1107,"Crema alla moka",0.41,1107,151,1]
["Schoggicreme",0.42,1107,"Crème chocolat",0.42,1107,"Crema al chioccolato",0.42,1107,155,1]
["Thurgauer Süssmostcreme",0.53,1107,"Crème thurgovienne au cidre doux",0.53,1107,"Crema al mosto di mele alla turgoviese",0.53,1107,150,1]
["Freiburger Rahmkuchen",1.23,1108,"Gâteau à la raisinée",1.23,1108,"Torta alla panna friborghese",1.23,1108,149,1]
["Zwetschgenkuchen",0.86,1108,"Gâteau aux pruneaux",0.86,1108,"Torta alla prugne",0.86,1108,144,1]
["Apfelkompott",0.57999999999999996,1109,"Compote aux pommes",0.57999999999999996,1109,"Composta di mele",0.57999999999999996,1109,167,1]
["Beeren Lassi",0.59,1108,"Lassi aux baies des bois",0.59,1108,"Lassi di frutta di bosco",0.59,1108,150,1]
["Bananen Shake",0.83,null,"Shake aux bananes",0.83,null,"Shake alle banane",0.83,null,133,1]
["Hallauer Zwetschgenstreusel",0.57999999999999996,1112,"Gâteau aux pruneaux de Hallau",0.57999999999999996,1112,"Torta di prugne di Hallau",0.57999999999999996,1112,124,1]
["Russenzopf",0.61,1114,"Tresse russe",0.61,1114,"Treccia russa",0.61,1114,99,1]
["Studentenschnitte",1.21,1115,"Tranche des étudiants",1.21,1115,"Tranci dello studente",1.21,1115,135,1]
["Tessiner Brottorte",0.43,1117,"Tourte de pain tessinoise",0.43,1117,"Torta di pane",0.43,1117,88,1]
["Tirami su",1.22,1118,"Tiramisu ",1.22,1118,"Tirami su",1.22,1118,191,1]
["Apfelstreuselkuchen",0.89,null,"Gâteau de pommes streusel",0.89,null,"Strudel di mele",0.89,null,126,1]
["Holländer Apfelkuchen",0.95,null,"Gâteau d'hollandaise aux pommes",0.95,null,"Torta olandese alla mele",0.95,null,153,1]
["Milchreis",0.34,1113,"Riz au lait",0.34,1113,"Riso al latte",0.34,1113,154,1]
["Blätterteignussgipfel CF 4",1.9,null,"Croissant aux noisettes CF 4",1.9,null,"Cornetto di sfoglia alle noci CF 4",1.9,null,120,1]
["Mandelgipfel CF 4",2.1,null,"Croissant aux amandes CF 4",2.1,null,"Cornetto alle mandorle CF 4",2.1,null,120,1]
["Hefeschnecke CF 4",1.9,null,"Escargot aux noisettes CF 4",1.9,null,"Lumaca pasta dolce CF 4",1.9,null,120,1]
["Berliner CF 4",1.9,null,"Boule de Berlin CF 4",1.9,null,"Krapfen CF 4",1.9,null,120,1]
["Vanillecornet CF 4",2,null,"Cornet à la vanille CF 4",2,null,"Cornetto alla vaniglia CF 4",2,null,120,1]
["Cremeschnitte CF 4",2.2000000000000002,null,"Tranche de mille feuilles CF 4",2.2000000000000002,null,"Millefoglie CF 4",2.2000000000000002,null,120,1]
["12 Vegi Gerichte",null,"Rezept #","12 Mets végétariens",null,"Recette #","12 Piatti vegetariani",null,"Ricetta #"]
["Älplermakkaronen",1.94,900,"Macaroni des alpages",1.94,900,"Maccheroni delle alpi",1.94,900,340,1]
["Appenzeller Chäs-Tschoope",2.38,901,"Soufflé au pain et fromage de l'Appenzell",2.38,901,"Sformato di pane e formaggio all'appenzellese",2.38,901,299,1]
["Appenzellerschnitten",3.54,901,"Croûtes appenzelloise",3.54,901,"Crostini all'appenzellese",3.54,901,304,1]
["Auberginenpiccata",1.4,null,"Piccata d'aubergine",1.4,null,"Piccata alla melanzane",1.4,null,176,1]
["Birchermüesli",1.68,904,"Birchermüesli",1.68,904,"Birchermüesli",1.68,904,406,1]
["Champignonschnitten",2.11,907,"Croûtes aux champignons",2.11,907,"Crostini ai funghi",2.11,907,299,1]
["Fotzelschnitte",0.95,910,"Croûtes dorées",0.95,910,"Crostini zucchero e cannella",0.95,910,307,1]
["Freiburger Fondue",6.39,911,"Fondue fribourgeoise",6.39,911,"Fondue friborghese",6.39,911,505,1]
["Gebratene Nudeln mit Quorn",1.24,617,"Nouilles sautés au quorn",1.24,617,"Tagliatelle al quorn",1.24,617,171,1]
["Gebratener Reis mit Ei",0.5,608,"Riz sautés à l'œuf",0.5,608,"Riso saltato all'uovo",0.5,608,171,1,null," "]
["Gemüsecurry",0.82,null,"Curry aux légumes",0.82,null,"Curry di verdura",0.82,null,159,1]
["Glarner Hörnli",1.4,913,"Cornettes glaronnaises",1.4,913,"Hörnli alla glaronese",1.4,913,233,1,null," "]
["Käsekuchen",3.56,915,"Quiche au fromage",3.56,915,"Torta di formaggio",3.56,915,331,1]
["Käseschnitten (frittiert)",2.02,916,"Croûtes au fromage (frire)",2.02,916,"Crostini al formaggio (fritto)",2.02,916,302,1]
["Käsespinatkuchen",3.57,915,"Quiche aux épinards et fromage",3.57,915,"Torta di formaggio e spinaci",3.57,915,318,1]
["Käse-Zwiebelkuchen",3.09,915,"Quiche aux oignons et fromage",3.09,915,"Torta di formaggio e alle cipolle",3.09,915,331,1]
["Lasagne mit Spinat und Frischkäse",2.4500000000000002,915,"Lasagne aux épinards et ricotta",2.4500000000000002,915,"Lasagne al spinaci e ricotta",2.4500000000000002,915,413,1]
["Linsengericht Malcantone",0.8,null,"Lentilles du Malcantone",0.8,null,"Lenticchie del Malcantone",0.8,null,155,1]
["Omelette mit Käse",1.54,null,"Omelette aux fromages",1.54,null,"Frittata al formaggio",1.54,null,158,1]
["Pastetli mit Quorn und Pilzfüllung",3.18,923,"Vol-au-vent au quorn et champignons",3.18,923,"Vol au vent con quorn e funghi",3.18,923,256,1]
["Pizza Calzone mit Ei",3.6,924,"Pizza calzone à l'œuf",3.6,924,"Pizza calzone con uova",3.6,924,424,1]
["Porridge (Haferbrei)",0.22,913,"Porridge",0.22,913,"Porridge",0.22,913,252,1]
["Quornbolognaise",3.71,905,"Sauce bolognaise au quorn",3.71,905,"Salsa bolognese al quorn",3.71,905,283,1]
["Quornvoressen nach alter Art",4.28,427,"Blanquette de quorn à l'ancienne",4.28,427,"Bianchetto di quorn all'antica",4.28,427,245,1]
["Raclette",6.4,null,"Raclette",6.4,null,"Raclette",6.4,null,504,1]
["Schaffhauser Bölledünne (Zwiebelkuchen)",2.92,927,"Quiche aux oignons à la schaffhousoise",2.92,927,"Quiche di cipolle di scaffusa",2.92,927,346,1]
["Vegirösti",1.1499999999999999,612,"Rösti végétariens",1.1499999999999999,612,"Rösti vegetariani",1.1499999999999999,612,333,1]
["Vollkorngemüseburger",1.82,null,"Hamburger aux céréales et légumes",1.82,null,"Hamburger integrale alle verdure",1.82,null,140,1]
["Walliser Tomatenfondue",5.59,911,"Fondue aux tomates valaisanne",5.59,911,"Fondue ai pomodori vallasana",5.59,911,502,1]

{"sheet":"Vpf Art Genre Subs Tipi di suss","index":14,"n_rows":12,"n_cols":2,"rows_kept":12,"cut":false,"hidden":false,"merged":[]}
["Normalbestand",1]
["Leistungsabtreten",0.75]
["Fakultatives Nachtessen",0.3]
["Sonntagswache",0.1]
["Effectif normal",1]
["Licenciement selon performance",0.75]
["Souper facultatif",0.3]
["Garde weekend",0.1]
["Effetivo normale",1]
["Congedo di prestazione",0.75]
["Cena facoltativa",0.3]
["Guardia",0.1]